﻿Merchandising Type Category,Detailed Merchant Category,Supplier,Purchase Details,Transaction Date,Value,Department
Business Services,Business Services - Default,Indeed Tel+35312545907,Supplies and Services related expenditure,01/04/2018,4.63,Director of Children's Services and Education
Business To Business Eqpt/Furn,Book Stores,Amazon Svcs Eu-Uk Amazon.,Supplies and Services related expenditure,01/04/2018,41.99,Director of Finance & IT
Automobile Services & Supplies,Service Stations,Tesco Pfs 2339,Supplies and Services related expenditure,01/04/2018,4.58,Director of Children's Services and Education
Automobile Services & Supplies,Service Stations,Tesco Pfs 2339,Supplies and Services related expenditure,01/04/2018,20.56,Director of Children's Services and Education
Miscellaneous,Other Direct Marketers,Amazon UK Retail,Supplies and Services related expenditure,01/04/2018,43.5,Director of Regeneration
Other Supplies,Department Stores,Southern Co-Op 0005,Supplies and Services related expenditure,01/04/2018,13.44,Director of Adult Services
Business To Business Eqpt/Furn,Book Stores,Amazon UK Marketplace,Supplies and Services related expenditure,01/04/2018,34.72,"Director of Housing, Neighbourhood and Building Services"
Other Supplies,Discount Stores,Theworks,Supplies and Services related expenditure,01/04/2018,6.67,"Director of Housing, Neighbourhood and Building Services"
Business To Business Eqpt/Furn,Book Stores,Amazon UK Marketplace,Supplies and Services related expenditure,01/04/2018,7.72,Director of Adult Services
Business To Business Eqpt/Furn,Book Stores,Amazon UK Marketplace,Supplies and Services related expenditure,01/04/2018,95.48,"Director of Housing, Neighbourhood and Building Services"
Business To Business Eqpt/Furn,Book Stores,Amazon Svcs Eu-Uk Amazon.,Supplies and Services related expenditure,01/04/2018,49.96,Director of Children's Services and Education
Eating And Drinking Places,Eating Places/Restaurants,Greggs Plc,Supplies and Services related expenditure,01/04/2018,4.75,Director of Children's Services and Education
Retail,Grocery Stores/Supermarkets,Tesco Stores 6577,Supplies and Services related expenditure,01/04/2018,12.2,Director of Children's Services and Education
Retail,Grocery Stores/Supermarkets,Www.Iceland.Co.Uk,Supplies and Services related expenditure,02/04/2018,19.68,Director of Adult Services
Retail,Grocery Stores/Supermarkets,Www.Iceland.Co.Uk,Supplies and Services related expenditure,02/04/2018,13.54,Director of Adult Services
Retail,Grocery Stores/Supermarkets,Sainsburys S/mkt,Supplies and Services related expenditure,02/04/2018,2.5,Director of Adult Services
Equipment And Furniture,Household Appliance Stores,Wilko Retail Limit,Supplies and Services related expenditure,02/04/2018,6.38,"Director of Housing, Neighbourhood and Building Services"
Facilities/Repair Supplies,Lumber/Build. Supply Stores,Wickes Building,Supplies and Services related expenditure,02/04/2018,14.17,"Director of Housing, Neighbourhood and Building Services"
Business To Business Eqpt/Furn,Book Stores,Amazon Svcs Eu-Uk Amazon.,Supplies and Services related expenditure,02/04/2018,39.98,Director of Children's Services and Education
Automobile Services & Supplies,Service Stations,Milton Road Servic,Transport related expenditure,02/04/2018,23.89,Director of Adult Services
Miscellaneous,Other Direct Marketers,Amazon UK Retail,Supplies and Services related expenditure,02/04/2018,8.99,Director of Children's Services and Education
Business To Business Eqpt/Furn,Book Stores,Amazon UK Marketplace,Supplies and Services related expenditure,02/04/2018,1.61,"Director of Housing, Neighbourhood and Building Services"
Medical,Lab/Med/Hospital Equipment,Wightman & Parrish,Premises related expenditure,02/04/2018,62.46,Director of Adult Services
Medical,Lab/Med/Hospital Equipment,Wightman & Parrish,Supplies and Services related expenditure,02/04/2018,17.5,Director of Adult Services
Medical,Lab/Med/Hospital Equipment,Wightman & Parrish,Supplies and Services related expenditure,02/04/2018,58.15,Director of Adult Services
Miscellaneous,Other Direct Marketers,Amazon UK Retail,Supplies and Services related expenditure,02/04/2018,41.93,Director of Children's Services and Education
Miscellaneous,Other Direct Marketers,Amazon UK Retail,Supplies and Services related expenditure,02/04/2018,15.58,Director of Children's Services and Education
Other Supplies,Department Stores,Southern Co-Op 0008,Supplies and Services related expenditure,02/04/2018,0.04,Director of Children's Services and Education
Other Supplies,Department Stores,Southern Co-Op 0008,Supplies and Services related expenditure,02/04/2018,1.7,Director of Children's Services and Education
Retail,Grocery Stores/Supermarkets,W M Morrisons,Supplies and Services related expenditure,02/04/2018,10.2,Director of Children's Services and Education
Business To Business Eqpt/Furn,Book Stores,Amazon Svcs Eu-Uk Amazon.,Supplies and Services related expenditure,02/04/2018,9.15,Director of Adult Services
Other Supplies,Misc Speciality Retail,Amazon Eu Amazon.Co.Uk,Supplies and Services related expenditure,02/04/2018,26.24,Director of Finance & IT
Business To Business Other Sup,Uniforms & Commercial Clothing,Arco Ltd,Supplies and Services related expenditure,02/04/2018,41.99,"Director of Housing, Neighbourhood and Building Services"
Other Supplies,Misc Speciality Retail,Amazon Eu Amazon.Co.Uk,Supplies and Services related expenditure,02/04/2018,22.13,Director of Portsmouth International Port
Other Supplies,Discount Stores,Poundworld Retail,Supplies and Services related expenditure,03/04/2018,1.67,Director of Children's Services and Education
Equipment And Furniture,Household Appliance Stores,Tlc Southern Ltd,Supplies and Services related expenditure,03/04/2018,10.8,"Director of Housing, Neighbourhood and Building Services"
Business To Business Facility/,Industrial Supplies - Def,Arco Ltd,Supplies and Services related expenditure,03/04/2018,117.03,"Director of Housing, Neighbourhood and Building Services"
Business To Business Facility/,Industrial Supplies - Def,Arco Ltd,Supplies and Services related expenditure,03/04/2018,117.03,"Director of Housing, Neighbourhood and Building Services"
Transportation,Local Commuter Transport,Hovertravel Ltd,Agency and Third Party Payments related expenditure,03/04/2018,264,Director of Children's Services and Education
Other Supplies,Gift/Card/Novelty And Souvenir Stores,Card Factory,Supplies and Services related expenditure,03/04/2018,0.83,Director of Adult Services
Facilities/Repair Supplies,Hardware Stores,Robert Dyas Holdng Ltd,Capital related expenditure,03/04/2018,11.49,OTHER
Transportation,"Parking Lots, Meters, Garages",Portsmouth City Counci,Transport related expenditure,03/04/2018,6.67,Director of Children's Services and Education
Retail,Grocery Stores/Supermarkets,Sainsburys S/mkts,Supplies and Services related expenditure,03/04/2018,4.4,Director of Community & Communication
Government,Colleges/Univ/Jc/Profession,Eldon Art Shop 1,Capital related expenditure,03/04/2018,38.79,OTHER
Retail,Grocery Stores/Supermarkets,Asda Groceries Online,Supplies and Services related expenditure,03/04/2018,-4.16,Director of Children's Services and Education
Retail,Grocery Stores/Supermarkets,Asda Groceries Online,Supplies and Services related expenditure,03/04/2018,132.66,Director of Children's Services and Education
Other Supplies,Catalog Merchant,Www.Nisbets.Com,Supplies and Services related expenditure,03/04/2018,415.12,Director of Adult Services
Government,Govt Serv - Default,Portsmouth City Co,Transport related expenditure,03/04/2018,31.67,Director of Adult Services
Equipment And Furniture,Household Appliance Stores,Wilko Retail Limit,Supplies and Services related expenditure,03/04/2018,0.83,Director of Adult Services
Professional Services,Real Estate Agents And Managers,Seaview Estates,Supplies and Services related expenditure,03/04/2018,2055,"Director of Housing, Neighbourhood and Building Services"
Utilities,Phone Serv/Equip Utility,Virgin Media Pymts,Supplies and Services related expenditure,03/04/2018,85.57,Director of Adult Services
Miscellaneous,Sport/Recreational Camps,The Base Skatepark Cic,Supplies and Services related expenditure,03/04/2018,4.1,Director of Children's Services and Education
Other Supplies,Discount Stores,B&m Retail,Agency and Third Party Payments related expenditure,03/04/2018,3.61,Director of Children's Services and Education
Miscellaneous,Sport/Recreational Camps,The Base Skatepark Cic,Agency and Third Party Payments related expenditure,03/04/2018,5,Director of Children's Services and Education
Miscellaneous,Sport/Recreational Camps,The Base Skatepark Cic,Agency and Third Party Payments related expenditure,03/04/2018,5,Director of Children's Services and Education
Eating And Drinking Places,Fast Food Restaurants,Kfc-Gosport,Supplies and Services related expenditure,03/04/2018,5.16,Director of Children's Services and Education
Miscellaneous,Sport/Recreational Camps,The Base Skatepark Cic,Supplies and Services related expenditure,03/04/2018,7.55,Director of Children's Services and Education
Miscellaneous,Sport/Recreational Camps,The Base Skatepark Cic,Agency and Third Party Payments related expenditure,03/04/2018,15,Director of Children's Services and Education
Business To Business Facility/,Industrial Supplies - Def,Www.Arco.Co.Uk,Supplies and Services related expenditure,03/04/2018,13.49,Director of Culture & City Development
Business To Business Facility/,Industrial Supplies - Def,Arco Ltd,Supplies and Services related expenditure,03/04/2018,127.16,Director of Culture & City Development
Business To Business Facility/,Industrial Supplies - Def,Arco Ltd,Supplies and Services related expenditure,03/04/2018,156.3,Director of Culture & City Development
Business To Business Other Sup,Uniforms & Commercial Clothing,Arco Ltd,Supplies and Services related expenditure,03/04/2018,59.99,"Director of Housing, Neighbourhood and Building Services"
Business To Business Facility/,Industrial Supplies - Def,Www.Arco.Co.Uk,Supplies and Services related expenditure,03/04/2018,110.35,"Director of Housing, Neighbourhood and Building Services"
Eating And Drinking Places,Fast Food Restaurants,McDonalds,Agency and Third Party Payments related expenditure,03/04/2018,8.06,Director of Children's Services and Education
Retail,Grocery Stores/Supermarkets,W M Morrisons,Supplies and Services related expenditure,03/04/2018,6.67,Director of Children's Services and Education
Retail,Grocery Stores/Supermarkets,W M Morrisons,Supplies and Services related expenditure,03/04/2018,117.06,Director of Children's Services and Education
Government,Govt Serv - Default,Pcc Internet Payment,Supplies and Services related expenditure,03/04/2018,280,Director of Culture & City Development
Retail,Grocery Stores/Supermarkets,Tesco Store 3055,Supplies and Services related expenditure,03/04/2018,5.83,"Director of Housing, Neighbourhood and Building Services"
Business To Business Eqpt/Furn,Computer Software Stores,So2175781 Pcc,Supplies and Services related expenditure,03/04/2018,4830,"Director of Housing, Neighbourhood and Building Services"
Miscellaneous,Charitable/Soc Service Orgs,Portsmouth Naval Base,Supplies and Services related expenditure,03/04/2018,112,"Director of Housing, Neighbourhood and Building Services"
Retail,Grocery Stores/Supermarkets,Asda Stores,Supplies and Services related expenditure,03/04/2018,11.17,Director of Adult Services
Business Services,Business Services - Default,Fast Key Services Limi,Supplies and Services related expenditure,03/04/2018,18.18,Director of Adult Services
Business Services,Business Services - Default,Fast Key Services Limi,Supplies and Services related expenditure,03/04/2018,3.65,Director of Adult Services
Hotels And Motels,Lodging/Hotels/Motels/Resorts,Ibis London Earls Court,Supplies and Services related expenditure,03/04/2018,-95.83,Director of Children's Services and Education
Facilities/Repair Supplies,Lumber/Build. Supply Stores,B & Q 1260,Supplies and Services related expenditure,03/04/2018,5,Director of Children's Services and Education
Business To Business Eqpt/Furn,Book Stores,Amazon Svcs Eu-Uk Amazon.,Supplies and Services related expenditure,03/04/2018,14.84,Director of Children's Services and Education
Government,Govt Serv - Default,Portsmouth City Co,Transport related expenditure,03/04/2018,1.6,Director of Adult Services
Government,Govt Serv - Default,Portsmouth City Co,Transport related expenditure,03/04/2018,0.33,Director of Adult Services
Hotels And Motels,Hotel Ibis,Hotel Ibis,Supplies and Services related expenditure,03/04/2018,26,Director of Children's Services and Education
Retail,Grocery Stores/Supermarkets,Asda Stores,Supplies and Services related expenditure,03/04/2018,12.16,Director of Children's Services and Education
Miscellaneous,Member Organizations - Def,Chartered Inst Of Lega,Employees related expenditure,03/04/2018,300,"Director of HR, Legal,  Audit & Performance"
Business Expenses/Services,Stationery Stores,Banner Group Ltd,Supplies and Services related expenditure,03/04/2018,-133.85,"Director of Housing, Neighbourhood and Building Services"
Retail,Grocery Stores/Supermarkets,Asda Stores,Supplies and Services related expenditure,03/04/2018,13,"Director of Housing, Neighbourhood and Building Services"
Retail,Grocery Stores/Supermarkets,Asda Stores,Supplies and Services related expenditure,03/04/2018,26.89,"Director of Housing, Neighbourhood and Building Services"
Retail,Grocery Stores/Supermarkets,Tesco Stores 4579,Supplies and Services related expenditure,03/04/2018,10,Director of Children's Services and Education
Retail,Grocery Stores/Supermarkets,Tesco Stores 4579,Supplies and Services related expenditure,03/04/2018,0.08,Director of Children's Services and Education
Retail,Grocery Stores/Supermarkets,Tesco Stores 4579,Supplies and Services related expenditure,03/04/2018,5.55,Director of Children's Services and Education
Equipment And Furniture,Household Appliance Stores,Ao Retail Limited,Supplies and Services related expenditure,03/04/2018,1531.1,Director of Adult Services
Entertainment,Amusement/Rec Serv - Def,Playzone Portsmouth,Agency and Third Party Payments related expenditure,03/04/2018,32.92,Director of Children's Services and Education
Other Supplies,Gift/Card/Novelty And Souvenir Stores,U-Need-Us,Supplies and Services related expenditure,03/04/2018,39.92,Director of Culture & City Development
Retail,Grocery Stores/Supermarkets,Tesco Stores 6577,Supplies and Services related expenditure,03/04/2018,1.99,Director of Adult Services
Medical,Lab/Med/Hospital Equipment,Wightman & Parrish,Premises related expenditure,03/04/2018,61.45,"Director of Housing, Neighbourhood and Building Services"
Medical,Lab/Med/Hospital Equipment,Wightman & Parrish,Premises related expenditure,03/04/2018,330.03,"Director of Housing, Neighbourhood and Building Services"
Freight/Courier/Warehouse Svcs,Public Warehousing,Lok N Store,Premises related expenditure,03/04/2018,15,"Director of Housing, Neighbourhood and Building Services"
Freight/Courier/Warehouse Svcs,Public Warehousing,Lok N Store,Premises related expenditure,03/04/2018,150,"Director of Housing, Neighbourhood and Building Services"
Hotels And Motels,Lodging/Hotels/Motels/Resorts,Keppels Head Hotel,Agency and Third Party Payments related expenditure,03/04/2018,1290.52,"Director of Housing, Neighbourhood and Building Services"
Hotels And Motels,Lodging/Hotels/Motels/Resorts,Keppels Head Hotel,Agency and Third Party Payments related expenditure,03/04/2018,781.38,"Director of Housing, Neighbourhood and Building Services"
Airlines,Airlines And Air Carriers,Flybe Apv9lf,Transport related expenditure,03/04/2018,202.71,Director of Children's Services and Education
Transportation,Passenger Railways,Ticketofficesale,Transport related expenditure,03/04/2018,12.6,Director of Adult Services
Eating And Drinking Places,Fast Food Restaurants,Costa Coffee,Supplies and Services related expenditure,03/04/2018,4.13,Director of Adult Services
Transportation,Passenger Railways,Sw Railway,Transport related expenditure,03/04/2018,24.4,Director of Children's Services and Education
Government,Govt Serv - Default,Portsmouth City Co,Transport related expenditure,03/04/2018,63.33,Director of Children's Services and Education
Medical,Lab/Med/Hospital Equipment,Evac & Chair Internati,Supplies and Services related expenditure,03/04/2018,145,Director of Adult Services
Medical,Lab/Med/Hospital Equipment,Wightman & Parrish,Supplies and Services related expenditure,03/04/2018,238.98,Director of Adult Services
Medical,Lab/Med/Hospital Equipment,Wightman & Parrish,Premises related expenditure,03/04/2018,67.93,Director of Adult Services
Business To Business Eqpt/Furn,Stationery/Office Supplies,Cartridge Save,Supplies and Services related expenditure,03/04/2018,81.64,"Director of Housing, Neighbourhood and Building Services"
Retail,Grocery Stores/Supermarkets,Asda Stores,Supplies and Services related expenditure,03/04/2018,2.08,Director of Children's Services and Education
Entertainment,Bands/Orchestras/Entertain,Bowlplex,Supplies and Services related expenditure,03/04/2018,49.92,Director of Children's Services and Education
Entertainment,Motion Picture Theatres,Groundlings Theatre Co,Supplies and Services related expenditure,03/04/2018,82,Director of Children's Services and Education
Entertainment,Motion Picture Theatres,Vue Bsl Ltd,Supplies and Services related expenditure,03/04/2018,83,Director of Children's Services and Education
Business To Business Facility/,Industrial Supplies - Def,Cromwell Portsmouth,Supplies and Services related expenditure,03/04/2018,80.64,Director of Culture & City Development
Transportation,Passenger Railways,Selfserve Ticket,Transport related expenditure,03/04/2018,48.5,Director of Adult Services
Government,Colleges/Univ/Jc/Profession,The Free Test Comp,Supplies and Services related expenditure,03/04/2018,137.47,"Director of Housing, Neighbourhood and Building Services"
Government,Colleges/Univ/Jc/Profession,The Free Test Comp,Supplies and Services related expenditure,03/04/2018,19.44,"Director of Housing, Neighbourhood and Building Services"
Government,Colleges/Univ/Jc/Profession,The Free Test Comp,Supplies and Services related expenditure,03/04/2018,7.67,"Director of Housing, Neighbourhood and Building Services"
Entertainment,Bands/Orchestras/Entertain,Bh Live Active - Mount,Supplies and Services related expenditure,03/04/2018,6,Director of Adult Services
Other Supplies,Department Stores,Southern Co-Op 0007,Supplies and Services related expenditure,03/04/2018,1.24,Director of Adult Services
Miscellaneous,Other Direct Marketers,Amazon UK Retail,Supplies and Services related expenditure,03/04/2018,16.62,Director of Adult Services
Miscellaneous,Other Direct Marketers,Amazon UK Retail,Supplies and Services related expenditure,03/04/2018,57.5,Director of Adult Services
Miscellaneous,Other Direct Marketers,Amazon UK Retail,Supplies and Services related expenditure,03/04/2018,115.82,Director of Adult Services
Medical,Lab/Med/Hospital Equipment,Wightman & Parrish,Supplies and Services related expenditure,03/04/2018,307.52,Director of Adult Services
Medical,Lab/Med/Hospital Equipment,Wightman & Parrish,Premises related expenditure,03/04/2018,73.48,Director of Adult Services
Business To Business Eqpt/Furn,Book Stores,Amazon Svcs Eu-Uk Amazon.,Supplies and Services related expenditure,03/04/2018,17.78,Director of Children's Services and Education
Automobile Services & Supplies,Service Stations,Green Road Service Stn,Supplies and Services related expenditure,03/04/2018,17.86,"Director of Housing, Neighbourhood and Building Services"
Miscellaneous,Continuity/Subscription Mercht,Amazon Prime Member Fee A,Supplies and Services related expenditure,03/04/2018,79,Director of Children's Services and Education
Business Expenses/Services,Postage Stamps,Post Office Counter,Supplies and Services related expenditure,03/04/2018,3.53,Director of Children's Services and Education
Miscellaneous,Other Direct Marketers,Amazon UK Retail,Supplies and Services related expenditure,03/04/2018,14.61,Director of Adult Services
Miscellaneous,Other Direct Marketers,Amazon UK Retail,Supplies and Services related expenditure,03/04/2018,3.51,Director of Adult Services
Miscellaneous,Other Direct Marketers,Amazon UK Retail,Supplies and Services related expenditure,03/04/2018,14.61,Director of Adult Services
Miscellaneous,Other Direct Marketers,Amazon UK Retail,Supplies and Services related expenditure,03/04/2018,3.51,Director of Adult Services
Miscellaneous,Other Direct Marketers,Amazon UK Retail,Supplies and Services related expenditure,03/04/2018,14.61,Director of Adult Services
Miscellaneous,Other Direct Marketers,Amazon UK Retail,Supplies and Services related expenditure,03/04/2018,3.51,Director of Adult Services
Retail,Grocery Stores/Supermarkets,Asda Superstore,Supplies and Services related expenditure,03/04/2018,1.09,Director of Children's Services and Education
Retail,Grocery Stores/Supermarkets,Asda Superstore,Premises related expenditure,03/04/2018,2.25,Director of Children's Services and Education
Retail,Grocery Stores/Supermarkets,Asda Superstore,Supplies and Services related expenditure,03/04/2018,5.42,Director of Children's Services and Education
Business To Business Eqpt/Furn,Computer Software Stores,Sh Activities,Supplies and Services related expenditure,03/04/2018,65.96,Director of Adult Services
Business To Business Other Sup,Uniforms & Commercial Clothing,Arco Ltd,Supplies and Services related expenditure,03/04/2018,53.99,Director of Portsmouth International Port
Business To Business Other Sup,Uniforms & Commercial Clothing,Arco Ltd,Supplies and Services related expenditure,03/04/2018,53.99,Director of Portsmouth International Port
Business To Business Other Sup,Uniforms & Commercial Clothing,Arco Ltd,Supplies and Services related expenditure,03/04/2018,73.49,Director of Portsmouth International Port
Business To Business Other Sup,Uniforms & Commercial Clothing,Arco Ltd,Supplies and Services related expenditure,03/04/2018,59.97,"Director of Housing, Neighbourhood and Building Services"
Business Expenses/Services,Stationery Stores,Banner Group Ltd,Supplies and Services related expenditure,03/04/2018,209.4,"Director of Housing, Neighbourhood and Building Services"
Professional Services,Mgmt/Consult/Public Rel Ser,Tvlicensing.Co.Uk,Supplies and Services related expenditure,03/04/2018,125.42,"Director of Housing, Neighbourhood and Building Services"
Business To Business Eqpt/Furn,Book Stores,Amazon Svcs Eu-Uk Amazon.,Employees related expenditure,03/04/2018,62.3,Director of Adult Services
Business Expenses/Services,Stationery Stores,Banner Group Ltd,Supplies and Services related expenditure,03/04/2018,13.59,Director of Children's Services and Education
Business Expenses/Services,Stationery Stores,Banner Group Ltd,Supplies and Services related expenditure,03/04/2018,7.97,Director of Adult Services
Business Expenses/Services,Stationery Stores,Banner Group Ltd,Supplies and Services related expenditure,03/04/2018,6.7,Director of Adult Services
Business Expenses/Services,Stationery Stores,Banner Group Ltd,Supplies and Services related expenditure,03/04/2018,2.1,Director of Adult Services
Business Expenses/Services,Stationery Stores,Banner Group Ltd,Supplies and Services related expenditure,03/04/2018,9.3,Director of Adult Services
Business Expenses/Services,Stationery Stores,Banner Group Ltd,Supplies and Services related expenditure,03/04/2018,9.2,Director of Adult Services
Business Expenses/Services,Postage Stamps,Post Office Counter,Supplies and Services related expenditure,04/04/2018,7.85,Director of Portsmouth International Port
Business Services,Business Services - Default,Www.Thewaterfront.Co.U,Supplies and Services related expenditure,04/04/2018,-264.3,Director of Portsmouth International Port
Retail,Grocery Stores/Supermarkets,Asda Groceries Online,Supplies and Services related expenditure,04/04/2018,5,Director of Children's Services and Education
Business To Business Facility/,Industrial Supplies - Def,Arco Ltd,Premises related expenditure,04/04/2018,59.99,"Director of Housing, Neighbourhood and Building Services"
Medical,Lab/Med/Hospital Equipment,Wightman & Parrish,Premises related expenditure,04/04/2018,509.94,"Director of Housing, Neighbourhood and Building Services"
Medical,Lab/Med/Hospital Equipment,Wightman & Parrish Ltd,Premises related expenditure,04/04/2018,122,"Director of Housing, Neighbourhood and Building Services"
Retail,Grocery Stores/Supermarkets,Www.Iceland.Co.Uk,Supplies and Services related expenditure,04/04/2018,25.43,Director of Adult Services
Retail,Grocery Stores/Supermarkets,Www.Iceland.Co.Uk,Supplies and Services related expenditure,04/04/2018,14.17,Director of Adult Services
Eating And Drinking Places,Eating Places/Restaurants,Iz *lily And Lime Ld,Supplies and Services related expenditure,04/04/2018,50,Director of Community & Communication
Transportation,"Parking Lots, Meters, Garages",Http://Www.Southampton,Transport related expenditure,04/04/2018,26.25,Director of Children's Services and Education
Transportation,Bus Lines/Charter/Tour,National Express Limited,Transport related expenditure,04/04/2018,38.5,Director of Children's Services and Education
Airlines,Airlines And Air Carriers,Flybe.Com At5pjp,Supplies and Services related expenditure,04/04/2018,386.42,Director of Children's Services and Education
Professional Services,Insurance Sales/Underwrite,Www.Events-Insurance.C,Supplies and Services related expenditure,04/04/2018,213,"Director of HR, Legal,  Audit & Performance"
Auto/Vehicle Rentals,Automobile Rental Agency,Southern Motor Contrac,Transport related expenditure,04/04/2018,6283.41,Director of Regeneration
Other Supplies,Catalog Merchant,Www.Nisbets.Com,Supplies and Services related expenditure,04/04/2018,33.98,Director of Adult Services
Government,Govt Serv - Default,Land Registry,Supplies and Services related expenditure,04/04/2018,3,"Director of Housing, Neighbourhood and Building Services"
Equipment And Furniture,Phone Serv/Equip Non-Util,Bt Bill Payment 1,Supplies and Services related expenditure,04/04/2018,30.49,Director of Adult Services
Equipment And Furniture,Phone Serv/Equip Non-Util,Bt Bill Payment 1,Supplies and Services related expenditure,04/04/2018,30.86,Director of Adult Services
Medical,Lab/Med/Hospital Equipment,Wightman & Parrish,Premises related expenditure,04/04/2018,175.78,"Director of Housing, Neighbourhood and Building Services"
Facilities/Repair Supplies,Lumber/Build. Supply Stores,Homebase Ltd 207,Premises related expenditure,04/04/2018,24.96,Director of Children's Services and Education
Miscellaneous,Member Organizations - Def,Network My Club Ltd,Supplies and Services related expenditure,04/04/2018,50,Director of Regeneration
Business To Business Facility/,Industrial Supplies - Def,Coleman Roofing Suppli,Agency and Third Party Payments related expenditure,04/04/2018,48.64,Director of Regeneration
Medical,Lab/Med/Hospital Equipment,Wightman & Parrish Ltd,Premises related expenditure,04/04/2018,31.28,"Director of Housing, Neighbourhood and Building Services"
Business Expenses/Services,Stationery Stores,Suk Retail Ltd,Supplies and Services related expenditure,04/04/2018,3.33,Director of Adult Services
Transportation,Passenger Railways,Ticketofficesale,Transport related expenditure,04/04/2018,-10.6,Director of Regeneration
Transportation,Passenger Railways,Selfserve Ticket,Transport related expenditure,04/04/2018,10.6,Director of Regeneration
Transportation,Passenger Railways,Ticketofficesale,Transport related expenditure,04/04/2018,11.6,Director of Regeneration
Hotels And Motels,Lodging/Hotels/Motels/Resorts,Castra Serviced Apartm,Supplies and Services related expenditure,04/04/2018,122,Director of Adult Services
Hotels And Motels,Lodging/Hotels/Motels/Resorts,Castra Serviced Apartm,Supplies and Services related expenditure,04/04/2018,210,Director of Adult Services
Utilities,Phone Serv/Equip Utility,Circle Online,Supplies and Services related expenditure,04/04/2018,320,"Director of Housing, Neighbourhood and Building Services"
Retail,Misc Food Stores - Default,Hlt Trading Ltd,Supplies and Services related expenditure,04/04/2018,3.5,Director of Adult Services
Other Supplies,Department Stores,Southern Co-Op 0214,Supplies and Services related expenditure,04/04/2018,1.89,Director of Community & Communication
Other Supplies,Department Stores,Southern Co-Op 0214,Supplies and Services related expenditure,04/04/2018,0.83,Director of Community & Communication
Business To Business Eqpt/Furn,Book Stores,Amazon Svcs Eu-Uk Amazon.,Supplies and Services related expenditure,04/04/2018,20.81,Director of Public Health
Medical,Lab/Med/Hospital Equipment,Wightman & Parrish,Supplies and Services related expenditure,04/04/2018,16.9,Director of Adult Services
Medical,Lab/Med/Hospital Equipment,Wightman & Parrish,Supplies and Services related expenditure,04/04/2018,24,Director of Adult Services
Medical,Lab/Med/Hospital Equipment,Wightman & Parrish,Premises related expenditure,04/04/2018,97.65,Director of Adult Services
Medical,Lab/Med/Hospital Equipment,Wightman & Parrish,Supplies and Services related expenditure,04/04/2018,338.97,"Director of Housing, Neighbourhood and Building Services"
Other Supplies,Department Stores,Southern Co-Op 0007,Supplies and Services related expenditure,04/04/2018,14.53,Director of Children's Services and Education
Retail,Grocery Stores/Supermarkets,Www.Iceland.Co.Uk,Supplies and Services related expenditure,04/04/2018,110.75,Director of Adult Services
Business To Business Eqpt/Furn,Book Stores,Amazon Svcs Eu-Uk Amazon.,Supplies and Services related expenditure,04/04/2018,46.62,Director of Adult Services
Transportation,Passenger Railways,Trainline,Transport related expenditure,04/04/2018,33.75,Director of Public Health
Business Services,Business Services - Default,Eb *better Mental Heal,Supplies and Services related expenditure,04/04/2018,200,Director of Public Health
Government,Govt Serv - Default,Portsmouth Council,Agency and Third Party Payments related expenditure,04/04/2018,4,Director of Culture & City Development
Transportation,Passenger Railways,Ticketofficesale,Transport related expenditure,04/04/2018,32,Director of Adult Services
Miscellaneous,Charitable/Soc Service Orgs,Paypal,Supplies and Services related expenditure,04/04/2018,32.93,Director of Adult Services
Miscellaneous,Continuity/Subscription Mercht,Mailchimp,Supplies and Services related expenditure,04/04/2018,97.27,Director of Culture & City Development
Facilities/Repair Services,Spec Contractors - Default,Christie Intruder Alar,Supplies and Services related expenditure,04/04/2018,15,"Director of Housing, Neighbourhood and Building Services"
Government,Govt Serv - Default,Portsmouth City Co,Transport related expenditure,04/04/2018,2.6,Director of Adult Services
Government,Govt Serv - Default,Portsmouth City Co,Transport related expenditure,04/04/2018,0.33,Director of Adult Services
Retail,Grocery Stores/Supermarkets,Aldi 30 775,Supplies and Services related expenditure,04/04/2018,5.8,Director of Adult Services
Retail,Grocery Stores/Supermarkets,Aldi 30 775,Supplies and Services related expenditure,04/04/2018,5.04,Director of Adult Services
Clothing/Shoes/Uniforms,Mens/Womens Clothing Stores,Jacamo (Internet),Supplies and Services related expenditure,04/04/2018,16.67,"Director of Housing, Neighbourhood and Building Services"
Professional Services,Professional Services - Def,Glidefern Property Man,Supplies and Services related expenditure,04/04/2018,10,Director of Children's Services and Education
Government,Govt Serv - Default,Ofsted Moto,Supplies and Services related expenditure,04/04/2018,220,Director of Children's Services and Education
Retail,Shoe Repair/Shine/Hat Clean,Timpson Ltd,Supplies and Services related expenditure,04/04/2018,7.5,"Director of Housing, Neighbourhood and Building Services"
Retail,Drug Stores & Pharmacies,Boots 1524,Supplies and Services related expenditure,04/04/2018,9.99,"Director of Housing, Neighbourhood and Building Services"
Retail,Grocery Stores/Supermarkets,Tesco Stores 3048,Supplies and Services related expenditure,04/04/2018,3.42,"Director of Housing, Neighbourhood and Building Services"
Retail,Grocery Stores/Supermarkets,Tesco Stores 3048,Supplies and Services related expenditure,04/04/2018,10.85,"Director of Housing, Neighbourhood and Building Services"
Business To Business Eqpt/Furn,Computer Software Stores,Textmagic.Com,Supplies and Services related expenditure,04/04/2018,50,Director of Finance & IT
Transportation,Passenger Railways,Selfserve Ticket,Transport related expenditure,04/04/2018,18.8,Director of Children's Services and Education
Business To Business Eqpt/Furn,Book Stores,Amazon Svcs Eu-Uk Amazon.,Supplies and Services related expenditure,04/04/2018,2.67,Director of Culture & City Development
Medical,Lab/Med/Hospital Equipment,Wightman & Parrish Ltd,Premises related expenditure,04/04/2018,126.89,"Director of Housing, Neighbourhood and Building Services"
Transportation,"Parking Lots, Meters, Garages",Pay N Display,Transport related expenditure,04/04/2018,6.67,"Director of HR, Legal,  Audit & Performance"
Retail,Grocery Stores/Supermarkets,Lidl Uk,Supplies and Services related expenditure,04/04/2018,17.03,"Director of Housing, Neighbourhood and Building Services"
Hotels And Motels,Lodging/Hotels/Motels/Resorts,Henryadamsholiday,Agency and Third Party Payments related expenditure,04/04/2018,-125,Director of Children's Services and Education
Retail,Grocery Stores/Supermarkets,Good Deal Stores,Premises related expenditure,04/04/2018,4.17,Director of Adult Services
Facilities/Repair Supplies,Lumber/Build. Supply Stores,B & Q 1260,Premises related expenditure,04/04/2018,74.87,Director of Culture & City Development
Hotels And Motels,Hotel Ibis,Hotel Ibis,Agency and Third Party Payments related expenditure,04/04/2018,503.04,"Director of Housing, Neighbourhood and Building Services"
Government,Govt Serv - Default,Pcc Moto Payment,Supplies and Services related expenditure,04/04/2018,35,Director of Children's Services and Education
Transportation,Passenger Railways,Trainline,Transport related expenditure,04/04/2018,42.9,Director of Public Health
Equipment And Furniture,Household Appliance Stores,Tlc Southern,Supplies and Services related expenditure,04/04/2018,124.3,Director of Culture & City Development
Professional Services,Professional Services - Def,Www.Ofcom.Org.Uk,Transport related expenditure,04/04/2018,150,Director of Regeneration
Retail,Grocery Stores/Supermarkets,Sainsburys S/mkts,Supplies and Services related expenditure,04/04/2018,2.5,Director of Culture & City Development
Business To Business Eqpt/Furn,Book Stores,Amazon Svcs Eu-Uk Amazon.,Supplies and Services related expenditure,04/04/2018,44.97,Director of Children's Services and Education
Other Supplies,Department Stores,The Range,Supplies and Services related expenditure,04/04/2018,35.94,"Director of Housing, Neighbourhood and Building Services"
Business To Business Eqpt/Furn,Book Stores,Stationery Office Book,Supplies and Services related expenditure,04/04/2018,65,Director of Regeneration
Government,Govt Serv - Default,Pcc Moto Payment,Supplies and Services related expenditure,04/04/2018,12,"Director of Housing, Neighbourhood and Building Services"
Caterers Food,Caterers,Bookerecomm,Supplies and Services related expenditure,04/04/2018,189.35,"Director of Housing, Neighbourhood and Building Services"
Retail,Grocery Stores/Supermarkets,Tesco Stores 6002,Supplies and Services related expenditure,04/04/2018,3.33,Director of Children's Services and Education
Retail,Grocery Stores/Supermarkets,Asda Stores,Supplies and Services related expenditure,04/04/2018,55.37,Director of Children's Services and Education
Entertainment,Motion Picture Theatres,Vue Bsl Ltd,Supplies and Services related expenditure,04/04/2018,31.13,Director of Children's Services and Education
Entertainment,Motion Picture Theatres,Vue Bsl Ltd,Supplies and Services related expenditure,04/04/2018,34.58,Director of Children's Services and Education
Entertainment,Motion Picture Theatres,Vue Bsl Ltd,Supplies and Services related expenditure,04/04/2018,-41.5,Director of Children's Services and Education
Retail,Grocery Stores/Supermarkets,Tesco Stores 4579,Supplies and Services related expenditure,04/04/2018,3.38,Director of Children's Services and Education
Retail,Grocery Stores/Supermarkets,Tesco Stores 4579,Premises related expenditure,04/04/2018,1.67,Director of Children's Services and Education
Retail,Grocery Stores/Supermarkets,Tesco Stores 4579,Supplies and Services related expenditure,04/04/2018,4.17,Director of Children's Services and Education
Retail,Grocery Stores/Supermarkets,Tesco Stores 4579,Supplies and Services related expenditure,04/04/2018,24.39,Director of Children's Services and Education
Other Supplies,Misc Speciality Retail,Amz*bill & Ben,Supplies and Services related expenditure,04/04/2018,-27.97,Director of Children's Services and Education
Government,Govt Serv - Default,Portsmouth City Counci,Supplies and Services related expenditure,04/04/2018,3.08,Director of Culture & City Development
Entertainment,Bands/Orchestras/Entertain,Bh Live Active - Mount,Supplies and Services related expenditure,04/04/2018,114.4,Director of Adult Services
Transportation,Local Commuter Transport,Gosport Ferry Ltd,Transport related expenditure,04/04/2018,3.5,"Director of Housing, Neighbourhood and Building Services"
Transportation,Local Commuter Transport,Gosport Ferry Ltd,Transport related expenditure,04/04/2018,3.5,"Director of Housing, Neighbourhood and Building Services"
Professional Services,Professional Services - Def,Www.Ofcom.Org.Uk,Supplies and Services related expenditure,04/04/2018,75,Director of Culture & City Development
Other Supplies,Department Stores,Southern Co-Op 0008,Supplies and Services related expenditure,04/04/2018,0.08,Director of Children's Services and Education
Other Supplies,Department Stores,Southern Co-Op 0008,Supplies and Services related expenditure,04/04/2018,9.92,Director of Children's Services and Education
Transportation,Local Commuter Transport,Gosport Ferry Ltd,Transport related expenditure,04/04/2018,43.4,Director of Regeneration
Business Expenses/Services,News Dealers/Newsstands,Wh Smith,Supplies and Services related expenditure,04/04/2018,6.48,Director of Adult Services
Business Expenses/Services,News Dealers/Newsstands,Wh Smith,Supplies and Services related expenditure,04/04/2018,2.22,Director of Adult Services
Hotels And Motels,Hotel Ibis,Hotel Ibis,Transport related expenditure,05/04/2018,81.67,Director of Adult Services
Business To Business Facility/,Industrial Supplies - Def,Arco Ltd,Supplies and Services related expenditure,03/04/2018,48.8,Director of Adult Services
Business Expenses/Services,Stationery Stores,Banner Group Ltd,Supplies and Services related expenditure,03/04/2018,9.5,Director of Adult Services
Business To Business Other Sup,Uniforms & Commercial Clothing,Arco Ltd,Supplies and Services related expenditure,04/04/2018,143.24,Director of Portsmouth International Port
Business Expenses/Services,Stationery Stores,Banner Group Ltd,Supplies and Services related expenditure,04/04/2018,17.55,Director of Children's Services and Education
Business Expenses/Services,Stationery Stores,Banner Group Ltd,Supplies and Services related expenditure,04/04/2018,97.33,Director of Children's Services and Education
Business Expenses/Services,Stationery Stores,Banner Group Ltd,Supplies and Services related expenditure,04/04/2018,250.32,Director of Adult Services
Business Expenses/Services,Stationery Stores,Banner Group Ltd,Supplies and Services related expenditure,04/04/2018,10.43,Director of Regeneration
Business To Business Eqpt/Furn,Book Stores,Amazon Svcs Eu-Uk Amazon.,Supplies and Services related expenditure,04/04/2018,8.6,Director of Adult Services
Business To Business Eqpt/Furn,Book Stores,Amazon Svcs Eu-Uk Amazon.,Supplies and Services related expenditure,04/04/2018,1.67,Director of Adult Services
Business Expenses/Services,Stationery Stores,Banner Group Ltd,Supplies and Services related expenditure,04/04/2018,6.12,Director of Children's Services and Education
Business Expenses/Services,Stationery Stores,Banner Group Ltd,Supplies and Services related expenditure,04/04/2018,5.3,Director of Children's Services and Education
Business Expenses/Services,Stationery Stores,Banner Group Ltd,Supplies and Services related expenditure,04/04/2018,54.44,Director of Children's Services and Education
Business Expenses/Services,Stationery Stores,Banner Group Ltd,Supplies and Services related expenditure,04/04/2018,14.05,Director of Public Health
Other Supplies,Misc Speciality Retail,Amazon Eu Amazon.Co.Uk,Supplies and Services related expenditure,04/04/2018,7.65,Director of Regeneration
Business Expenses/Services,Stationery Stores,Banner Group Ltd,Supplies and Services related expenditure,04/04/2018,23.65,Director of Finance & IT
Other Supplies,Misc Speciality Retail,Amazon Eu Amazon.Co.Uk,Supplies and Services related expenditure,04/04/2018,185.13,Director of Portsmouth International Port
Business To Business Eqpt/Furn,Book Stores,Amazon Svcs Eu-Uk Amazon.,Supplies and Services related expenditure,04/04/2018,19.3,Director of Children's Services and Education
Transportation,Passenger Railways,Southern Railway Web,Transport related expenditure,04/04/2018,28.2,Director of Community & Communication
Facilities/Repair Supplies,Lumber/Build. Supply Stores,Jewsons,Supplies and Services related expenditure,04/04/2018,44.99,"Director of Housing, Neighbourhood and Building Services"
Hotels And Motels,Premier Travel Inns,Premier Inn 44537180,Agency and Third Party Payments related expenditure,04/04/2018,1331.52,"Director of Housing, Neighbourhood and Building Services"
Business To Business Eqpt/Furn,Book Stores,Amazon Svcs Eu-Uk Amazon.,Supplies and Services related expenditure,04/04/2018,32.79,Director of Adult Services
Business To Business Eqpt/Furn,Book Stores,Amazon Svcs Eu-Uk Amazon.,Supplies and Services related expenditure,04/04/2018,33.17,Director of Adult Services
Business Expenses/Services,Stationery Stores,Banner Group Ltd,Supplies and Services related expenditure,04/04/2018,8.02,"Director of Housing, Neighbourhood and Building Services"
Business Expenses/Services,Stationery Stores,Banner Group Ltd,Supplies and Services related expenditure,04/04/2018,70.7,"Director of Housing, Neighbourhood and Building Services"
Miscellaneous,Sport/Recreational Camps,Outdoor Adventure Ltd,Supplies and Services related expenditure,04/04/2018,865,"Director of Housing, Neighbourhood and Building Services"
Business Expenses/Services,Stationery Stores,Banner Group Ltd,Supplies and Services related expenditure,04/04/2018,7.93,"Director of HR, Legal,  Audit & Performance"
Business Expenses/Services,Stationery Stores,Banner Group Ltd,Supplies and Services related expenditure,04/04/2018,12.68,Director of Finance & IT
Retail,Electronics Sales,Currys Online,Supplies and Services related expenditure,05/04/2018,99.99,Director of Adult Services
Medical,Lab/Med/Hospital Equipment,Wightman & Parrish,Premises related expenditure,05/04/2018,1242.55,"Director of Housing, Neighbourhood and Building Services"
Business Expenses/Services,Courier Services,Delivered UK Ltd,Supplies and Services related expenditure,05/04/2018,11.68,Director of Regeneration
Retail,Artist/Craft Shops,Toms Framing,Supplies and Services related expenditure,05/04/2018,300,Director of Regeneration
Miscellaneous,Fines,Combined Court Cen,Supplies and Services related expenditure,05/04/2018,455,Director of Children's Services and Education
Transportation,"Parking Lots, Meters, Garages",Portsmouth City Counci,Transport related expenditure,05/04/2018,2.92,Director of Children's Services and Education
Retail,Grocery Stores/Supermarkets,Sainsburys S/mkts,Supplies and Services related expenditure,05/04/2018,40,Director of Children's Services and Education
Government,Govt Serv - Default,Pcc Moto Payment,Supplies and Services related expenditure,05/04/2018,45,Director of Children's Services and Education
Business To Business Eqpt/Furn,Book Stores,Amazon Svcs Eu-Uk Amazon.,Supplies and Services related expenditure,05/04/2018,9.24,Director of Children's Services and Education
Eating And Drinking Places,Eating Places/Restaurants,Costa 1983,Supplies and Services related expenditure,05/04/2018,5,Director of Children's Services and Education
Eating And Drinking Places,Fast Food Restaurants,Ritazza - 18271415,Supplies and Services related expenditure,05/04/2018,5.99,Director of Children's Services and Education
Government,Govt Serv - Default,Portsmouth City Co,Transport related expenditure,05/04/2018,10,Director of Adult Services
Equipment And Furniture,Phone Serv/Equip Non-Util,Bt Bill Payment 1,Supplies and Services related expenditure,05/04/2018,25.68,Director of Adult Services
Auto/Vehicle Expenses,Auto Service Shops/Non Dealer,Www.Autowindscreen,Supplies and Services related expenditure,05/04/2018,62.26,"Director of Housing, Neighbourhood and Building Services"
Miscellaneous,Other Direct Marketers,Amazon UK Retail,Supplies and Services related expenditure,05/04/2018,19.16,Director of Children's Services and Education
Business To Business Eqpt/Furn,Book Stores,Amazon Svcs Eu-Uk Amazon.,Supplies and Services related expenditure,05/04/2018,11.65,Director of Children's Services and Education
Business To Business Eqpt/Furn,Book Stores,Amazon Svcs Eu-Uk Amazon.,Supplies and Services related expenditure,05/04/2018,12.38,Director of Children's Services and Education
Other Supplies,Discount Stores,Www.Argos.Co.Uk,Supplies and Services related expenditure,05/04/2018,55.98,Director of Adult Services
Business To Business Eqpt/Furn,Book Stores,Amazon Svcs Eu-Uk Amazon.,Supplies and Services related expenditure,05/04/2018,8.58,Director of Children's Services and Education
Government,Colleges/Univ/Jc/Profession,Citb,Agency and Third Party Payments related expenditure,05/04/2018,25,Director of Regeneration
Business To Business Facility/,Industrial Supplies - Def,Www.Arco.Co.Uk,Supplies and Services related expenditure,05/04/2018,26.98,Director of Regeneration
Business To Business Eqpt/Furn,Book Stores,Amazon Svcs Eu-Uk Amazon.,Supplies and Services related expenditure,05/04/2018,14.33,Director of Public Health
Equipment And Furniture,Phone Serv/Equip Non-Util,Maplin Portsmouth Po1,Supplies and Services related expenditure,05/04/2018,42.04,"Director of Housing, Neighbourhood and Building Services"
Facilities/Repair Supplies,Lumber/Build. Supply Stores,F H Brundle,Premises related expenditure,05/04/2018,376,Director of Portsmouth International Port
Facilities/Repair Supplies,Swimming Pools/Sales/Serv,Commercial Leisure,Supplies and Services related expenditure,05/04/2018,134.94,Director of Culture & City Development
Transportation,Passenger Railways,Ticketofficesale,Transport related expenditure,05/04/2018,31.2,Director of Community & Communication
Business Expenses/Services,Stationery Stores,Banner Group Ltd,Supplies and Services related expenditure,05/04/2018,-106.9,Director of Culture & City Development
Professional Services,Professional Services - Def,Hf Resolution Ltd,Agency and Third Party Payments related expenditure,05/04/2018,238.8,"Director of Housing, Neighbourhood and Building Services"
Business To Business Facility/,Industrial Supplies - Def,Www.Arco.Co.Uk,Supplies and Services related expenditure,05/04/2018,53.58,"Director of Housing, Neighbourhood and Building Services"
Medical,Lab/Med/Hospital Equipment,Wightman & Parrish Ltd,Premises related expenditure,05/04/2018,62.96,"Director of Housing, Neighbourhood and Building Services"
Eating And Drinking Places,Eating Places/Restaurants,Costa 1983,Supplies and Services related expenditure,05/04/2018,5.17,Director of Children's Services and Education
Eating And Drinking Places,Fast Food Restaurants,Ritazza - 18271415,Supplies and Services related expenditure,05/04/2018,6.12,Director of Children's Services and Education
Caterers Food,Caterers,Bfs Group,Supplies and Services related expenditure,05/04/2018,896.05,Director of Culture & City Development
Retail,Grocery Stores/Supermarkets,W M Morrisons,Supplies and Services related expenditure,05/04/2018,5,Director of Children's Services and Education
Retail,Grocery Stores/Supermarkets,W M Morrisons,Supplies and Services related expenditure,05/04/2018,3.35,Director of Children's Services and Education
Retail,Grocery Stores/Supermarkets,W M Morrisons,Supplies and Services related expenditure,05/04/2018,2.5,Director of Children's Services and Education
Retail,Grocery Stores/Supermarkets,W M Morrisons,Supplies and Services related expenditure,05/04/2018,2.93,Director of Children's Services and Education
Caterers Food,Caterers,Booker Limited Portsmouth,Premises related expenditure,05/04/2018,23.94,Director of Children's Services and Education
Retail,Grocery Stores/Supermarkets,Lidl Uk,Premises related expenditure,05/04/2018,9.34,Director of Children's Services and Education
Retail,Grocery Stores/Supermarkets,Lidl Uk,Supplies and Services related expenditure,05/04/2018,5.17,Director of Children's Services and Education
Retail,Grocery Stores/Supermarkets,Lidl Uk,Supplies and Services related expenditure,05/04/2018,0.54,Director of Children's Services and Education
Retail,Grocery Stores/Supermarkets,Lidl Uk,Supplies and Services related expenditure,05/04/2018,32.73,Director of Children's Services and Education
Business To Business Eqpt/Furn,Book Stores,Amazon Svcs Eu-Uk Amazon.,Supplies and Services related expenditure,05/04/2018,8.5,"Director of Housing, Neighbourhood and Building Services"
Government,Govt Serv - Default,Portsmouth City Co,Transport related expenditure,05/04/2018,63.33,Director of Children's Services and Education
Retail,Misc Food Stores - Default,Arun Meats,Supplies and Services related expenditure,05/04/2018,65.2,"Director of Housing, Neighbourhood and Building Services"
Retail,Electronics Sales,Currys Pc World,Supplies and Services related expenditure,05/04/2018,166.66,"Director of Housing, Neighbourhood and Building Services"
Miscellaneous,Member Organizations - Def,Www.Cips.Org,Supplies and Services related expenditure,05/04/2018,101,Director of Finance & IT
Miscellaneous,Member Organizations - Def,Www.Cips.Org,Employees related expenditure,05/04/2018,240,Director of Finance & IT
Retail,Antique Shops,Portsmouth Furniture C,Supplies and Services related expenditure,05/04/2018,1433.33,Director of Adult Services
Retail,Grocery Stores/Supermarkets,Tesco Stores 3055,Supplies and Services related expenditure,05/04/2018,1.67,"Director of Housing, Neighbourhood and Building Services"
Retail,Grocery Stores/Supermarkets,Tesco Store 3055,Supplies and Services related expenditure,05/04/2018,8.71,"Director of Housing, Neighbourhood and Building Services"
Business To Business Eqpt/Furn,Book Stores,Amazon UK Marketplace,Supplies and Services related expenditure,05/04/2018,20.72,"Director of Housing, Neighbourhood and Building Services"
Other Supplies,Misc Speciality Retail,Www.Lockdoctor.Biz,Supplies and Services related expenditure,05/04/2018,139.7,Director of Children's Services and Education
Government,Govt Serv - Default,Portsmouth City Co,Transport related expenditure,05/04/2018,31.67,Director of Children's Services and Education
Utilities,Utilities/Elec/Gas/H2O/Sani,Sepd Plc,Transport related expenditure,05/04/2018,254.47,Director of Regeneration
Freight/Courier/Warehouse Svcs,Public Warehousing,Lok N Store,Premises related expenditure,05/04/2018,265.83,Director of Culture & City Development
Government,Govt Serv - Default,Land Registry,Supplies and Services related expenditure,05/04/2018,3,"Director of Housing, Neighbourhood and Building Services"
Miscellaneous,Charitable/Soc Service Orgs,Salvation Army,Capital related expenditure,05/04/2018,325,OTHER
Freight/Courier/Warehouse Svcs,Public Warehousing,Safestore Limited,Premises related expenditure,05/04/2018,68.2,"Director of Housing, Neighbourhood and Building Services"
Freight/Courier/Warehouse Svcs,Public Warehousing,Safestore Limited,Premises related expenditure,05/04/2018,273.32,"Director of Housing, Neighbourhood and Building Services"
Hotels And Motels,Lodging/Hotels/Motels/Resorts,Haven Guest House,Agency and Third Party Payments related expenditure,05/04/2018,490,"Director of Housing, Neighbourhood and Building Services"
Hotels And Motels,Lodging/Hotels/Motels/Resorts,Haven Guest House,Agency and Third Party Payments related expenditure,05/04/2018,525,"Director of Housing, Neighbourhood and Building Services"
Business To Business Services,Misc Publishing & Printing,Today Magazines Lt,Supplies and Services related expenditure,05/04/2018,125.4,Director of Culture & City Development
Business To Business Eqpt/Furn,Book Stores,Paypal,Supplies and Services related expenditure,05/04/2018,395,Director of Culture & City Development
Eating And Drinking Places,Eating Places/Restaurants,Costa,Supplies and Services related expenditure,05/04/2018,1.67,Director of Adult Services
Transportation,Passenger Railways,Selfserve Ticket,Supplies and Services related expenditure,05/04/2018,4.1,Director of Adult Services
Government,Colleges/Univ/Jc/Profession,Paypal,Supplies and Services related expenditure,05/04/2018,60,OTHER
Miscellaneous,Fines,Combined Court Cen,Supplies and Services related expenditure,05/04/2018,121,"Director of Housing, Neighbourhood and Building Services"
Transportation,Passenger Railways,Ticketofficesale,Transport related expenditure,05/04/2018,12.7,Director of Adult Services
Miscellaneous,Continuity/Subscription Mercht,Google,Supplies and Services related expenditure,05/04/2018,500,Director of Children's Services and Education
Professional Services,Computer Program/Sys Design,Udemy,Supplies and Services related expenditure,05/04/2018,9.16,"Director of Housing, Neighbourhood and Building Services"
Business To Business Eqpt/Furn,Commercial Furniture,Www.Eronomics.Co.,Supplies and Services related expenditure,05/04/2018,24.75,"Director of HR, Legal,  Audit & Performance"
Business To Business Eqpt/Furn,Book Stores,Amazon UK Marketplace,Supplies and Services related expenditure,05/04/2018,12.48,Director of Children's Services and Education
Government,Govt Serv - Default,Portsmouth City Co,Supplies and Services related expenditure,05/04/2018,2.92,Director of Children's Services and Education
Retail,Grocery Stores/Supermarkets,Tesco Stores 4579,Supplies and Services related expenditure,05/04/2018,5.67,Director of Children's Services and Education
Transportation,Bus Lines/Charter/Tour,Vision Travel,Transport related expenditure,05/04/2018,175,Director of Children's Services and Education
Government,Govt Serv - Default,Land Registry,Supplies and Services related expenditure,05/04/2018,3,Director of Culture & City Development
Other Supplies,Variety Stores,Peacock Stores Ltd,Supplies and Services related expenditure,05/04/2018,5.6,Director of Adult Services
Entertainment,Bands/Orchestras/Entertain,Bh Live Active - Mount,Supplies and Services related expenditure,05/04/2018,6,Director of Adult Services
Transportation,Local Commuter Transport,Www.Gosportferry.Co.Uk,Transport related expenditure,05/04/2018,9.3,Director of Children's Services and Education
Miscellaneous,Sport/Recreational Camps,Bc-Gos,Agency and Third Party Payments related expenditure,05/04/2018,10.33,Director of Children's Services and Education
Other Supplies,Department Stores,Southern Co-Op 0021,Supplies and Services related expenditure,05/04/2018,4.67,Director of Children's Services and Education
Other Supplies,Department Stores,Southern Co-Op 0021,Supplies and Services related expenditure,05/04/2018,8.4,Director of Children's Services and Education
Automobile Services & Supplies,Service Stations,Shell Fratton 178,Transport related expenditure,05/04/2018,28.67,Director of Adult Services
Government,Govt Serv - Default,Portsmouth City Co,Supplies and Services related expenditure,05/04/2018,3.5,Director of Children's Services and Education
Government,Govt Serv - Default,Portsmouth City Co,Supplies and Services related expenditure,05/04/2018,3.5,Director of Children's Services and Education
Government,Govt Serv - Default,Havant Brgh Council,Capital related expenditure,05/04/2018,116,OTHER
Automobile Services & Supplies,Service Stations,Shell Fratton 178,Supplies and Services related expenditure,05/04/2018,19.86,"Director of Housing, Neighbourhood and Building Services"
Facilities/Repair Supplies,Drapery & Upholstery Stores,Evowrap Films Vinyl,Premises related expenditure,05/04/2018,26,Director of Portsmouth International Port
Facilities/Repair Supplies,Drapery & Upholstery Stores,Evowrap Films Vinyl,Premises related expenditure,05/04/2018,4,Director of Portsmouth International Port
Business To Business Eqpt/Furn,Stationery/Office Supplies,Tillrollsdirect.Co,Supplies and Services related expenditure,05/04/2018,90.5,Director of Culture & City Development
Business To Business Eqpt/Furn,Stationery/Office Supplies,Repropoint - Woking,Supplies and Services related expenditure,05/04/2018,37.85,"Director of Housing, Neighbourhood and Building Services"
Transportation,Steamship/Cruise Lines,Tall Ships Ltd,Agency and Third Party Payments related expenditure,05/04/2018,120,Director of Children's Services and Education
Transportation,Steamship/Cruise Lines,Tall Ships Ltd,Agency and Third Party Payments related expenditure,05/04/2018,120,Director of Children's Services and Education
Business To Business Eqpt/Furn,Book Stores,Amazon UK Marketplace,Supplies and Services related expenditure,05/04/2018,15.79,Director of Adult Services
Business To Business Eqpt/Furn,Book Stores,Amazon UK Marketplace,Supplies and Services related expenditure,05/04/2018,4.74,Director of Adult Services
Transportation,Passenger Railways,Swtrains Cosham Sst,Transport related expenditure,05/04/2018,4,"Director of Housing, Neighbourhood and Building Services"
Transportation,Passenger Railways,Selfserve Ticket,Transport related expenditure,05/04/2018,4.08,"Director of Housing, Neighbourhood and Building Services"
Medical,Lab/Med/Hospital Equipment,Wightman & Parrish,Supplies and Services related expenditure,05/04/2018,17.92,Director of Adult Services
Government,Govt Serv - Default,Hampshire County Counc,Supplies and Services related expenditure,05/04/2018,19.18,Director of Adult Services
Business To Business Other Sup,Uniforms & Commercial Clothing,Arco Ltd,Supplies and Services related expenditure,05/04/2018,29.99,Director of Portsmouth International Port
Miscellaneous,Charitable/Soc Service Orgs,Wp-Ymca Fairthorne,Supplies and Services related expenditure,05/04/2018,84,Director of Children's Services and Education
Hotels And Motels,Premier Travel Inns,Premier Inn44537355,Supplies and Services related expenditure,05/04/2018,-145,Director of Children's Services and Education
Hotels And Motels,Premier Travel Inns,Premier Inn44537355,Supplies and Services related expenditure,05/04/2018,145,Director of Children's Services and Education
Hotels And Motels,Premier Travel Inns,Premier Inn44017900,Supplies and Services related expenditure,05/04/2018,122.5,Director of Children's Services and Education
Business Expenses/Services,Stationery Stores,Banner Group Ltd,Supplies and Services related expenditure,05/04/2018,26.03,Director of Adult Services
Equipment And Furniture,Furniture/Equip Stores,Fastpart/Ideal Outlet,Premises related expenditure,05/04/2018,407.38,Director of Portsmouth International Port
Business Expenses/Services,Stationery Stores,Banner Group Ltd,Supplies and Services related expenditure,05/04/2018,59.19,Director of Culture & City Development
Entertainment,Amusement Parks/Circus,Thorpe Park Cc,Supplies and Services related expenditure,05/04/2018,299.58,"Director of Housing, Neighbourhood and Building Services"
Business Expenses/Services,Stationery Stores,Banner Group Ltd,Supplies and Services related expenditure,05/04/2018,13.66,Director of Community & Communication
Retail,Grocery Stores/Supermarkets,Farmfoods- Portsmo,Supplies and Services related expenditure,05/04/2018,100,"Director of Housing, Neighbourhood and Building Services"
Transportation,Passenger Railways,Sw Railway,Transport related expenditure,05/04/2018,61.6,Director of Finance & IT
Eating And Drinking Places,Bars/Taverns/Lounges/Discos,Sailmaker,Agency and Third Party Payments related expenditure,05/04/2018,22.7,Director of Children's Services and Education
Business Expenses/Services,Stationery Stores,Banner Group Ltd,Supplies and Services related expenditure,05/04/2018,6.27,Director of Regeneration
Business Expenses/Services,Stationery Stores,Banner Group Ltd,Supplies and Services related expenditure,05/04/2018,7.54,Director of Regeneration
Business Expenses/Services,Stationery Stores,Banner Group Ltd,Supplies and Services related expenditure,05/04/2018,7.38,Director of Culture & City Development
Business Expenses/Services,Stationery Stores,Banner Group Ltd,Supplies and Services related expenditure,05/04/2018,5.85,Director of Culture & City Development
Business Expenses/Services,Stationery Stores,Banner Group Ltd,Supplies and Services related expenditure,05/04/2018,27.96,Director of Finance & IT
Business Expenses/Services,Stationery Stores,Banner Group Ltd,Supplies and Services related expenditure,05/04/2018,36.69,Director of Children's Services and Education
Business Expenses/Services,Stationery Stores,Banner Group Ltd,Supplies and Services related expenditure,05/04/2018,221.52,Director of Children's Services and Education
Eating And Drinking Places,Bars/Taverns/Lounges/Discos,Farmhouse,Supplies and Services related expenditure,05/04/2018,1.71,Director of Children's Services and Education
Eating And Drinking Places,Bars/Taverns/Lounges/Discos,Farmhouse,Supplies and Services related expenditure,05/04/2018,1.71,Director of Children's Services and Education
Eating And Drinking Places,Bars/Taverns/Lounges/Discos,Farmhouse,Supplies and Services related expenditure,05/04/2018,1.71,Director of Children's Services and Education
Eating And Drinking Places,Bars/Taverns/Lounges/Discos,Farmhouse,Supplies and Services related expenditure,05/04/2018,16.94,Director of Children's Services and Education
Eating And Drinking Places,Bars/Taverns/Lounges/Discos,Farmhouse,Supplies and Services related expenditure,05/04/2018,16.94,Director of Children's Services and Education
Eating And Drinking Places,Bars/Taverns/Lounges/Discos,Farmhouse,Supplies and Services related expenditure,05/04/2018,16.94,Director of Children's Services and Education
Medical,Lab/Med/Hospital Equipment,Wightman & Parrish,Premises related expenditure,06/04/2018,580.47,"Director of Housing, Neighbourhood and Building Services"
Miscellaneous,Charitable/Soc Service Orgs,Award Events,Employees related expenditure,06/04/2018,100,"Director of Housing, Neighbourhood and Building Services"
Medical,Lab/Med/Hospital Equipment,Wightman & Parrish,Premises related expenditure,06/04/2018,122.58,"Director of Housing, Neighbourhood and Building Services"
Retail,Shoe Repair/Shine/Hat Clean,Timpson Ltd,Premises related expenditure,06/04/2018,5,Director of Culture & City Development
Business To Business Facility/,Industrial Supplies - Def,Www.Arco.Co.Uk,Supplies and Services related expenditure,06/04/2018,22.49,"Director of Housing, Neighbourhood and Building Services"
Business To Business Facility/,Industrial Supplies - Def,Www.Arco.Co.Uk,Supplies and Services related expenditure,06/04/2018,112.29,"Director of Housing, Neighbourhood and Building Services"
Medical,Lab/Med/Hospital Equipment,Wightman & Parrish Ltd,Premises related expenditure,06/04/2018,349.52,"Director of Housing, Neighbourhood and Building Services"
Transportation,Passenger Railways,Sw Railway,Transport related expenditure,06/04/2018,47.5,Director of Adult Services
Business Expenses/Services,Postage Stamps,Post Office Counter,Supplies and Services related expenditure,06/04/2018,56.88,Director of Children's Services and Education
Facilities/Repair Supplies,Lawn/Garden Supply/Nursery,Rigby Taylor,Supplies and Services related expenditure,06/04/2018,851.4,Director of Culture & City Development
Transportation,"Parking Lots, Meters, Garages",Portsmouth City Counci,Transport related expenditure,06/04/2018,2.17,Director of Children's Services and Education
Transportation,"Parking Lots, Meters, Garages",Rcp Parking Ltd,Transport related expenditure,06/04/2018,5,Director of Children's Services and Education
Retail,Grocery Stores/Supermarkets,Tesco Stores 6002,Supplies and Services related expenditure,06/04/2018,137.05,Director of Children's Services and Education
Retail,Grocery Stores/Supermarkets,Tesco Stores 6002,Supplies and Services related expenditure,06/04/2018,8,Director of Children's Services and Education
Auto/Vehicle Expenses,Auto Body Repair Shops,A & J Lawrence Acciden,Transport related expenditure,06/04/2018,27,Director of Regeneration
Auto/Vehicle Expenses,Auto Body Repair Shops,A & J Lawrence Acciden,Transport related expenditure,06/04/2018,179.09,"Director of Housing, Neighbourhood and Building Services"
Auto/Vehicle Expenses,Auto Body Repair Shops,A & J Lawrence Acciden,Transport related expenditure,06/04/2018,174.06,"Director of Housing, Neighbourhood and Building Services"
Auto/Vehicle Expenses,Auto Body Repair Shops,A & J Lawrence Acciden,Transport related expenditure,06/04/2018,181.93,"Director of Housing, Neighbourhood and Building Services"
Business To Business Facility/,Electrical Parts/Equipment,Www.Brinsea.Co.Uk,Supplies and Services related expenditure,06/04/2018,258.66,Director of Children's Services and Education
Utilities,Phone Serv/Equip Utility,Ee & T-Mobile,Supplies and Services related expenditure,06/04/2018,46.34,Director of Adult Services
Utilities,Phone Serv/Equip Utility,Virgin Media Pymts,Supplies and Services related expenditure,06/04/2018,148.78,Director of Adult Services
Facilities Maintenance,Specialty Cleaning/Polishing,C J S Portsmouth Ltd,Premises related expenditure,06/04/2018,23.7,"Director of Housing, Neighbourhood and Building Services"
Medical,Lab/Med/Hospital Equipment,Wightman & Parrish,Premises related expenditure,06/04/2018,118,"Director of Housing, Neighbourhood and Building Services"
Medical,Lab/Med/Hospital Equipment,Wightman & Parrish,Premises related expenditure,06/04/2018,218.72,"Director of Housing, Neighbourhood and Building Services"
Facilities/Repair Supplies,Lumber/Build. Supply Stores,B & Q 1238,Supplies and Services related expenditure,06/04/2018,1.59,"Director of Housing, Neighbourhood and Building Services"
Medical,Lab/Med/Hospital Equipment,Wightman & Parrish,Premises related expenditure,06/04/2018,582.5,"Director of Housing, Neighbourhood and Building Services"
Retail,Grocery Stores/Supermarkets,Tesco Store 3048,Supplies and Services related expenditure,06/04/2018,20,Director of Children's Services and Education
Retail,Grocery Stores/Supermarkets,Tesco Stores 4579,Supplies and Services related expenditure,06/04/2018,162.81,Director of Children's Services and Education
Transportation,Passenger Railways,Trainline,Transport related expenditure,06/04/2018,51.25,Director of Children's Services and Education
Retail,Music Stores/Pianos,Www.Gear4music.Com,Supplies and Services related expenditure,06/04/2018,119.15,Director of Children's Services and Education
Other Supplies,Discount Stores,Argos Direct,Supplies and Services related expenditure,06/04/2018,252.95,Director of Adult Services
Retail,Grocery Stores/Supermarkets,Tesco Stores 4579,Supplies and Services related expenditure,06/04/2018,82.5,Director of Culture & City Development
Facilities/Repair Supplies,Lawn/Garden Supply/Nursery,Carters Of Swanwic,Supplies and Services related expenditure,06/04/2018,20,"Director of Housing, Neighbourhood and Building Services"
Facilities/Repair Supplies,Lawn/Garden Supply/Nursery,Carters Of Swanwic,Supplies and Services related expenditure,06/04/2018,103.68,"Director of Housing, Neighbourhood and Building Services"
Facilities/Repair Supplies,Lawn/Garden Supply/Nursery,Carters Of Swanwic,Supplies and Services related expenditure,06/04/2018,449,"Director of Housing, Neighbourhood and Building Services"
Business To Business Facility/,Industrial Supplies - Def,Www.Arco.Co.Uk,Supplies and Services related expenditure,06/04/2018,162.67,"Director of Housing, Neighbourhood and Building Services"
Facilities Maintenance,Clean/Maint/Janitoral Serv,Candor Services Ltd,Supplies and Services related expenditure,06/04/2018,637.52,"Director of Housing, Neighbourhood and Building Services"
Facilities/Repair Supplies,Lumber/Build. Supply Stores,B & Q 1260,Premises related expenditure,06/04/2018,54.49,Director of Children's Services and Education
Government,Govt Serv - Default,Cdc Car Parks 1,Capital related expenditure,06/04/2018,4.67,OTHER
Equipment And Furniture,Household Appliance Stores,Electric Water Hea,Premises related expenditure,06/04/2018,27.25,Director of Portsmouth International Port
Retail,Sporting Goods Stores,Sq *portsmouth Trophy Cen,Supplies and Services related expenditure,06/04/2018,22.08,Director of Children's Services and Education
Miscellaneous,Other Direct Marketers,Amazon UK Retail,Supplies and Services related expenditure,06/04/2018,14.11,Director of Children's Services and Education
Miscellaneous,Other Direct Marketers,Amazon UK Retail,Supplies and Services related expenditure,06/04/2018,145.89,Director of Children's Services and Education
Business To Business Eqpt/Furn,Book Stores,Amazon Svcs Eu-Uk Amazon.,Supplies and Services related expenditure,06/04/2018,41.61,"Director of Housing, Neighbourhood and Building Services"
Business To Business Eqpt/Furn,Book Stores,Amazon UK Marketplace,Supplies and Services related expenditure,06/04/2018,117.28,"Director of Housing, Neighbourhood and Building Services"
Business Services,Business Services - Default,Fast Key Services Limi,Supplies and Services related expenditure,06/04/2018,6.05,Director of Culture & City Development
Eating And Drinking Places,Fast Food Restaurants,Costa Coffee-Norbury,Supplies and Services related expenditure,06/04/2018,5.83,Director of Children's Services and Education
Transportation,Passenger Railways,Ticketofficesale,Transport related expenditure,06/04/2018,27.83,Director of Children's Services and Education
Retail,Grocery Stores/Supermarkets,Aldi 30 775,Supplies and Services related expenditure,06/04/2018,3.81,Director of Adult Services
Retail,Grocery Stores/Supermarkets,Www.Iceland.Co.Uk,Supplies and Services related expenditure,06/04/2018,71.65,Director of Adult Services
Business To Business Eqpt/Furn,Book Stores,Amazon UK Marketplace,Supplies and Services related expenditure,06/04/2018,71.65,Director of Portsmouth International Port
Government,Govt Serv - Default,Portsmouth City Co,Transport related expenditure,06/04/2018,31.67,Director of Adult Services
Business To Business Facility/,Industrial Supplies - Def,Www.Arco.Co.Uk,Supplies and Services related expenditure,06/04/2018,-40.04,Director of Community & Communication
Other Supplies,Discount Stores,B&m Retail,Supplies and Services related expenditure,06/04/2018,17.71,Director of Children's Services and Education
Other Supplies,Discount Stores,B&m Retail,Supplies and Services related expenditure,06/04/2018,11.69,Director of Children's Services and Education
Other Supplies,Discount Stores,Argos Ltd,Supplies and Services related expenditure,06/04/2018,20.83,"Director of Housing, Neighbourhood and Building Services"
Other Supplies,Department Stores,Southern Co-Op 0008,Supplies and Services related expenditure,06/04/2018,3.1,Director of Children's Services and Education
Business To Business Facility/,Industrial Supplies - Def,Www.Arco.Co.Uk,Supplies and Services related expenditure,06/04/2018,14.59,Director of Regeneration
Transportation,"Parking Lots, Meters, Garages",Gunwharf Quays,Transport related expenditure,06/04/2018,2.42,Director of Children's Services and Education
Business To Business Facility/,Hardware Equipment/Supplies,Croma Locksmiths & Sec,Premises related expenditure,06/04/2018,24.62,Director of Culture & City Development
Facilities/Repair Supplies,Lumber/Build. Supply Stores,B & Q 1260,Premises related expenditure,06/04/2018,95,Director of Culture & City Development
Medical,Lab/Med/Hospital Equipment,Wightman & Parrish Ltd,Supplies and Services related expenditure,06/04/2018,400.32,Director of Adult Services
Facilities/Repair Supplies,Lumber/Build. Supply Stores,B & Q 1260,Premises related expenditure,06/04/2018,54.19,Director of Culture & City Development
Business Services,Business Services - Default,Payatrader,Supplies and Services related expenditure,06/04/2018,50,Director of Children's Services and Education
Business Services,Business Services - Default,Payatrader,Supplies and Services related expenditure,06/04/2018,50,Director of Children's Services and Education
Miscellaneous,Charitable/Soc Service Orgs,Paypal,Supplies and Services related expenditure,06/04/2018,32.93,Director of Adult Services
Transportation,Passenger Railways,Ticketofficesale,Supplies and Services related expenditure,06/04/2018,43.4,Director of Adult Services
Business Expenses/Services,Postage Stamps,Post Office Counter,Supplies and Services related expenditure,06/04/2018,5.94,OTHER
Business To Business Services,Misc Publishing & Printing,Vistaprint,Supplies and Services related expenditure,06/04/2018,133.35,OTHER
Facilities/Repair Supplies,Lumber/Build. Supply Stores,Tp Portsmouth,Supplies and Services related expenditure,06/04/2018,60.18,"Director of Housing, Neighbourhood and Building Services"
Facilities/Repair Supplies,Lumber/Build. Supply Stores,Tp Portsmouth,Supplies and Services related expenditure,06/04/2018,70,"Director of Housing, Neighbourhood and Building Services"
Facilities/Repair Supplies,Lumber/Build. Supply Stores,Tp Portsmouth,Supplies and Services related expenditure,06/04/2018,-70,"Director of Housing, Neighbourhood and Building Services"
Business To Business Other Sup,Uniforms & Commercial Clothing,Arco Ltd,Premises related expenditure,06/04/2018,4.93,"Director of Housing, Neighbourhood and Building Services"
Retail,Pet Stores/Food & Supply,Pets At Home Ltd,Supplies and Services related expenditure,06/04/2018,5.83,Director of Children's Services and Education
Other Supplies,Misc Speciality Retail,Amazon Eu Amazon.Co.Uk,Supplies and Services related expenditure,06/04/2018,10,Director of Children's Services and Education
Other Supplies,Misc Speciality Retail,Amazon Eu Amazon.Co.Uk,Supplies and Services related expenditure,06/04/2018,33.33,Director of Children's Services and Education
Business To Business Eqpt/Furn,Book Stores,Amazon Svcs Eu-Uk Amazon.,Supplies and Services related expenditure,06/04/2018,8.33,Director of Children's Services and Education
Government,Govt Serv - Default,Pcc Moto Payment,Supplies and Services related expenditure,06/04/2018,12,"Director of Housing, Neighbourhood and Building Services"
Entertainment,Motion Picture Theatres,Groundlings Theatre Co,Supplies and Services related expenditure,06/04/2018,8,Director of Children's Services and Education
Entertainment,Bands/Orchestras/Entertain,Bowlplex,Supplies and Services related expenditure,06/04/2018,17.47,Director of Children's Services and Education
Entertainment,Motion Picture Theatres,Groundlings Theatre Co,Supplies and Services related expenditure,06/04/2018,24,Director of Children's Services and Education
Retail,Grocery Stores/Supermarkets,One Stop 1350,Supplies and Services related expenditure,06/04/2018,1.29,Director of Children's Services and Education
Business To Business Facility/,Hardware Equipment/Supplies,Croma Locksmiths & Sec,Premises related expenditure,06/04/2018,55.32,Director of Children's Services and Education
Business Expenses/Services,News Dealers/Newsstands,Spar,Supplies and Services related expenditure,06/04/2018,5.04,Director of Children's Services and Education
Government,Govt Serv - Default,Portsmouth City Co,Supplies and Services related expenditure,06/04/2018,12,Director of Children's Services and Education
Business Expenses/Services,Stationery Stores,Banner Group Ltd,Supplies and Services related expenditure,06/04/2018,-74.88,"Director of HR, Legal,  Audit & Performance"
Government,Govt Serv - Default,Dvla Vehicle Tax,Supplies and Services related expenditure,06/04/2018,210.42,"Director of Housing, Neighbourhood and Building Services"
Government,Govt Serv - Default,Dvla Vehicle Tax,Supplies and Services related expenditure,06/04/2018,210.42,"Director of Housing, Neighbourhood and Building Services"
Government,Govt Serv - Default,Dvla Vehicle Tax,Supplies and Services related expenditure,06/04/2018,243.75,"Director of Housing, Neighbourhood and Building Services"
Transportation,"Parking Lots, Meters, Garages",Http://Www.Southampton,Supplies and Services related expenditure,06/04/2018,31,Director of Children's Services and Education
Transportation,Travel Agencies,Gotogate Knvr0d-Mzlnam,Transport related expenditure,06/04/2018,329.28,Director of Children's Services and Education
Retail,Grocery Stores/Supermarkets,Fruit Chief,Supplies and Services related expenditure,06/04/2018,136.11,Director of Culture & City Development
Facilities/Repair Supplies,Lumber/Build. Supply Stores,F H Brundle Worldpay-D,Supplies and Services related expenditure,06/04/2018,141.3,Director of Regeneration
Business To Business Eqpt/Furn,Book Stores,Amazon Svcs Eu-Uk Amazon.,Supplies and Services related expenditure,06/04/2018,2.7,Director of Adult Services
Business To Business Eqpt/Furn,Book Stores,Amazon Svcs Eu-Uk Amazon.,Supplies and Services related expenditure,06/04/2018,0.64,Director of Adult Services
Other Supplies,Misc Speciality Retail,Amazon Eu Amazon.Co.Uk,Supplies and Services related expenditure,06/04/2018,5.89,Director of Adult Services
Other Supplies,Misc Speciality Retail,Amazon Eu Amazon.Co.Uk,Supplies and Services related expenditure,06/04/2018,1.77,Director of Adult Services
Eating And Drinking Places,Fast Food Restaurants,Lucky Takeaway Ltd,Supplies and Services related expenditure,06/04/2018,40.2,Director of Children's Services and Education
Facilities/Repair Supplies,Lumber/Build. Supply Stores,B & Q 1260,Supplies and Services related expenditure,06/04/2018,77.52,"Director of Housing, Neighbourhood and Building Services"
Transportation,Transportation Svcs - Default,Aqua Cars,Transport related expenditure,06/04/2018,44.4,Director of Adult Services
Facilities/Repair Services,Small Appliance Repair Def,Hooper Services Ltd,Supplies and Services related expenditure,06/04/2018,95.31,Director of Adult Services
Retail,Sporting Goods Stores,C.N. Unwin Ltd,Transport related expenditure,06/04/2018,145,Director of Adult Services
Facilities/Repair Supplies,Lumber/Build. Supply Stores,B & Q 1260,Premises related expenditure,07/04/2018,20.4,Director of Children's Services and Education
Retail,Grocery Stores/Supermarkets,Sainsburys S/mkt,Supplies and Services related expenditure,07/04/2018,8.33,Director of Adult Services
Other Supplies,Variety Stores,T K Maxx,Supplies and Services related expenditure,07/04/2018,10.83,Director of Adult Services
Other Supplies,Discount Stores,Poundland Ltd 1477,Supplies and Services related expenditure,07/04/2018,1.67,"Director of Housing, Neighbourhood and Building Services"
Other Supplies,Discount Stores,The Works,Supplies and Services related expenditure,07/04/2018,3.33,"Director of Housing, Neighbourhood and Building Services"
Retail,Grocery Stores/Supermarkets,Tesco Stores 2322,Supplies and Services related expenditure,07/04/2018,3.67,"Director of Housing, Neighbourhood and Building Services"
Facilities/Repair Supplies,Lumber/Build. Supply Stores,Screwfix Direct Lt,Supplies and Services related expenditure,07/04/2018,220.82,Director of Portsmouth International Port
Business To Business Facility/,Hardware Equipment/Supplies,Orbitalfasteners.Co.Uk,Supplies and Services related expenditure,07/04/2018,109.45,"Director of Housing, Neighbourhood and Building Services"
Business To Business Facility/,Industrial Supplies - Def,Arco Ltd,Supplies and Services related expenditure,07/04/2018,26.49,Director of Adult Services
Facilities/Repair Supplies,Lumber/Build. Supply Stores,B & Q 1260,Premises related expenditure,07/04/2018,2.65,Director of Children's Services and Education
Miscellaneous,Continuity/Subscription Mercht,Google,Supplies and Services related expenditure,07/04/2018,500,Director of Children's Services and Education
Retail,Grocery Stores/Supermarkets,Tesco Stores 5153,Supplies and Services related expenditure,07/04/2018,4,Director of Children's Services and Education
Other Supplies,Discount Stores,Poundwise Milton,Agency and Third Party Payments related expenditure,07/04/2018,7.16,Director of Children's Services and Education
Business To Business Eqpt/Furn,Book Stores,Amazon Svcs Eu-Uk Amazon.,Supplies and Services related expenditure,07/04/2018,7.65,Director of Adult Services
Business To Business Eqpt/Furn,Book Stores,Amazon Svcs Eu-Uk Amazon.,Supplies and Services related expenditure,07/04/2018,2.3,Director of Adult Services
Automobile Services & Supplies,Service Stations,Milton Road Servic,Premises related expenditure,07/04/2018,0.91,Director of Children's Services and Education
Automobile Services & Supplies,Service Stations,Emsworth Sf Connect,Supplies and Services related expenditure,07/04/2018,29.92,"Director of Housing, Neighbourhood and Building Services"
Miscellaneous,Other Direct Marketers,Amazon UK Retail,Supplies and Services related expenditure,07/04/2018,31.94,"Director of HR, Legal,  Audit & Performance"
Other Supplies,Discount Stores,Argos Farlington I,Supplies and Services related expenditure,08/04/2018,58.32,Director of Culture & City Development
Retail,Grocery Stores/Supermarkets,Asda Superstore,Supplies and Services related expenditure,08/04/2018,1.25,"Director of Housing, Neighbourhood and Building Services"
Retail,Grocery Stores/Supermarkets,Wm Morrisons,Supplies and Services related expenditure,08/04/2018,16.67,Director of Children's Services and Education
Business To Business Eqpt/Furn,Book Stores,Amazon Svcs Eu-Uk Amazon.,Supplies and Services related expenditure,08/04/2018,112.13,"Director of Housing, Neighbourhood and Building Services"
Hotels And Motels,Holiday Inn,Holiday Inns,Supplies and Services related expenditure,08/04/2018,87,Director of Children's Services and Education
Other Supplies,Department Stores,Southern Co-Op 0019,Supplies and Services related expenditure,08/04/2018,6.05,"Director of Housing, Neighbourhood and Building Services"
Business To Business Eqpt/Furn,Book Stores,Amazon UK Marketplace,Supplies and Services related expenditure,08/04/2018,11.65,Director of Finance & IT
Miscellaneous,Other Direct Marketers,Amazon UK Retail,Supplies and Services related expenditure,08/04/2018,17.74,Director of Culture & City Development
Entertainment,Amusement/Rec Serv - Def,Playzone Portsmouth,Agency and Third Party Payments related expenditure,08/04/2018,2.92,Director of Children's Services and Education
Entertainment,Amusement/Rec Serv - Def,Playzone Portsmouth,Agency and Third Party Payments related expenditure,08/04/2018,8.29,Director of Children's Services and Education
Other Supplies,Department Stores,Southern Co-Op 0008,Supplies and Services related expenditure,08/04/2018,0.04,Director of Children's Services and Education
Other Supplies,Department Stores,Southern Co-Op 0008,Supplies and Services related expenditure,08/04/2018,3,Director of Children's Services and Education
Retail,Grocery Stores/Supermarkets,W M Morrisons,Supplies and Services related expenditure,08/04/2018,10.13,Director of Children's Services and Education
Other Supplies,Misc Speciality Retail,Amazon Eu Amazon.Co.Uk,Supplies and Services related expenditure,08/04/2018,9.8,Director of Adult Services
Other Supplies,Misc Speciality Retail,Amazon Eu Amazon.Co.Uk,Supplies and Services related expenditure,08/04/2018,3.48,Director of Adult Services
Facilities/Repair Supplies,Lumber/Build. Supply Stores,Homebase Ltd 207,Premises related expenditure,08/04/2018,8.33,Director of Children's Services and Education
Business To Business Other Sup,Uniforms & Commercial Clothing,Arco Ltd,Supplies and Services related expenditure,04/04/2018,66.58,"Director of Housing, Neighbourhood and Building Services"
Business Expenses/Services,Stationery Stores,Banner Group Ltd,Supplies and Services related expenditure,06/04/2018,33.04,"Director of Housing, Neighbourhood and Building Services"
Business Expenses/Services,Stationery Stores,Banner Group Ltd,Supplies and Services related expenditure,06/04/2018,74.21,"Director of Housing, Neighbourhood and Building Services"
Business Expenses/Services,Stationery Stores,Banner Group Ltd,Supplies and Services related expenditure,06/04/2018,3.4,Director of Community & Communication
Business Expenses/Services,Stationery Stores,Banner Group Ltd,Supplies and Services related expenditure,06/04/2018,18,"Director of Housing, Neighbourhood and Building Services"
Business Expenses/Services,Stationery Stores,Banner Group Ltd,Supplies and Services related expenditure,06/04/2018,33.87,Director of Culture & City Development
Business Expenses/Services,Stationery Stores,Banner Group Ltd,Supplies and Services related expenditure,06/04/2018,42.39,Director of Children's Services and Education
Business Expenses/Services,Stationery Stores,Banner Group Ltd,Supplies and Services related expenditure,06/04/2018,54.16,Director of Children's Services and Education
Business Expenses/Services,Stationery Stores,Banner Group Ltd,Supplies and Services related expenditure,06/04/2018,7.85,"Director of Housing, Neighbourhood and Building Services"
Business Expenses/Services,Stationery Stores,Banner Group Ltd,Supplies and Services related expenditure,06/04/2018,38.53,"Director of Housing, Neighbourhood and Building Services"
Business Expenses/Services,Stationery Stores,Banner Group Ltd,Supplies and Services related expenditure,06/04/2018,7.38,Director of Regeneration
Business Expenses/Services,Stationery Stores,Banner Group Ltd,Supplies and Services related expenditure,06/04/2018,10.84,Director of Regeneration
Business Expenses/Services,Stationery Stores,Banner Group Ltd,Supplies and Services related expenditure,06/04/2018,12.14,Director of Children's Services and Education
Business Expenses/Services,Stationery Stores,Banner Group Ltd,Supplies and Services related expenditure,06/04/2018,7.16,Director of Children's Services and Education
Business Expenses/Services,Stationery Stores,Banner Group Ltd,Supplies and Services related expenditure,06/04/2018,118.68,Director of Finance & IT
Professional Services,Professional Services - Def,Www.Mib.Org.Uk,Supplies and Services related expenditure,09/04/2018,4,Director of Finance & IT
Facilities/Repair Supplies,Lumber/Build. Supply Stores,B & Q 1260,Supplies and Services related expenditure,09/04/2018,10,Director of Adult Services
Facilities/Repair Supplies,Glass/Paint/Wallpaper Store,Abc Glass Processing L,Supplies and Services related expenditure,09/04/2018,84.25,Director of Regeneration
Business Services,Advertising Services,Pfi Sign Solution V/T,Supplies and Services related expenditure,09/04/2018,530,Director of Regeneration
Government,Govt Serv - Default,Dvla Vehicle Tax,Transport related expenditure,09/04/2018,210.42,"Director of Housing, Neighbourhood and Building Services"
Business To Business Facility/,Industrial Supplies - Def,Arco Ltd,Supplies and Services related expenditure,09/04/2018,159.25,"Director of Housing, Neighbourhood and Building Services"
Transportation,Local Commuter Transport,Gosport Ferry Ltd,Supplies and Services related expenditure,09/04/2018,2.92,Director of Regeneration
Utilities,Phone Serv/Equip Utility,Textanywhere Ltd,Supplies and Services related expenditure,09/04/2018,41.7,Director of Adult Services
Facilities/Repair Supplies,Lawn/Garden Supply/Nursery,Rigby Taylor,Supplies and Services related expenditure,09/04/2018,82.5,Director of Culture & City Development
Business To Business Facility/,Industrial Supplies - Def,Www.Arco.Co.Uk,Supplies and Services related expenditure,09/04/2018,98.57,Director of Culture & City Development
Business To Business Facility/,Industrial Supplies - Def,Www.Arco.Co.Uk,Transport related expenditure,09/04/2018,180.87,Director of Culture & City Development
Auto/Vehicle Expenses,Auto Service Shops/Non Dealer,Boarhunt Group Portsmout,Transport related expenditure,09/04/2018,449.62,Director of Culture & City Development
Retail,Pet Stores/Food & Supply,Pets At Home Ltd,Supplies and Services related expenditure,09/04/2018,4,Director of Children's Services and Education
Facilities/Repair Supplies,Lawn/Garden Supply/Nursery,Carters Of Swanwic,Supplies and Services related expenditure,09/04/2018,56.01,"Director of Housing, Neighbourhood and Building Services"
Retail,Grocery Stores/Supermarkets,Asda Groceries Online,Supplies and Services related expenditure,09/04/2018,-0.23,Director of Children's Services and Education
Retail,Grocery Stores/Supermarkets,Asda Groceries Online,Supplies and Services related expenditure,09/04/2018,118.05,Director of Children's Services and Education
Equipment And Furniture,Household Appliance Stores,Wilko Retail Limit,Supplies and Services related expenditure,09/04/2018,10.04,"Director of Housing, Neighbourhood and Building Services"
Business To Business Facility/,Hardware Equipment/Supplies,Www.Ecoprod.Co.Uk,Premises related expenditure,09/04/2018,101.9,"Director of Housing, Neighbourhood and Building Services"
Transportation,"Parking Lots, Meters, Garages",Portsmouth City Counci,Transport related expenditure,09/04/2018,6.5,Director of Children's Services and Education
Transportation,Local Commuter Transport,Hovertravel Ltd,Transport related expenditure,09/04/2018,19.12,Director of Children's Services and Education
Retail,Grocery Stores/Supermarkets,Tesco Stores 4579,Supplies and Services related expenditure,09/04/2018,4.88,Director of Children's Services and Education
Retail,Grocery Stores/Supermarkets,Tesco Stores 4579,Supplies and Services related expenditure,09/04/2018,4.87,Director of Children's Services and Education
Transportation,Passenger Railways,Trainline,Transport related expenditure,09/04/2018,51.25,Director of Children's Services and Education
Transportation,Passenger Railways,Selfserve Ticket,Transport related expenditure,09/04/2018,15.5,"Director of Housing, Neighbourhood and Building Services"
Other Supplies,Misc Speciality Retail,Age UK Iadvisors,Supplies and Services related expenditure,09/04/2018,6.99,Director of Adult Services
Other Supplies,Misc Speciality Retail,Age UK Iadvisors,Supplies and Services related expenditure,09/04/2018,3.49,Director of Adult Services
Government,Schools - Default,Paypal,Employees related expenditure,09/04/2018,400,"Director of Housing, Neighbourhood and Building Services"
Transportation,"Parking Lots, Meters, Garages",East Hampshire Distric,Supplies and Services related expenditure,09/04/2018,2.75,Director of Children's Services and Education
Other Supplies,Misc Speciality Retail,Incchoice,Supplies and Services related expenditure,09/04/2018,141.78,Director of Adult Services
Equipment And Furniture,Household Appliance Stores,Ao Retail Limited,Supplies and Services related expenditure,09/04/2018,232,Director of Adult Services
Retail,Grocery Stores/Supermarkets,Tesco Store 3055,Supplies and Services related expenditure,09/04/2018,2.5,"Director of Housing, Neighbourhood and Building Services"
Business To Business Eqpt/Furn,Computer Software Stores,3175819 Pcc,Supplies and Services related expenditure,09/04/2018,669,"Director of Housing, Neighbourhood and Building Services"
Retail,Misc Food Stores - Default,Solent Clams Ltd,Supplies and Services related expenditure,09/04/2018,35.47,Director of Adult Services
Business To Business Eqpt/Furn,Commercial Equipment - Default,Www.Cateringequipmentc,Supplies and Services related expenditure,09/04/2018,43.59,Director of Adult Services
Business Expenses/Services,Stationery Stores,Banner Group Ltd,Supplies and Services related expenditure,09/04/2018,90.09,Director of Culture & City Development
Retail,Grocery Stores/Supermarkets,Tesco Stores 4579,Supplies and Services related expenditure,09/04/2018,13.4,Director of Adult Services
Retail,Grocery Stores/Supermarkets,Tesco Stores 4579,Supplies and Services related expenditure,09/04/2018,1.91,Director of Adult Services
Retail,Grocery Stores/Supermarkets,Sainsburys S/mkts,Supplies and Services related expenditure,09/04/2018,3.33,Director of Public Health
Eating And Drinking Places,Eating Places/Restaurants,Isambard Kingdom B,Agency and Third Party Payments related expenditure,09/04/2018,1.37,Director of Children's Services and Education
Eating And Drinking Places,Eating Places/Restaurants,Isambard Kingdom B,Agency and Third Party Payments related expenditure,09/04/2018,3.45,Director of Children's Services and Education
Eating And Drinking Places,Eating Places/Restaurants,Isambard Kingdom B,Agency and Third Party Payments related expenditure,09/04/2018,10.67,Director of Children's Services and Education
Business Expenses/Services,News Dealers/Newsstands,Brunels News,Transport related expenditure,09/04/2018,77,Director of Children's Services and Education
Retail,Grocery Stores/Supermarkets,Tesco Store 3048,Supplies and Services related expenditure,09/04/2018,65,Director of Children's Services and Education
Retail,Grocery Stores/Supermarkets,Tesco Store 3048,Supplies and Services related expenditure,09/04/2018,30,Director of Children's Services and Education
Retail,Grocery Stores/Supermarkets,Tesco Store 3048,Supplies and Services related expenditure,09/04/2018,10,Director of Children's Services and Education
Retail,Grocery Stores/Supermarkets,Tesco Store 3048,Supplies and Services related expenditure,09/04/2018,10,Director of Children's Services and Education
Retail,Grocery Stores/Supermarkets,Tesco Store 3048,Supplies and Services related expenditure,09/04/2018,5,Director of Children's Services and Education
Retail,Grocery Stores/Supermarkets,Farmfoods- Portsmo,Supplies and Services related expenditure,09/04/2018,7.49,Director of Children's Services and Education
Retail,Grocery Stores/Supermarkets,Farmfoods- Portsmo,Supplies and Services related expenditure,09/04/2018,29.9,Director of Children's Services and Education
Retail,Grocery Stores/Supermarkets,Asda Stores,Supplies and Services related expenditure,09/04/2018,0.42,Director of Children's Services and Education
Retail,Grocery Stores/Supermarkets,Asda Stores,Supplies and Services related expenditure,09/04/2018,5.83,Director of Children's Services and Education
Retail,Grocery Stores/Supermarkets,Asda Stores,Supplies and Services related expenditure,09/04/2018,96.02,Director of Children's Services and Education
Miscellaneous,Fines,Combined Court Cen,Supplies and Services related expenditure,09/04/2018,255,"Director of Housing, Neighbourhood and Building Services"
Business Expenses/Services,Postage Stamps,Post Office Counter,Supplies and Services related expenditure,09/04/2018,13.92,Director of Culture & City Development
Transportation,Passenger Railways,Ticketofficesale,Transport related expenditure,09/04/2018,12.7,"Director of HR, Legal,  Audit & Performance"
Business Expenses/Services,Stationery Stores,Mil/superstickers-,Supplies and Services related expenditure,09/04/2018,33.9,Director of Children's Services and Education
Retail,Pet Stores/Food & Supply,Crown Pet Foods,Supplies and Services related expenditure,09/04/2018,506.88,"Director of Housing, Neighbourhood and Building Services"
Utilities,Phone Serv/Equip Utility,Vesta Vodafone,Supplies and Services related expenditure,09/04/2018,124.3,Director of Children's Services and Education
Hotels And Motels,Lodging/Hotels/Motels/Resorts,Hotel On Booking.Com,Supplies and Services related expenditure,09/04/2018,60.21,Director of Culture & City Development
Facilities Maintenance,Clean/Maint/Janitoral Serv,Mobile Shredder,Supplies and Services related expenditure,09/04/2018,120,Director of Culture & City Development
Transportation,Passenger Railways,East Midlands Trains,Transport related expenditure,09/04/2018,81,Director of Regeneration
Government,Govt Serv - Default,Leeds City Council Int,Agency and Third Party Payments related expenditure,09/04/2018,134,Director of Public Health
Government,Govt Serv - Default,Mayday Healthcare Nhs,Agency and Third Party Payments related expenditure,09/04/2018,669.31,Director of Public Health
Facilities/Repair Supplies,Floor Covering Stores,Carpetright,Premises related expenditure,09/04/2018,111.93,Director of Culture & City Development
Medical,Lab/Med/Hospital Equipment,Wightman & Parrish,Premises related expenditure,09/04/2018,21.53,Director of Adult Services
Medical,Lab/Med/Hospital Equipment,Wightman & Parrish,Supplies and Services related expenditure,09/04/2018,61.47,Director of Adult Services
Medical,Lab/Med/Hospital Equipment,Wightman & Parrish,Supplies and Services related expenditure,09/04/2018,34.9,Director of Adult Services
Business Services,Business Services - Default,Fast Key Services Limi,Supplies and Services related expenditure,09/04/2018,6.05,Director of Public Health
Facilities/Repair Supplies,Lumber/Build. Supply Stores,B & Q 1260,Supplies and Services related expenditure,09/04/2018,27.5,Director of Culture & City Development
Business To Business Facility/,Industrial Supplies - Def,Arco Ltd,Supplies and Services related expenditure,09/04/2018,27.89,"Director of Housing, Neighbourhood and Building Services"
Entertainment,Amusement/Rec Serv - Def,Nil*greatrun.Org,Supplies and Services related expenditure,09/04/2018,387.5,Director of Children's Services and Education
Business To Business Eqpt/Furn,Book Stores,Amazon Svcs Eu-Uk Amazon.,Supplies and Services related expenditure,09/04/2018,32.48,"Director of Housing, Neighbourhood and Building Services"
Transportation,Bus Lines/Charter/Tour,First Bus,Supplies and Services related expenditure,09/04/2018,71.75,"Director of Housing, Neighbourhood and Building Services"
Business Expenses/Services,Stationery Stores,Key,Supplies and Services related expenditure,09/04/2018,111.93,"Director of Housing, Neighbourhood and Building Services"
Business Expenses/Services,Stationery Stores,Key,Supplies and Services related expenditure,09/04/2018,21.08,"Director of Housing, Neighbourhood and Building Services"
Transportation,Passenger Railways,Ticketofficesale,Transport related expenditure,09/04/2018,4.9,Director of Community & Communication
Government,Govt Serv - Default,Pcc Moto Payment,Supplies and Services related expenditure,09/04/2018,12,"Director of Housing, Neighbourhood and Building Services"
Business To Business Facility/,Industrial Supplies - Def,Getcomposting.Com,Supplies and Services related expenditure,09/04/2018,25.97,"Director of Housing, Neighbourhood and Building Services"
Miscellaneous,Charitable/Soc Service Orgs,The Blue Lamp Trus-Dom,Supplies and Services related expenditure,09/04/2018,87,"Director of Housing, Neighbourhood and Building Services"
Retail,Grocery Stores/Supermarkets,Asda Stores,Premises related expenditure,09/04/2018,1.67,"Director of Housing, Neighbourhood and Building Services"
Retail,Grocery Stores/Supermarkets,Asda Stores,Supplies and Services related expenditure,09/04/2018,1.25,"Director of Housing, Neighbourhood and Building Services"
Retail,Grocery Stores/Supermarkets,Asda Stores,Supplies and Services related expenditure,09/04/2018,13.89,"Director of Housing, Neighbourhood and Building Services"
Business To Business Eqpt/Furn,Book Stores,Amazon Svcs Eu-Uk Amazon.,Supplies and Services related expenditure,09/04/2018,6.21,Director of Adult Services
Business To Business Eqpt/Furn,Book Stores,Amazon Svcs Eu-Uk Amazon.,Supplies and Services related expenditure,09/04/2018,1.84,Director of Adult Services
Equipment And Furniture,Household Appliance Stores,Wilko Retail Limit,Supplies and Services related expenditure,09/04/2018,4,"Director of Housing, Neighbourhood and Building Services"
Business To Business Facility/,Industrial Supplies - Def,Www.Arco.Co.Uk,Supplies and Services related expenditure,09/04/2018,48.19,"Director of Housing, Neighbourhood and Building Services"
Business To Business Facility/,Industrial Supplies - Def,Www.Arco.Co.Uk,Supplies and Services related expenditure,09/04/2018,48.19,"Director of Housing, Neighbourhood and Building Services"
Facilities/Repair Supplies,Lumber/Build. Supply Stores,B & Q 1260,Supplies and Services related expenditure,09/04/2018,23.3,"Director of Housing, Neighbourhood and Building Services"
Retail,Drug Stores & Pharmacies,"Boots,fareham",Supplies and Services related expenditure,09/04/2018,1.08,Director of Children's Services and Education
Other Supplies,Discount Stores,Poundland,Agency and Third Party Payments related expenditure,09/04/2018,3.33,Director of Children's Services and Education
Entertainment,Motion Picture Theatres,Jacro Cinema Sales,Agency and Third Party Payments related expenditure,09/04/2018,5.33,Director of Children's Services and Education
Transportation,Passenger Railways,Ticketofficesale,Transport related expenditure,09/04/2018,7.95,Director of Children's Services and Education
Other Supplies,Variety Stores,T K Maxx,Agency and Third Party Payments related expenditure,09/04/2018,8,Director of Children's Services and Education
Eating And Drinking Places,Eating Places/Restaurants,Burger King,Supplies and Services related expenditure,09/04/2018,9.98,Director of Children's Services and Education
Other Supplies,Variety Stores,T K Maxx,Supplies and Services related expenditure,09/04/2018,12.49,Director of Children's Services and Education
Retail,Sporting Goods Stores,Sportsdirect 445,Agency and Third Party Payments related expenditure,09/04/2018,49.99,Director of Children's Services and Education
Other Supplies,Department Stores,Southern Co-Op 0214,Supplies and Services related expenditure,09/04/2018,1.83,Director of Public Health
Other Supplies,Department Stores,Southern Co-Op 0007,Supplies and Services related expenditure,09/04/2018,1.94,Director of Children's Services and Education
Eating And Drinking Places,Fast Food Restaurants,McDonalds,Agency and Third Party Payments related expenditure,09/04/2018,3.07,Director of Children's Services and Education
Business To Business Facility/,Industrial Supplies - Def,Www.Arco.Co.Uk,Supplies and Services related expenditure,09/04/2018,14.76,"Director of Housing, Neighbourhood and Building Services"
Business To Business Facility/,Industrial Supplies - Def,Arco Ltd,Supplies and Services related expenditure,09/04/2018,122.88,Director of Regeneration
Retail,Grocery Stores/Supermarkets,Aldi 31 775,Supplies and Services related expenditure,09/04/2018,11.43,Director of Children's Services and Education
Other Supplies,Misc Speciality Retail,Tesco Direct,Supplies and Services related expenditure,09/04/2018,58.33,Director of Children's Services and Education
Caterers Food,Caterers,Booker Limited Portsmouth,Supplies and Services related expenditure,09/04/2018,32.98,Director of Children's Services and Education
Business To Business Eqpt/Furn,Book Stores,Amazon UK Marketplace,Supplies and Services related expenditure,09/04/2018,7.99,Director of Adult Services
Business To Business Eqpt/Furn,Book Stores,Amazon Svcs Eu-Uk Amazon.,Supplies and Services related expenditure,09/04/2018,13.93,Director of Adult Services
Business To Business Eqpt/Furn,Book Stores,Amazon Svcs Eu-Uk Amazon.,Supplies and Services related expenditure,09/04/2018,3.33,Director of Adult Services
Facilities/Repair Supplies,Drapery & Upholstery Stores,Www.Curtainscurtainscu,Supplies and Services related expenditure,09/04/2018,259.03,Director of Adult Services
Facilities/Repair Supplies,Drapery & Upholstery Stores,Www.Curtainscurtainscu,Supplies and Services related expenditure,09/04/2018,62.16,Director of Adult Services
Business To Business Other Sup,Uniforms & Commercial Clothing,Arco Ltd,Supplies and Services related expenditure,03/04/2018,48.88,"Director of Housing, Neighbourhood and Building Services"
Transportation,Passenger Railways,Sw Railway,Transport related expenditure,06/04/2018,61.6,Director of Finance & IT
Other Supplies,Misc Speciality Retail,Www.Rompaltd.Com,Supplies and Services related expenditure,09/04/2018,80.9,Director of Children's Services and Education
Professional Services,Mgmt/Consult/Public Rel Ser,Tvlicensing.Co.Uk,Supplies and Services related expenditure,09/04/2018,150.5,Director of Adult Services
Business Expenses/Services,Stationery Stores,Banner Group Ltd,Supplies and Services related expenditure,09/04/2018,10.02,Director of Children's Services and Education
Retail,Grocery Stores/Supermarkets,Www.Iceland.Co.Uk,Supplies and Services related expenditure,09/04/2018,127.95,Director of Adult Services
Business Expenses/Services,Stationery Stores,Banner Group Ltd,Supplies and Services related expenditure,09/04/2018,11.07,Director of Children's Services and Education
Business Expenses/Services,Stationery Stores,Banner Group Ltd,Supplies and Services related expenditure,09/04/2018,15.36,Director of Children's Services and Education
Business Expenses/Services,Stationery Stores,Banner Group Ltd,Supplies and Services related expenditure,09/04/2018,154.28,Director of Adult Services
Business To Business Eqpt/Furn,Book Stores,Amazon Svcs Eu-Uk Amazon.,Supplies and Services related expenditure,09/04/2018,1.51,Director of Children's Services and Education
Transportation,Passenger Railways,Southern Railway Web,Transport related expenditure,09/04/2018,63.9,Director of Regeneration
Transportation,Passenger Railways,Southern Railway Web,Transport related expenditure,09/04/2018,63.9,Director of Regeneration
Hotels And Motels,Lodging/Hotels/Motels/Resorts,Staycity Manchester Li,Transport related expenditure,09/04/2018,193.9,Director of Finance & IT
Hotels And Motels,Lodging/Hotels/Motels/Resorts,Staycity Manchester Li,Transport related expenditure,09/04/2018,448.9,Director of Finance & IT
Business Expenses/Services,Stationery Stores,Banner Group Ltd,Supplies and Services related expenditure,09/04/2018,59.38,Director of Adult Services
Transportation,Local Commuter Transport,Brittany Ferries,Capital related expenditure,09/04/2018,58.33,OTHER
Transportation,Local Commuter Transport,Brittany Ferries,Capital related expenditure,09/04/2018,365,OTHER
Business Expenses/Services,Stationery Stores,Banner Group Ltd,Supplies and Services related expenditure,09/04/2018,61.56,OTHER
Business Expenses/Services,Stationery Stores,Banner Group Ltd,Supplies and Services related expenditure,09/04/2018,80.11,OTHER
Eating And Drinking Places,Bars/Taverns/Lounges/Discos,Sailmaker,Agency and Third Party Payments related expenditure,09/04/2018,3,Director of Children's Services and Education
Eating And Drinking Places,Bars/Taverns/Lounges/Discos,Sailmaker,Agency and Third Party Payments related expenditure,09/04/2018,13.1,Director of Children's Services and Education
Business Expenses/Services,Stationery Stores,Banner Group Ltd,Supplies and Services related expenditure,09/04/2018,9.28,Director of Public Health
Business Expenses/Services,Stationery Stores,Banner Group Ltd,Supplies and Services related expenditure,09/04/2018,11.43,Director of Public Health
Business Expenses/Services,Stationery Stores,Banner Group Ltd,Supplies and Services related expenditure,09/04/2018,31.35,Director of Regeneration
Facilities/Repair Supplies,Misc Home Furnishing,Vinylwareho,Supplies and Services related expenditure,09/04/2018,22.48,Director of Children's Services and Education
Business To Business Facility/,Electrical Parts/Equipment,Rs Components,Supplies and Services related expenditure,09/04/2018,169.48,Director of Regeneration
Miscellaneous,Other Direct Marketers,Amazon UK Retail,Supplies and Services related expenditure,10/04/2018,18.22,"Director of Housing, Neighbourhood and Building Services"
Retail,Shoe Repair/Shine/Hat Clean,Timpson Ltd,Supplies and Services related expenditure,10/04/2018,8.33,"Director of Housing, Neighbourhood and Building Services"
Business To Business Other Sup,Uniforms & Commercial Clothing,Arco Ltd,Supplies and Services related expenditure,10/04/2018,-56.24,Director of Portsmouth International Port
Equipment And Furniture,Household Appliance Stores,Wilko Retail Limit,Supplies and Services related expenditure,10/04/2018,7.5,Director of Community & Communication
Miscellaneous,Charitable/Soc Service Orgs,John Pounds Community,Supplies and Services related expenditure,10/04/2018,271.05,"Director of Housing, Neighbourhood and Building Services"
Transportation,Local Commuter Transport,Hovertravel Ltd,Agency and Third Party Payments related expenditure,10/04/2018,238,Director of Children's Services and Education
Utilities,Phone Serv/Equip Utility,Textanywhere Ltd,Supplies and Services related expenditure,10/04/2018,41.7,Director of Adult Services
Equipment And Furniture,Phone Serv/Equip Non-Util,Maplin Portsmouth Po1,Supplies and Services related expenditure,10/04/2018,134.16,"Director of Housing, Neighbourhood and Building Services"
Other Supplies,Department Stores,Southern Co-Op 0019,Supplies and Services related expenditure,10/04/2018,7.04,Director of Adult Services
Other Supplies,Catalog Merchant,Www.Nisbets.Com,Supplies and Services related expenditure,10/04/2018,81.98,Director of Regeneration
Miscellaneous,Fines,Combined Court Cen,Supplies and Services related expenditure,10/04/2018,455,Director of Children's Services and Education
Business To Business Eqpt/Furn,Commercial Furniture,Wybone Ltd,Supplies and Services related expenditure,10/04/2018,1087.92,Director of Culture & City Development
Facilities/Repair Supplies,Hardware Stores,World Of Garden Produc,Supplies and Services related expenditure,10/04/2018,94.09,"Director of Housing, Neighbourhood and Building Services"
Facilities/Repair Supplies,Lawn/Garden Supply/Nursery,Carters Of Swanwic,Supplies and Services related expenditure,10/04/2018,133.43,"Director of Housing, Neighbourhood and Building Services"
Transportation,Local Commuter Transport,Hovertravel Ltd,Transport related expenditure,10/04/2018,23.9,Director of Children's Services and Education
Equipment And Furniture,Household Appliance Stores,Wilko Retail Limit,Supplies and Services related expenditure,10/04/2018,9,Director of Children's Services and Education
Business To Business Eqpt/Furn,Computer Software Stores,Barrier 2 Go,Supplies and Services related expenditure,10/04/2018,458,Director of Regeneration
Other Supplies,Discount Stores,B&m Retail,Supplies and Services related expenditure,10/04/2018,57.07,Director of Children's Services and Education
Retail,Grocery Stores/Supermarkets,Tesco Store 3055,Supplies and Services related expenditure,10/04/2018,107,Director of Children's Services and Education
Facilities/Repair Services,Air Cond/Refrig Repair Shop,Rjs Cooling Ltd,Supplies and Services related expenditure,10/04/2018,280,Director of Adult Services
Government,Govt Serv - Default,Portsmouth City Co,Transport related expenditure,10/04/2018,31.67,Director of Adult Services
Hotels And Motels,Lodging/Hotels/Motels/Resorts,Keppels Head Hotel,Agency and Third Party Payments related expenditure,10/04/2018,1003.64,"Director of Housing, Neighbourhood and Building Services"
Hotels And Motels,Lodging/Hotels/Motels/Resorts,Keppels Head Hotel,Agency and Third Party Payments related expenditure,10/04/2018,912.21,"Director of Housing, Neighbourhood and Building Services"
Hotels And Motels,Lodging/Hotels/Motels/Resorts,64 Alma Road Limited,Agency and Third Party Payments related expenditure,10/04/2018,2518.25,"Director of Housing, Neighbourhood and Building Services"
Other Supplies,Misc Speciality Retail,Amazon Eu Amazon.Co.Uk,Supplies and Services related expenditure,10/04/2018,12.47,"Director of Housing, Neighbourhood and Building Services"
Other Supplies,Misc Speciality Retail,Amazon Eu Amazon.Co.Uk,Supplies and Services related expenditure,10/04/2018,49.99,"Director of Housing, Neighbourhood and Building Services"
Other Supplies,Misc Speciality Retail,Amazon Eu Amazon.Co.Uk,Supplies and Services related expenditure,10/04/2018,49.99,"Director of Housing, Neighbourhood and Building Services"
Equipment And Furniture,Household Appliance Stores,Wilko Retail Limit,Supplies and Services related expenditure,10/04/2018,5.83,"Director of Housing, Neighbourhood and Building Services"
Business To Business Eqpt/Furn,Book Stores,Amazon UK Marketplace,Supplies and Services related expenditure,10/04/2018,33.73,"Director of Housing, Neighbourhood and Building Services"
Government,Govt Serv - Default,Gro Hm Passport Office,Agency and Third Party Payments related expenditure,10/04/2018,9.25,Director of Regeneration
Eating And Drinking Places,Eating Places/Restaurants,Cafe Nut,Supplies and Services related expenditure,10/04/2018,4.33,Director of Children's Services and Education
Retail,Grocery Stores/Supermarkets,Asda Stores,Supplies and Services related expenditure,10/04/2018,9.85,Director of Adult Services
Transportation,Passenger Railways,Ticketofficesale,Transport related expenditure,10/04/2018,74.3,Director of Finance & IT
Business To Business Facility/,Industrial Supplies - Def,Www.Arco.Co.Uk,Supplies and Services related expenditure,10/04/2018,69.11,"Director of Housing, Neighbourhood and Building Services"
Government,Govt Serv - Default,Portsmouth City Co,Supplies and Services related expenditure,10/04/2018,31.67,Director of Children's Services and Education
Medical,Lab/Med/Hospital Equipment,Wightman & Parrish,Premises related expenditure,10/04/2018,91.2,"Director of Housing, Neighbourhood and Building Services"
Other Supplies,Department Stores,Southern Co-Op 0214,Supplies and Services related expenditure,10/04/2018,1.1,Director of Public Health
Business To Business Eqpt/Furn,Book Stores,Amazon UK Marketplace,Supplies and Services related expenditure,10/04/2018,23.21,Director of Adult Services
Medical,Lab/Med/Hospital Equipment,Wightman & Parrish,Supplies and Services related expenditure,10/04/2018,14.5,Director of Adult Services
Medical,Lab/Med/Hospital Equipment,Wightman & Parrish,Supplies and Services related expenditure,10/04/2018,83.6,Director of Adult Services
Medical,Lab/Med/Hospital Equipment,Wightman & Parrish,Supplies and Services related expenditure,10/04/2018,16.9,Director of Adult Services
Medical,Lab/Med/Hospital Equipment,Wightman & Parrish,Supplies and Services related expenditure,10/04/2018,35.89,Director of Adult Services
Medical,Lab/Med/Hospital Equipment,Wightman & Parrish,Premises related expenditure,10/04/2018,51.14,Director of Adult Services
Government,Schools - Default,Ncs*vue Citb Hs&e Rev,Employees related expenditure,10/04/2018,11.5,Director of Portsmouth International Port
Business To Business Facility/,Electrical Parts/Equipment,Edmundson Electrical,Premises related expenditure,10/04/2018,26.35,Director of Portsmouth International Port
Facilities/Repair Supplies,Lumber/Build. Supply Stores,Www.Safetyproductsdire,Premises related expenditure,10/04/2018,139.5,Director of Portsmouth International Port
Facilities/Repair Supplies,Lumber/Build. Supply Stores,F H Brundle,Premises related expenditure,10/04/2018,434,Director of Portsmouth International Port
Business To Business Eqpt/Furn,Book Stores,Amazon Svcs Eu-Uk Amazon.,Supplies and Services related expenditure,10/04/2018,-17.42,Director of Culture & City Development
Business To Business Eqpt/Furn,Computer Software Stores,Mindomo,Supplies and Services related expenditure,10/04/2018,32.36,Director of Regeneration
Retail,Grocery Stores/Supermarkets,Tesco Stores 3048,Supplies and Services related expenditure,10/04/2018,1.67,"Director of Housing, Neighbourhood and Building Services"
Medical,Lab/Med/Hospital Equipment,Wightman & Parrish,Premises related expenditure,10/04/2018,253.42,"Director of Housing, Neighbourhood and Building Services"
Other Supplies,Misc Speciality Retail,Www.Elbec.Co.Uk,Supplies and Services related expenditure,10/04/2018,374.17,Director of Regeneration
Clothing/Shoes/Uniforms,Shoe Stores,Shoe Zone Ltd,Supplies and Services related expenditure,10/04/2018,20.87,Director of Children's Services and Education
Government,Govt Serv - Default,Portsmouth City Co,Transport related expenditure,10/04/2018,10.25,Chief Exec
Retail,Grocery Stores/Supermarkets,Asda Stores,Supplies and Services related expenditure,10/04/2018,14.48,"Director of Housing, Neighbourhood and Building Services"
Transportation,Taxicabs/Limousines,Onward Travel Solution,Capital related expenditure,10/04/2018,55,OTHER
Business Services,Business Services - Default,Fast Key Services Limi,Supplies and Services related expenditure,10/04/2018,10.14,Director of Children's Services and Education
Business Services,Business Services - Default,Fast Key Services Limi,Supplies and Services related expenditure,10/04/2018,0.89,Director of Children's Services and Education
Government,Govt Serv - Default,Portsmouth City Co,Transport related expenditure,10/04/2018,31.67,Director of Children's Services and Education
Retail,Grocery Stores/Supermarkets,Co-Op Group Food,Supplies and Services related expenditure,10/04/2018,13.92,Director of Children's Services and Education
Business To Business Eqpt/Furn,Book Stores,Amazon Svcs Eu-Uk Amazon.,Supplies and Services related expenditure,10/04/2018,1.69,Director of Children's Services and Education
Business To Business Eqpt/Furn,Book Stores,Amazon Svcs Eu-Uk Amazon.,Premises related expenditure,10/04/2018,10.83,Director of Children's Services and Education
Retail,Grocery Stores/Supermarkets,Tesco Store 3048,Supplies and Services related expenditure,10/04/2018,24.26,"Director of Housing, Neighbourhood and Building Services"
Business To Business Eqpt/Furn,Book Stores,Amazon Svcs Eu-Uk Amazon.,Supplies and Services related expenditure,10/04/2018,1.99,Director of Adult Services
Business To Business Eqpt/Furn,Book Stores,Amazon Svcs Eu-Uk Amazon.,Supplies and Services related expenditure,10/04/2018,12.88,Director of Adult Services
Business To Business Eqpt/Furn,Book Stores,Amazon Svcs Eu-Uk Amazon.,Supplies and Services related expenditure,10/04/2018,24.98,Director of Adult Services
Retail,Grocery Stores/Supermarkets,Tesco Stores 2322,Supplies and Services related expenditure,10/04/2018,4.47,Director of Children's Services and Education
Medical,Hospitals,Nhs Trust,Agency and Third Party Payments related expenditure,10/04/2018,274,Director of Public Health
Government,Govt Serv - Default,The Intellectual Property,Agency and Third Party Payments related expenditure,10/04/2018,220,Director of Regeneration
Medical,Lab/Med/Hospital Equipment,Wightman & Parrish Ltd,Premises related expenditure,10/04/2018,100.83,"Director of Housing, Neighbourhood and Building Services"
Medical,Lab/Med/Hospital Equipment,Wightman & Parrish Ltd,Supplies and Services related expenditure,10/04/2018,3.63,"Director of Housing, Neighbourhood and Building Services"
Transportation,Passenger Railways,Selfserve Ticket,Transport related expenditure,10/04/2018,11.7,"Director of HR, Legal,  Audit & Performance"
Transportation,Passenger Railways,Ticketofficesale,Transport related expenditure,10/04/2018,10.7,"Director of Housing, Neighbourhood and Building Services"
Freight/Courier/Warehouse Svcs,Public Warehousing,Lok N Store,Premises related expenditure,10/04/2018,-284.47,"Director of Housing, Neighbourhood and Building Services"
Auto/Vehicle Expenses,Auto Body Repair Shops,Express Paints Ltd,Supplies and Services related expenditure,10/04/2018,198.75,Director of Regeneration
Other Supplies,Catalog Merchant,Www.Uk.Insight.Com,Supplies and Services related expenditure,10/04/2018,10.12,Director of Adult Services
Eating And Drinking Places,Fast Food Restaurants,Costa Coffee,Supplies and Services related expenditure,10/04/2018,2.54,Director of Adult Services
Facilities/Repair Supplies,Lumber/Build. Supply Stores,B & Q 1260,Supplies and Services related expenditure,10/04/2018,20.5,"Director of Housing, Neighbourhood and Building Services"
Facilities/Repair Supplies,Lumber/Build. Supply Stores,Screwfix Direct,Supplies and Services related expenditure,10/04/2018,30.83,"Director of Housing, Neighbourhood and Building Services"
Equipment And Furniture,Household Appliance Stores,Wilko Retail Limit,Supplies and Services related expenditure,10/04/2018,79.17,Director of Adult Services
Other Supplies,Department Stores,The Range,Supplies and Services related expenditure,10/04/2018,122.62,Director of Adult Services
Equipment And Furniture,Household Appliance Stores,Wilko Retail Limit,Supplies and Services related expenditure,10/04/2018,150,Director of Adult Services
Retail,Electronics Sales,Currys Pc World,Supplies and Services related expenditure,10/04/2018,524.93,Director of Adult Services
Transportation,Passenger Railways,Selfserve Ticket,Transport related expenditure,10/04/2018,16.1,OTHER
Entertainment,Bands/Orchestras/Entertain,Netherlands Nat Circus,Supplies and Services related expenditure,10/04/2018,75,Director of Children's Services and Education
Government,Govt Serv - Default,Staunton Country Park,Supplies and Services related expenditure,10/04/2018,81,Director of Children's Services and Education
Entertainment,Motion Picture Theatres,Vue Bsl Ltd,Supplies and Services related expenditure,10/04/2018,83,Director of Children's Services and Education
Retail,Grocery Stores/Supermarkets,Tesco Store 3048,Supplies and Services related expenditure,10/04/2018,2.5,Director of Adult Services
Facilities/Repair Supplies,Lumber/Build. Supply Stores,Screwfix Direct,Supplies and Services related expenditure,10/04/2018,27.48,"Director of Housing, Neighbourhood and Building Services"
Auto/Vehicle Expenses,Automated Fuel Dispensers,Tesco Payat Pump 3716,Supplies and Services related expenditure,10/04/2018,10.03,Director of Children's Services and Education
Business Services,Business Services - Default,Cptevents.Co.Uk,Employees related expenditure,10/04/2018,200,Director of Regeneration
Transportation,Passenger Railways,Ticketofficesale,Transport related expenditure,10/04/2018,12.6,"Director of HR, Legal,  Audit & Performance"
Transportation,Passenger Railways,Ticketofficesale,Transport related expenditure,10/04/2018,23.2,Director of Children's Services and Education
Transportation,Passenger Railways,Ticketofficesale,Transport related expenditure,10/04/2018,60.4,"Director of HR, Legal,  Audit & Performance"
Auto/Vehicle Rentals,Motor Home/Rv Rentals,Southsea Leisure Park,Agency and Third Party Payments related expenditure,10/04/2018,1306,Director of Children's Services and Education
Auto/Vehicle Rentals,Motor Home/Rv Rentals,Southsea Leisure Park,Agency and Third Party Payments related expenditure,10/04/2018,1306,Director of Children's Services and Education
Auto/Vehicle Rentals,Motor Home/Rv Rentals,Southsea Leisure Park,Agency and Third Party Payments related expenditure,10/04/2018,1306,Director of Children's Services and Education
Auto/Vehicle Rentals,Motor Home/Rv Rentals,Southsea Leisure Park,Agency and Third Party Payments related expenditure,10/04/2018,1586,Director of Children's Services and Education
Auto/Vehicle Rentals,Motor Home/Rv Rentals,Southsea Leisure Park,Agency and Third Party Payments related expenditure,10/04/2018,2606,Director of Children's Services and Education
Business To Business Facility/,Industrial Supplies - Def,Www.Arco.Co.Uk,Supplies and Services related expenditure,10/04/2018,27.64,"Director of Housing, Neighbourhood and Building Services"
Business To Business Facility/,Industrial Supplies - Def,Www.Arco.Co.Uk,Supplies and Services related expenditure,10/04/2018,89.89,"Director of Housing, Neighbourhood and Building Services"
Transportation,Local Commuter Transport,Hovertravel Ltd,Supplies and Services related expenditure,10/04/2018,23.9,Director of Children's Services and Education
Retail,Grocery Stores/Supermarkets,W M Morrisons,Supplies and Services related expenditure,10/04/2018,26.67,Director of Children's Services and Education
Retail,Grocery Stores/Supermarkets,W M Morrisons,Supplies and Services related expenditure,10/04/2018,9.2,Director of Children's Services and Education
Miscellaneous,Other Direct Marketers,Amazon UK Retail,Supplies and Services related expenditure,10/04/2018,6.02,Director of Adult Services
Miscellaneous,Other Direct Marketers,Amazon UK Retail,Supplies and Services related expenditure,10/04/2018,1.45,Director of Adult Services
Miscellaneous,Other Direct Marketers,Amazon UK Retail,Supplies and Services related expenditure,10/04/2018,9.72,Director of Adult Services
Miscellaneous,Other Direct Marketers,Amazon UK Retail,Supplies and Services related expenditure,10/04/2018,2.33,Director of Adult Services
Business To Business Eqpt/Furn,Book Stores,Amazon UK Marketplace,Supplies and Services related expenditure,10/04/2018,14.98,Director of Adult Services
Miscellaneous,Other Direct Marketers,Amazon UK Retail,Supplies and Services related expenditure,10/04/2018,22.2,Director of Adult Services
Miscellaneous,Other Direct Marketers,Amazon UK Retail,Supplies and Services related expenditure,10/04/2018,5.34,Director of Adult Services
Facilities/Repair Supplies,Lumber/Build. Supply Stores,Homebase Ltd 207,Premises related expenditure,10/04/2018,16.7,Director of Children's Services and Education
Entertainment,Amusement/Rec Serv - Def,Www.Longleat.Co.Uk,Agency and Third Party Payments related expenditure,10/04/2018,29.7,Director of Children's Services and Education
Entertainment,Amusement/Rec Serv - Def,Www.Longleat.Co.Uk,Agency and Third Party Payments related expenditure,10/04/2018,44.55,Director of Children's Services and Education
Entertainment,Amusement/Rec Serv - Def,Www.Longleat.Co.Uk,Agency and Third Party Payments related expenditure,10/04/2018,44.55,Director of Children's Services and Education
Medical,Orthopedic Goods,Www.Manageathome.Co.Uk,Transport related expenditure,10/04/2018,60,Director of Adult Services
Business Services,Business Services - Default,Www.Phs.Co.Uk,Premises related expenditure,10/04/2018,1062.36,Director of Adult Services
Business Expenses/Services,Stationery Stores,Www.Blackwell.Co.Uk,Supplies and Services related expenditure,06/04/2018,17.98,Director of Children's Services and Education
Professional Services,Mgmt/Consult/Public Rel Ser,Tvlicensing.Co.Uk,Supplies and Services related expenditure,10/04/2018,150.5,Director of Adult Services
Other Supplies,Misc Speciality Retail,Amazon Eu Amazon.Co.Uk,Supplies and Services related expenditure,10/04/2018,49.99,"Director of Housing, Neighbourhood and Building Services"
Other Supplies,Misc Speciality Retail,Amazon Eu Amazon.Co.Uk,Premises related expenditure,10/04/2018,49.99,"Director of Housing, Neighbourhood and Building Services"
Business To Business Other Sup,Uniforms & Commercial Clothing,Arco Ltd,Supplies and Services related expenditure,10/04/2018,96.75,"Director of Housing, Neighbourhood and Building Services"
Automobile Services & Supplies,Service Stations,Bp Wisley South,Supplies and Services related expenditure,10/04/2018,7.08,Director of Children's Services and Education
Hotels And Motels,Premier Travel Inns,Premier Inn44011795,Agency and Third Party Payments related expenditure,10/04/2018,312.89,"Director of Housing, Neighbourhood and Building Services"
Professional Services,Mgmt/Consult/Public Rel Ser,Tv Licensing,Supplies and Services related expenditure,10/04/2018,150.5,"Director of Housing, Neighbourhood and Building Services"
Professional Services,Mgmt/Consult/Public Rel Ser,Tv Licensing,Supplies and Services related expenditure,10/04/2018,150.5,"Director of Housing, Neighbourhood and Building Services"
Business To Business Facility/,Industrial Supplies - Def,Www.Arco.Co.Uk,Supplies and Services related expenditure,11/04/2018,53.05,"Director of Housing, Neighbourhood and Building Services"
Retail,Shoe Repair/Shine/Hat Clean,Timpson Ltd,Supplies and Services related expenditure,11/04/2018,46.67,"Director of Housing, Neighbourhood and Building Services"
Business Services,Business Services - Default,Www.Thewaterfront.Co.U,Supplies and Services related expenditure,11/04/2018,264.3,Director of Portsmouth International Port
Facilities/Repair Supplies,Hardware Stores,Toolstation Ltd,Supplies and Services related expenditure,11/04/2018,4.79,"Director of Housing, Neighbourhood and Building Services"
Facilities/Repair Supplies,Hardware Stores,Toolstation Ltd,Supplies and Services related expenditure,11/04/2018,4.8,"Director of Housing, Neighbourhood and Building Services"
Medical,Lab/Med/Hospital Equipment,Wightman & Parrish,Premises related expenditure,11/04/2018,432.36,"Director of Housing, Neighbourhood and Building Services"
Business To Business Eqpt/Furn,Book Stores,Amazon Svcs Eu-Uk Amazon.,Supplies and Services related expenditure,11/04/2018,52.5,Director of Children's Services and Education
Retail,Grocery Stores/Supermarkets,Tesco Stores 4611,Supplies and Services related expenditure,11/04/2018,20.9,Director of Community & Communication
Retail,Grocery Stores/Supermarkets,Tesco Stores 4611,Supplies and Services related expenditure,11/04/2018,3.33,Director of Community & Communication
Facilities/Repair Supplies,Lawn/Garden Supply/Nursery,Carters Of Swanwic,Supplies and Services related expenditure,11/04/2018,30,"Director of Housing, Neighbourhood and Building Services"
Facilities/Repair Supplies,Lawn/Garden Supply/Nursery,Carters Of Swanwic,Supplies and Services related expenditure,11/04/2018,102.79,"Director of Housing, Neighbourhood and Building Services"
Medical,Lab/Med/Hospital Equipment,Wightman & Parrish,Premises related expenditure,11/04/2018,432.67,"Director of Housing, Neighbourhood and Building Services"
Transportation,"Parking Lots, Meters, Garages",Carillion Government Ser,Transport related expenditure,11/04/2018,4.4,Director of Adult Services
Business Expenses/Services,Postage Stamps,Post Office Counter,Supplies and Services related expenditure,11/04/2018,9.75,Director of Children's Services and Education
Retail,Drug Stores & Pharmacies,Boots 1441,Supplies and Services related expenditure,11/04/2018,66.75,Director of Adult Services
Transportation,"Parking Lots, Meters, Garages",Gunwharf Quays,Transport related expenditure,11/04/2018,1.75,Director of Children's Services and Education
Retail,Grocery Stores/Supermarkets,Www.Iceland.Co.Uk,Supplies and Services related expenditure,11/04/2018,65.29,Director of Adult Services
Retail,Grocery Stores/Supermarkets,Www.Iceland.Co.Uk,Supplies and Services related expenditure,11/04/2018,30.21,Director of Adult Services
Miscellaneous,Veterinary Service,Sanctuary Vets Ltd,Supplies and Services related expenditure,11/04/2018,106.25,Director of Culture & City Development
Business To Business Facility/,Industrial Supplies - Def,Arco Ltd,Supplies and Services related expenditure,11/04/2018,74.99,"Director of Housing, Neighbourhood and Building Services"
Facilities/Repair Supplies,Hardware Stores,Map Uk,Supplies and Services related expenditure,11/04/2018,100.64,"Director of Housing, Neighbourhood and Building Services"
Transportation,"Parking Lots, Meters, Garages",Portsmouth City Counci,Transport related expenditure,11/04/2018,2.92,Director of Children's Services and Education
Miscellaneous,Other Direct Marketers,Guinness Northern,Supplies and Services related expenditure,11/04/2018,65,Director of Children's Services and Education
Airlines,Airlines And Air Carriers,Flybe Cfvejy,Transport related expenditure,11/04/2018,177.62,Director of Community & Communication
Facilities Maintenance,Specialty Cleaning/Polishing,C J S Portsmouth Ltd,Supplies and Services related expenditure,11/04/2018,76.02,"Director of Housing, Neighbourhood and Building Services"
Auto/Vehicle Rentals,Automobile Rental Agency,Southern Motor Contrac,Transport related expenditure,11/04/2018,5336.28,Director of Regeneration
Retail,Grocery Stores/Supermarkets,Asda Stores,Supplies and Services related expenditure,11/04/2018,60.83,Director of Adult Services
Retail,Grocery Stores/Supermarkets,Asda Stores,Supplies and Services related expenditure,11/04/2018,17.4,Director of Adult Services
Business To Business Eqpt/Furn,Book Stores,Amazon UK Marketplace,Supplies and Services related expenditure,11/04/2018,38.66,"Director of Housing, Neighbourhood and Building Services"
Business To Business Eqpt/Furn,Book Stores,Amazon UK Marketplace,Supplies and Services related expenditure,11/04/2018,56,"Director of Housing, Neighbourhood and Building Services"
Facilities/Repair Supplies,Lawn/Garden Supply/Nursery,Www.Frjonesandson.,Supplies and Services related expenditure,11/04/2018,323.16,"Director of Housing, Neighbourhood and Building Services"
Government,Govt Serv - Default,Portsmouth City Co,Supplies and Services related expenditure,11/04/2018,5.75,Director of Children's Services and Education
Transportation,Local Commuter Transport,Hovertravel Ltd,Supplies and Services related expenditure,11/04/2018,19.12,Director of Children's Services and Education
Other Supplies,Discount Stores,Argos Farlington I,Supplies and Services related expenditure,11/04/2018,24.99,Director of Culture & City Development
Medical,Lab/Med/Hospital Equipment,Wightman & Parrish,Premises related expenditure,11/04/2018,167.87,"Director of Housing, Neighbourhood and Building Services"
Medical,Lab/Med/Hospital Equipment,Wightman & Parrish,Premises related expenditure,11/04/2018,228.44,"Director of Housing, Neighbourhood and Building Services"
Hotels And Motels,Lodging/Hotels/Motels/Resorts,Henryadamsholiday,Supplies and Services related expenditure,11/04/2018,75,Director of Children's Services and Education
Transportation,Passenger Railways,Trainline,Transport related expenditure,11/04/2018,91,Director of Children's Services and Education
Business To Business Eqpt/Furn,Book Stores,Amazon UK Marketplace,Supplies and Services related expenditure,11/04/2018,2.04,"Director of Housing, Neighbourhood and Building Services"
Business Services,Business Services - Default,2co.Com,Employees related expenditure,11/04/2018,20,"Director of Housing, Neighbourhood and Building Services"
Medical,Lab/Med/Hospital Equipment,Wightman & Parrish,Premises related expenditure,11/04/2018,70.94,"Director of Housing, Neighbourhood and Building Services"
Other Supplies,Catalog Merchant,Www.Nisbets.Com,Supplies and Services related expenditure,11/04/2018,168.7,Director of Community & Communication
Miscellaneous,Charitable/Soc Service Orgs,Diabetes UK Publ,Supplies and Services related expenditure,11/04/2018,1.25,Director of Adult Services
Other Supplies,Catalog Merchant,Www.Nisbets.Com,Premises related expenditure,11/04/2018,149.98,Director of Adult Services
Facilities/Repair Supplies,Lumber/Build. Supply Stores,Screwfix Direct,Supplies and Services related expenditure,11/04/2018,133.33,Director of Portsmouth International Port
Retail,Grocery Stores/Supermarkets,Lidl Uk,Supplies and Services related expenditure,11/04/2018,6.25,Director of Adult Services
Retail,Grocery Stores/Supermarkets,Tesco Stores 4579,Supplies and Services related expenditure,11/04/2018,10.39,Director of Adult Services
Professional Services,Architectural/Eng/Survey,Pressco Precision Engi,Supplies and Services related expenditure,11/04/2018,20,Director of Regeneration
Medical,Lab/Med/Hospital Equipment,Wightman & Parrish Ltd,Premises related expenditure,11/04/2018,76.35,"Director of Housing, Neighbourhood and Building Services"
Business To Business Facility/,Industrial Supplies - Def,Www.Arco.Co.Uk,Supplies and Services related expenditure,11/04/2018,158.1,"Director of Housing, Neighbourhood and Building Services"
Business Services,Business Services - Default,Phs Group,Supplies and Services related expenditure,11/04/2018,274.5,"Director of Housing, Neighbourhood and Building Services"
Transportation,"Parking Lots, Meters, Garages",Total Parking Solution,Supplies and Services related expenditure,11/04/2018,1.5,Director of Adult Services
Professional Services,Professional Services - Def,Www.Ofcom.Org.Uk,Supplies and Services related expenditure,11/04/2018,112.5,Director of Portsmouth International Port
Utilities,Utilities/Elec/Gas/H2O/Sani,Slicker Recycling,Premises related expenditure,11/04/2018,175,Director of Portsmouth International Port
Professional Services,Professional Services - Def,Palace Internation,Premises related expenditure,11/04/2018,1083.88,Director of Portsmouth International Port
Entertainment,Bands/Orchestras/Entertain,Venue Smart,Supplies and Services related expenditure,11/04/2018,450,Director of Culture & City Development
Government,Govt Serv - Default,Portsmouth City Co,Transport related expenditure,11/04/2018,10.25,Chief Exec
Business Services,Business Services - Default,Eb *raising The Bar Ii,Employees related expenditure,11/04/2018,82.5,Director of Adult Services
Transportation,Passenger Railways,Ticketofficesale,Transport related expenditure,11/04/2018,89.8,Director of Children's Services and Education
Business Expenses/Services,Stationery Stores,Banner Group Ltd,Supplies and Services related expenditure,11/04/2018,31.79,"Director of Housing, Neighbourhood and Building Services"
Miscellaneous,Fines,Combined Court Cen,Supplies and Services related expenditure,11/04/2018,100,"Director of Housing, Neighbourhood and Building Services"
Government,Govt Serv - Default,Portsmouth City Co,Transport related expenditure,11/04/2018,63.33,Director of Children's Services and Education
Retail,Sports/Riding Apparel Store,Tabletennistable.Co.Uk,Supplies and Services related expenditure,11/04/2018,33.66,"Director of Housing, Neighbourhood and Building Services"
Equipment And Furniture,Furniture/Equip Stores,Www.Officefurnitureonl,Supplies and Services related expenditure,11/04/2018,99,Director of Portsmouth International Port
Business To Business Eqpt/Furn,Book Stores,Amazon Svcs Eu-Uk Amazon.,Supplies and Services related expenditure,11/04/2018,16.23,Director of Adult Services
Automobile Services & Supplies,Service Stations,Shell Fratton 178,Transport related expenditure,11/04/2018,34.04,Director of Adult Services
Entertainment,Member Clubs/Sport/Rec/Golf,Www.Pompeyitc.Org.Uk,Agency and Third Party Payments related expenditure,11/04/2018,14,Director of Children's Services and Education
Business To Business Facility/,Industrial Supplies - Def,Www.Arco.Co.Uk,Supplies and Services related expenditure,11/04/2018,125.67,Director of Community & Communication
Facilities/Repair Services,Small Appliance Repair Def,Phone Repair Doctor,Supplies and Services related expenditure,11/04/2018,9.99,Director of Regeneration
Business To Business Eqpt/Furn,Durable Goods - Default,Seton,Premises related expenditure,11/04/2018,3.64,Director of Children's Services and Education
Business To Business Eqpt/Furn,Book Stores,Amazon Svcs Eu-Uk Amazon.,Supplies and Services related expenditure,11/04/2018,38.09,Director of Children's Services and Education
Business To Business Eqpt/Furn,Book Stores,Amazon Svcs Eu-Uk Amazon.,Supplies and Services related expenditure,11/04/2018,21.68,Director of Children's Services and Education
Retail,Grocery Stores/Supermarkets,Asda George Com Leeds,Supplies and Services related expenditure,11/04/2018,376.63,Director of Finance & IT
Retail,Grocery Stores/Supermarkets,Asda George Com Leeds,Supplies and Services related expenditure,11/04/2018,376.63,Director of Finance & IT
Transportation,"Parking Lots, Meters, Garages",Bhcc Lanes Car Park,Transport related expenditure,11/04/2018,11.67,Director of Children's Services and Education
Medical,Lab/Med/Hospital Equipment,Wightman & Parrish,Premises related expenditure,11/04/2018,52.56,"Director of Housing, Neighbourhood and Building Services"
Other Supplies,Discount Stores,Argos Farlington I,Supplies and Services related expenditure,11/04/2018,107.45,"Director of Housing, Neighbourhood and Building Services"
Transportation,"Parking Lots, Meters, Garages",Southampton Cc Parking,Transport related expenditure,11/04/2018,4.17,"Director of HR, Legal,  Audit & Performance"
Entertainment,Amusement/Rec Serv - Def,Playzone Portsmouth,Supplies and Services related expenditure,11/04/2018,41.67,"Director of Housing, Neighbourhood and Building Services"
Retail,Grocery Stores/Supermarkets,Tesco Stores 4611,Supplies and Services related expenditure,11/04/2018,16.67,Director of Culture & City Development
Retail,Grocery Stores/Supermarkets,Asda Stores,Supplies and Services related expenditure,11/04/2018,35.24,Director of Adult Services
Transportation,Passenger Railways,Trainline,Supplies and Services related expenditure,11/04/2018,25.95,Director of Regeneration
Retail,Grocery Stores/Supermarkets,Asda Stores,Supplies and Services related expenditure,11/04/2018,13.33,"Director of Housing, Neighbourhood and Building Services"
Miscellaneous,Charitable/Soc Service Orgs,Salvation Army,Capital related expenditure,11/04/2018,80,OTHER
Hotels And Motels,Lodging/Hotels/Motels/Resorts,Haven Guest House,Agency and Third Party Payments related expenditure,11/04/2018,490,"Director of Housing, Neighbourhood and Building Services"
Hotels And Motels,Lodging/Hotels/Motels/Resorts,Haven Guest House,Agency and Third Party Payments related expenditure,11/04/2018,525,"Director of Housing, Neighbourhood and Building Services"
Government,Govt Serv - Default,Portsmouth City Co,Transport related expenditure,11/04/2018,63.33,Director of Finance & IT
Eating And Drinking Places,Fast Food Restaurants,Costa Coffee 43040140,Supplies and Services related expenditure,11/04/2018,1.75,Director of Adult Services
Business Expenses/Services,Postage Stamps,Post Office Counter,Supplies and Services related expenditure,11/04/2018,5.46,OTHER
Transportation,Passenger Railways,Sw Railway,Transport related expenditure,11/04/2018,61.6,Director of Finance & IT
Other Supplies,Discount Stores,Argos Ltd,Supplies and Services related expenditure,11/04/2018,13.32,"Director of Housing, Neighbourhood and Building Services"
Facilities/Repair Supplies,Lumber/Build. Supply Stores,B & Q 1260,Supplies and Services related expenditure,11/04/2018,20,"Director of Housing, Neighbourhood and Building Services"
Miscellaneous,Charitable/Soc Service Orgs,Paypal,Supplies and Services related expenditure,11/04/2018,32.93,Director of Culture & City Development
Equipment And Furniture,Household Appliance Stores,Wilko Retail Limit,Premises related expenditure,11/04/2018,55.58,"Director of Housing, Neighbourhood and Building Services"
Medical,Lab/Med/Hospital Equipment,Wightman & Parrish,Premises related expenditure,11/04/2018,42.71,Director of Adult Services
Entertainment,Amusement/Rec Serv - Def,Playzone Portsmouth,Supplies and Services related expenditure,11/04/2018,3.33,Director of Children's Services and Education
Entertainment,Bands/Orchestras/Entertain,Netherlands Nat Circus,Supplies and Services related expenditure,11/04/2018,7.5,Director of Children's Services and Education
Entertainment,Motion Picture Theatres,Vue Bsl Ltd,Supplies and Services related expenditure,11/04/2018,-8.3,Director of Children's Services and Education
Entertainment,Bands/Orchestras/Entertain,Netherlands Nat Circus,Supplies and Services related expenditure,11/04/2018,82.5,Director of Children's Services and Education
Entertainment,Amusement/Rec Serv - Def,Playzone Portsmouth,Supplies and Services related expenditure,11/04/2018,80,Director of Children's Services and Education
Transportation,"Parking Lots, Meters, Garages",Gunwharf Quays,Transport related expenditure,11/04/2018,1.75,Director of Children's Services and Education
Entertainment,Member Clubs/Sport/Rec/Golf,Romsey Rapids Sports C,Agency and Third Party Payments related expenditure,11/04/2018,3.54,Director of Children's Services and Education
Eating And Drinking Places,Eating Places/Restaurants,Costa,Agency and Third Party Payments related expenditure,11/04/2018,4.46,Director of Children's Services and Education
Entertainment,Motion Picture Theatres,Vue Bsl Ltd,Agency and Third Party Payments related expenditure,11/04/2018,7.49,Director of Children's Services and Education
Eating And Drinking Places,Eating Places/Restaurants,Nandos Portsmouth,Agency and Third Party Payments related expenditure,11/04/2018,13.58,Director of Children's Services and Education
Transportation,Passenger Railways,Selfserve Ticket,Transport related expenditure,11/04/2018,6.1,Director of Adult Services
Other Supplies,Gift/Card/Novelty And Souvenir Stores,Rosettes Direct,Agency and Third Party Payments related expenditure,11/04/2018,120.11,Director of Culture & City Development
Medical,Lab/Med/Hospital Equipment,Wightman & Parrish Ltd,Supplies and Services related expenditure,11/04/2018,25.1,"Director of Housing, Neighbourhood and Building Services"
Miscellaneous,Charitable/Soc Service Orgs,Inst Of Lic,Supplies and Services related expenditure,11/04/2018,300,Director of Culture & City Development
Medical,Lab/Med/Hospital Equipment,Wightman & Parrish Ltd,Premises related expenditure,11/04/2018,7.2,"Director of Housing, Neighbourhood and Building Services"
Business To Business Facility/,Industrial Supplies - Def,Www.Arco.Co.Uk,Supplies and Services related expenditure,11/04/2018,41.46,"Director of Housing, Neighbourhood and Building Services"
Medical,Lab/Med/Hospital Equipment,Wightman & Parrish Ltd,Premises related expenditure,11/04/2018,45.5,"Director of Housing, Neighbourhood and Building Services"
Medical,Lab/Med/Hospital Equipment,Wightman & Parrish Ltd,Premises related expenditure,11/04/2018,71.09,"Director of Housing, Neighbourhood and Building Services"
Miscellaneous,Other Direct Marketers,Amazon UK Retail,Supplies and Services related expenditure,11/04/2018,22.54,Director of Children's Services and Education
Other Supplies,Department Stores,The Range,Supplies and Services related expenditure,11/04/2018,6.25,"Director of Housing, Neighbourhood and Building Services"
Transportation,"Parking Lots, Meters, Garages",Ncp Limited,Transport related expenditure,11/04/2018,3.33,Director of Children's Services and Education
Retail,Grocery Stores/Supermarkets,Tesco Store 3048,Supplies and Services related expenditure,11/04/2018,5.83,Director of Children's Services and Education
Retail,Grocery Stores/Supermarkets,Tesco Store 3048,Supplies and Services related expenditure,11/04/2018,18.94,Director of Children's Services and Education
Miscellaneous,Other Direct Marketers,Amazon UK Retail,Supplies and Services related expenditure,11/04/2018,8.12,"Director of Housing, Neighbourhood and Building Services"
Miscellaneous,Other Direct Marketers,Amazon UK Retail,Supplies and Services related expenditure,11/04/2018,8.45,"Director of Housing, Neighbourhood and Building Services"
Medical,Lab/Med/Hospital Equipment,Wightman & Parrish,Premises related expenditure,11/04/2018,92.11,Director of Adult Services
Business To Business Other Sup,Uniforms & Commercial Clothing,Arco Ltd,Supplies and Services related expenditure,06/04/2018,7.43,"Director of Housing, Neighbourhood and Building Services"
Business To Business Other Sup,Uniforms & Commercial Clothing,Arco Ltd,Supplies and Services related expenditure,10/04/2018,17.06,"Director of Housing, Neighbourhood and Building Services"
Business Expenses/Services,Stationery Stores,Banner Group Ltd,Supplies and Services related expenditure,10/04/2018,15.5,Director of Children's Services and Education
Transportation,Passenger Railways,Sw Railway,Transport related expenditure,10/04/2018,136.9,Director of Children's Services and Education
Other Supplies,Catalog Merchant,Www.Uk.Insight.Com,Supplies and Services related expenditure,10/04/2018,77.76,"Director of Housing, Neighbourhood and Building Services"
Transportation,Passenger Railways,Sw Railway,Supplies and Services related expenditure,10/04/2018,74.2,"Director of HR, Legal,  Audit & Performance"
Other Supplies,Camera & Photo Supply Store,British Pathe,Supplies and Services related expenditure,11/04/2018,1039.5,Director of Culture & City Development
Retail,Grocery Stores/Supermarkets,Aldi 30 775,Supplies and Services related expenditure,11/04/2018,6.62,Director of Adult Services
Professional Services,Mgmt/Consult/Public Rel Ser,Tv Licensing,Supplies and Services related expenditure,11/04/2018,150.5,Director of Adult Services
Business To Business Other Sup,Uniforms & Commercial Clothing,Arco Ltd,Supplies and Services related expenditure,11/04/2018,39.74,"Director of Housing, Neighbourhood and Building Services"
Facilities/Repair Supplies,Lawn/Garden Supply/Nursery,Carters Of Swanwic,Supplies and Services related expenditure,11/04/2018,75.25,"Director of Housing, Neighbourhood and Building Services"
Automobile Services & Supplies,Service Stations,Park Gate Sf Connect,Supplies and Services related expenditure,11/04/2018,6.73,"Director of Housing, Neighbourhood and Building Services"
Hotels And Motels,Premier Travel Inns,Premier Inn 44537180,Agency and Third Party Payments related expenditure,11/04/2018,503.69,"Director of Housing, Neighbourhood and Building Services"
Government,Govt Serv - Default,Fareham Borough Counci,Supplies and Services related expenditure,11/04/2018,44,"Director of Housing, Neighbourhood and Building Services"
Freight/Courier/Warehouse Svcs,Public Warehousing,Www.Preservationequipm,Supplies and Services related expenditure,11/04/2018,13.85,Director of Culture & City Development
Medical,Lab/Med/Hospital Equipment,Wightman & Parrish Ltd,Supplies and Services related expenditure,12/04/2018,208.19,"Director of Housing, Neighbourhood and Building Services"
Business To Business Facility/,Hardware Equipment/Supplies,Dorset Architectural I,Supplies and Services related expenditure,12/04/2018,36.95,Director of Adult Services
Equipment And Furniture,Household Appliance Stores,Wilko Retail Limit,Supplies and Services related expenditure,12/04/2018,8.33,"Director of Housing, Neighbourhood and Building Services"
Miscellaneous,Fines,Pastdue Cred Vterminal,Premises related expenditure,12/04/2018,96.35,"Director of Housing, Neighbourhood and Building Services"
Miscellaneous,Fines,Pastdue Cred Vterminal,Supplies and Services related expenditure,12/04/2018,15.18,"Director of Housing, Neighbourhood and Building Services"
Clothing/Shoes/Uniforms,Shoe Stores,Timpson,Supplies and Services related expenditure,12/04/2018,10,"Director of Housing, Neighbourhood and Building Services"
Retail,Electronics Sales,Wifigear,Supplies and Services related expenditure,12/04/2018,-20.4,"Director of Housing, Neighbourhood and Building Services"
Retail,Electronics Sales,Wifigear,Supplies and Services related expenditure,12/04/2018,259.4,"Director of Housing, Neighbourhood and Building Services"
Equipment And Furniture,Phone Serv/Equip Non-Util,Maplin Portsmouth Po1,Supplies and Services related expenditure,12/04/2018,12.49,"Director of Housing, Neighbourhood and Building Services"
Business To Business Eqpt/Furn,Book Stores,Amazon Svcs Eu-Uk Amazon.,Supplies and Services related expenditure,12/04/2018,14.96,"Director of Housing, Neighbourhood and Building Services"
Business To Business Eqpt/Furn,Book Stores,Amazon Svcs Eu-Uk Amazon.,Supplies and Services related expenditure,12/04/2018,17.98,"Director of Housing, Neighbourhood and Building Services"
Transportation,Local Commuter Transport,Hovertravel Ltd,Supplies and Services related expenditure,12/04/2018,47.8,Director of Children's Services and Education
Facilities/Repair Supplies,Bicycle Shops/Sales/Service,Portsmouth Cycle Excha,Transport related expenditure,12/04/2018,25,Director of Regeneration
Business To Business Facility/,Hardware Equipment/Supplies,Croma Locksmiths & Sec,Supplies and Services related expenditure,12/04/2018,54.58,Director of Regeneration
Business Services,Business Services - Default,Fast Key Services Limi,Supplies and Services related expenditure,12/04/2018,6.05,Director of Adult Services
Transportation,Passenger Railways,Sw Railway,Transport related expenditure,12/04/2018,24.4,Director of Adult Services
Miscellaneous,Other Direct Marketers,Amazon UK Retail,Supplies and Services related expenditure,12/04/2018,64.67,Director of Adult Services
Retail,Grocery Stores/Supermarkets,Www.Iceland.Co.Uk,Supplies and Services related expenditure,12/04/2018,36.32,Director of Adult Services
Other Supplies,Catalog Merchant,Www.Nisbets.Com,Supplies and Services related expenditure,12/04/2018,97,Director of Adult Services
Auto/Vehicle Expenses,Auto Service Shops/Non Dealer,Boarhunt Group Portsmout,Transport related expenditure,12/04/2018,282.95,Director of Culture & City Development
Retail,Grocery Stores/Supermarkets,Tesco Store 3055,Supplies and Services related expenditure,12/04/2018,0.17,Director of Adult Services
Retail,Grocery Stores/Supermarkets,Tesco Store 3055,Supplies and Services related expenditure,12/04/2018,12.68,Director of Adult Services
Retail,Grocery Stores/Supermarkets,Sainsburys S/mkts,Supplies and Services related expenditure,12/04/2018,40,Director of Children's Services and Education
Equipment And Furniture,Phone Serv/Equip Non-Util,O2 Uk,Supplies and Services related expenditure,12/04/2018,8.33,Director of Children's Services and Education
Airlines,Airlines And Air Carriers,Flybe Ltd,Transport related expenditure,12/04/2018,200.57,Director of Children's Services and Education
Other Supplies,Misc Gen Merchandise - Def,Www.Kitchenlabuk.Com,Supplies and Services related expenditure,12/04/2018,98,Director of Adult Services
Government,Govt Serv - Default,Portsmouth City Co,Transport related expenditure,12/04/2018,85,Director of Adult Services
Equipment And Furniture,Phone Serv/Equip Non-Util,Bt Bill Payment 1,Supplies and Services related expenditure,12/04/2018,42.91,Director of Adult Services
Miscellaneous,Member Organizations - Def,Network My Club Ltd,Supplies and Services related expenditure,12/04/2018,12,Director of Regeneration
Entertainment,Member Clubs/Sport/Rec/Golf,Www.Pompeyitc.Org.Uk,Agency and Third Party Payments related expenditure,12/04/2018,14,Director of Children's Services and Education
Other Supplies,Misc Speciality Retail,Tesco Direct,Premises related expenditure,12/04/2018,82.5,Director of Children's Services and Education
Business To Business Eqpt/Furn,Book Stores,Amazon UK Marketplace,Supplies and Services related expenditure,12/04/2018,13.94,Director of Adult Services
Business To Business Eqpt/Furn,Book Stores,Amazon UK Marketplace,Supplies and Services related expenditure,12/04/2018,15.17,Director of Adult Services
Hotels And Motels,Hotel Ibis,Hotel Ibis,Supplies and Services related expenditure,12/04/2018,871,Director of Adult Services
Transportation,"Parking Lots, Meters, Garages",Portsmouth City Counci,Transport related expenditure,12/04/2018,10,Director of Children's Services and Education
Business To Business Facility/,Industrial Supplies - Def,Www.Arco.Co.Uk,Supplies and Services related expenditure,12/04/2018,38.52,"Director of Housing, Neighbourhood and Building Services"
Other Supplies,Fuel Dealers,Etills Limited,Supplies and Services related expenditure,12/04/2018,67.5,Director of Regeneration
Government,Govt Serv - Default,Cdc Car Parks 1,Capital related expenditure,12/04/2018,4.67,OTHER
Equipment And Furniture,Household Appliance Stores,Machine Mart Ltd,Supplies and Services related expenditure,12/04/2018,69.98,Director of Portsmouth International Port
Business To Business Facility/,Industrial Supplies - Def,Cromwell Portsmouth,Supplies and Services related expenditure,12/04/2018,108.26,Director of Portsmouth International Port
Business To Business Facility/,Electrical Parts/Equipment,Edmundson Electrical,Premises related expenditure,12/04/2018,156.31,Director of Portsmouth International Port
Business Services,Business Services - Default,M L (UK) Limited,Premises related expenditure,12/04/2018,279.51,Director of Portsmouth International Port
Medical,Lab/Med/Hospital Equipment,Wightman & Parrish Ltd,Premises related expenditure,12/04/2018,304.88,Director of Portsmouth International Port
Retail,Artist/Craft Shops,Hobbycraft (Internet),Supplies and Services related expenditure,12/04/2018,18.92,Director of Regeneration
Retail,Grocery Stores/Supermarkets,Tesco Stores 4579,Supplies and Services related expenditure,12/04/2018,21.25,Director of Adult Services
Retail,Grocery Stores/Supermarkets,Tesco Stores 4579,Supplies and Services related expenditure,12/04/2018,1.91,Director of Adult Services
Business Services,Business Services - Default,Eb *hackney Cycling Co,Employees related expenditure,12/04/2018,112.5,Director of Regeneration
Business To Business Facility/,Hardware Equipment/Supplies,Vl Architectural Ironm,Supplies and Services related expenditure,12/04/2018,41.6,Director of Regeneration
Government,Govt Serv - Default,Portsmouth Council,Agency and Third Party Payments related expenditure,12/04/2018,4,Director of Culture & City Development
Business To Business Eqpt/Furn,Book Stores,Amazon UK Marketplace,Supplies and Services related expenditure,12/04/2018,6.25,Director of Children's Services and Education
Business To Business Eqpt/Furn,Book Stores,Amazon Svcs Eu-Uk Amazon.,Supplies and Services related expenditure,12/04/2018,10.83,Director of Children's Services and Education
Business To Business Eqpt/Furn,Book Stores,Amazon Svcs Eu-Uk Amazon.,Supplies and Services related expenditure,12/04/2018,10.83,Director of Children's Services and Education
Other Supplies,Misc Speciality Retail,Amazon Eu Amazon.Co.Uk,Supplies and Services related expenditure,12/04/2018,56.88,Director of Children's Services and Education
Miscellaneous,Fines,Combined Court Cen,Supplies and Services related expenditure,12/04/2018,121,"Director of Housing, Neighbourhood and Building Services"
Government,Govt Serv - Default,Portsmouth City Co,Transport related expenditure,12/04/2018,10.25,Chief Exec
Retail,Grocery Stores/Supermarkets,Lidl Uk,Supplies and Services related expenditure,12/04/2018,10.8,Director of Children's Services and Education
Retail,Grocery Stores/Supermarkets,Lidl Uk,Supplies and Services related expenditure,12/04/2018,28.86,Director of Children's Services and Education
Equipment And Furniture,Household Appliance Stores,Wilko Retail Limit,Supplies and Services related expenditure,12/04/2018,2,Director of Children's Services and Education
Entertainment,Amusement/Rec Serv - Def,Splashdown Waterpark,Supplies and Services related expenditure,12/04/2018,-25,"Director of Housing, Neighbourhood and Building Services"
Entertainment,Amusement/Rec Serv - Def,Splashdown Waterpark,Supplies and Services related expenditure,12/04/2018,159.33,"Director of Housing, Neighbourhood and Building Services"
Other Supplies,Department Stores,Southern Co-Op 0043,Supplies and Services related expenditure,12/04/2018,3.45,"Director of Housing, Neighbourhood and Building Services"
Retail,Grocery Stores/Supermarkets,Tesco Stores 4611,Supplies and Services related expenditure,12/04/2018,0.83,"Director of Housing, Neighbourhood and Building Services"
Retail,Grocery Stores/Supermarkets,Tesco Stores 4611,Supplies and Services related expenditure,12/04/2018,13,"Director of Housing, Neighbourhood and Building Services"
Retail,Grocery Stores/Supermarkets,Tesco Stores 5153,Supplies and Services related expenditure,12/04/2018,16.44,"Director of Housing, Neighbourhood and Building Services"
Retail,Grocery Stores/Supermarkets,Tesco Stores 5153,Supplies and Services related expenditure,12/04/2018,0.08,"Director of Housing, Neighbourhood and Building Services"
Business To Business Eqpt/Furn,Book Stores,Amazon Svcs Eu-Uk Amazon.,Supplies and Services related expenditure,12/04/2018,6.65,Director of Children's Services and Education
Facilities/Repair Supplies,Hardware Stores,Robert Dyas Holdng Ltd,Supplies and Services related expenditure,12/04/2018,30.03,Director of Children's Services and Education
Medical,Osteopaths,Lbhealthcare,Supplies and Services related expenditure,12/04/2018,20,Director of Adult Services
Entertainment,Tourist Attractions And Xhbt,London Dungeons,Supplies and Services related expenditure,12/04/2018,4.17,"Director of Housing, Neighbourhood and Building Services"
Business To Business Facility/,Industrial Supplies - Def,Www.Arco.Co.Uk,Supplies and Services related expenditure,12/04/2018,235.93,"Director of Housing, Neighbourhood and Building Services"
Facilities/Repair Supplies,Floor Covering Stores,Carpetright,Premises related expenditure,12/04/2018,111.93,Director of Culture & City Development
Retail,Grocery Stores/Supermarkets,Asda Superstore,Supplies and Services related expenditure,12/04/2018,41.76,Director of Adult Services
Eating And Drinking Places,Eating Places/Restaurants,Costa,Supplies and Services related expenditure,12/04/2018,2.46,Director of Adult Services
Transportation,Passenger Railways,Selfserve Ticket,Supplies and Services related expenditure,12/04/2018,4.1,Director of Adult Services
Transportation,Passenger Railways,Ticketofficesale,Transport related expenditure,12/04/2018,12.7,"Director of HR, Legal,  Audit & Performance"
Government,Govt Serv - Default,Portsmouth City Co,Transport related expenditure,12/04/2018,63.33,Director of Children's Services and Education
Business To Business Eqpt/Furn,Book Stores,Amazon Svcs Eu-Uk Amazon.,Supplies and Services related expenditure,12/04/2018,4.57,"Director of Housing, Neighbourhood and Building Services"
Business To Business Eqpt/Furn,Book Stores,Amazon Svcs Eu-Uk Amazon.,Supplies and Services related expenditure,12/04/2018,4.58,"Director of Housing, Neighbourhood and Building Services"
Business To Business Eqpt/Furn,Book Stores,Amazon UK Marketplace,Supplies and Services related expenditure,12/04/2018,8.13,"Director of Housing, Neighbourhood and Building Services"
Caterers Food,Caterers,Bookerecomm,Supplies and Services related expenditure,12/04/2018,264.43,"Director of Housing, Neighbourhood and Building Services"
Eating And Drinking Places,Fast Food Restaurants,Takenorth Ltd,Agency and Third Party Payments related expenditure,12/04/2018,20.8,Director of Children's Services and Education
Entertainment,Bands/Orchestras/Entertain,Pyramids Centre,Supplies and Services related expenditure,12/04/2018,51.9,Director of Children's Services and Education
Transportation,Passenger Railways,Selfserve Ticket,Transport related expenditure,12/04/2018,11.7,Director of Adult Services
Government,Schools - Default,Peta Ltd,Supplies and Services related expenditure,12/04/2018,136,"Director of Housing, Neighbourhood and Building Services"
Transportation,Passenger Railways,Lul Ticket Machine,Supplies and Services related expenditure,12/04/2018,4.9,"Director of HR, Legal,  Audit & Performance"
Entertainment,Bands/Orchestras/Entertain,Bh Live Active - Mount,Supplies and Services related expenditure,12/04/2018,6,Director of Adult Services
Entertainment,Bands/Orchestras/Entertain,Pyramids Centre Hospit,Agency and Third Party Payments related expenditure,12/04/2018,2.29,Director of Children's Services and Education
Entertainment,Bands/Orchestras/Entertain,Pyramids Centre,Agency and Third Party Payments related expenditure,12/04/2018,3.15,Director of Children's Services and Education
Miscellaneous,Other Direct Marketers,Amazon UK Retail,Supplies and Services related expenditure,12/04/2018,41.44,Director of Adult Services
Government,Schools - Default,The Makaton Charit,Supplies and Services related expenditure,12/04/2018,348.29,Director of Adult Services
Auto/Vehicle Rentals,Motor Home/Rv Rentals,Southsea Leisure Park,Agency and Third Party Payments related expenditure,12/04/2018,-979.5,Director of Children's Services and Education
Hotels And Motels,Lodging/Hotels/Motels/Resorts,Qhotels Reservations,Supplies and Services related expenditure,12/04/2018,72.75,Director of Culture & City Development
Retail,Grocery Stores/Supermarkets,Tesco Stores 4611,Supplies and Services related expenditure,12/04/2018,1,Director of Children's Services and Education
Clothing/Shoes/Uniforms,Shoe Stores,The Clarks Shop,Supplies and Services related expenditure,12/04/2018,54.21,Director of Regeneration
Facilities/Repair Supplies,Lumber/Build. Supply Stores,F H Brundle Worldpay-D,Supplies and Services related expenditure,12/04/2018,127.5,Director of Regeneration
Other Supplies,Discount Stores,Www.Argos.Co.Uk,Supplies and Services related expenditure,12/04/2018,20.37,Director of Children's Services and Education
Retail,Fabric Stores,Sweetdreams,Supplies and Services related expenditure,12/04/2018,186.75,Director of Children's Services and Education
Retail,Grocery Stores/Supermarkets,Lidl Uk,Supplies and Services related expenditure,12/04/2018,1.83,"Director of Housing, Neighbourhood and Building Services"
Retail,Grocery Stores/Supermarkets,Lidl Uk,Supplies and Services related expenditure,12/04/2018,19.23,"Director of Housing, Neighbourhood and Building Services"
Business To Business Eqpt/Furn,Book Stores,Amazon UK Marketplace,Capital related expenditure,12/04/2018,18.14,OTHER
Other Supplies,Misc Speciality Retail,Incchoice,Supplies and Services related expenditure,12/04/2018,51.78,Director of Adult Services
Miscellaneous,Continuity/Subscription Mercht,Amazon Prime,Supplies and Services related expenditure,12/04/2018,7.99,Director of Children's Services and Education
Business Expenses/Services,Stationery Stores,Banner Group Ltd,Supplies and Services related expenditure,09/04/2018,3.88,OTHER
Business Expenses/Services,Stationery Stores,Banner Group Ltd,Supplies and Services related expenditure,11/04/2018,10.15,"Director of Housing, Neighbourhood and Building Services"
Professional Services,Detective/Protective Agen,Amberley Security,Supplies and Services related expenditure,11/04/2018,28.27,"Director of Housing, Neighbourhood and Building Services"
Business Expenses/Services,Stationery Stores,Banner Group Ltd,Supplies and Services related expenditure,11/04/2018,7.86,Director of Finance & IT
Business Expenses/Services,Stationery Stores,Banner Group Ltd,Supplies and Services related expenditure,11/04/2018,12.64,"Director of Housing, Neighbourhood and Building Services"
Business Expenses/Services,Stationery Stores,Banner Group Ltd,Supplies and Services related expenditure,11/04/2018,34.95,Director of Adult Services
Business Expenses/Services,Stationery Stores,Banner Group Ltd,Supplies and Services related expenditure,11/04/2018,341.61,Director of Adult Services
Business Expenses/Services,Stationery Stores,Banner Group Ltd,Supplies and Services related expenditure,11/04/2018,12.04,Director of Regeneration
Business Expenses/Services,Stationery Stores,Banner Group Ltd,Supplies and Services related expenditure,11/04/2018,48.09,Director of Regeneration
Business Expenses/Services,Stationery Stores,Banner Group Ltd,Supplies and Services related expenditure,11/04/2018,3.88,"Director of Housing, Neighbourhood and Building Services"
Business Expenses/Services,Stationery Stores,Banner Group Ltd,Supplies and Services related expenditure,11/04/2018,7.69,"Director of Housing, Neighbourhood and Building Services"
Business Expenses/Services,Stationery Stores,Banner Group Ltd,Supplies and Services related expenditure,11/04/2018,10.1,"Director of Housing, Neighbourhood and Building Services"
Business Expenses/Services,Stationery Stores,Banner Group Ltd,Supplies and Services related expenditure,11/04/2018,15.01,"Director of Housing, Neighbourhood and Building Services"
Business Expenses/Services,Stationery Stores,Banner Group Ltd,Supplies and Services related expenditure,11/04/2018,1.59,Director of Community & Communication
Business Expenses/Services,Stationery Stores,Banner Group Ltd,Supplies and Services related expenditure,11/04/2018,55.56,Director of Community & Communication
Business Expenses/Services,Stationery Stores,Banner Group Ltd,Supplies and Services related expenditure,11/04/2018,13.55,"Director of Housing, Neighbourhood and Building Services"
Business Expenses/Services,Stationery Stores,Banner Group Ltd,Supplies and Services related expenditure,11/04/2018,297.97,"Director of Housing, Neighbourhood and Building Services"
Business Expenses/Services,Stationery Stores,Banner Group Ltd,Supplies and Services related expenditure,11/04/2018,11.03,Director of Adult Services
Business Expenses/Services,Stationery Stores,Banner Group Ltd,Supplies and Services related expenditure,11/04/2018,21.58,Director of Adult Services
Business Expenses/Services,Stationery Stores,Banner Group Ltd,Supplies and Services related expenditure,11/04/2018,5.83,Director of Regeneration
Business Expenses/Services,Stationery Stores,Banner Group Ltd,Supplies and Services related expenditure,11/04/2018,220.69,Director of Adult Services
Business Expenses/Services,Stationery Stores,Banner Group Ltd,Supplies and Services related expenditure,11/04/2018,45.6,"Director of Housing, Neighbourhood and Building Services"
Business Expenses/Services,Stationery Stores,Banner Group Ltd,Supplies and Services related expenditure,11/04/2018,26.82,"Director of HR, Legal,  Audit & Performance"
Transportation,Passenger Railways,Sw Railway,Transport related expenditure,12/04/2018,63.6,"Director of Housing, Neighbourhood and Building Services"
Freight/Courier/Warehouse Svcs,Public Warehousing,Www.Preservationequipm,Capital related expenditure,12/04/2018,84.95,OTHER
Business Expenses/Services,Stationery Stores,Banner Group Ltd,Supplies and Services related expenditure,12/04/2018,5.03,"Director of Housing, Neighbourhood and Building Services"
Facilities/Repair Supplies,Lumber/Build. Supply Stores,Screwfix Direct,Supplies and Services related expenditure,12/04/2018,19.99,Director of Regeneration
Facilities/Repair Supplies,Lumber/Build. Supply Stores,Screwfix Direct,Supplies and Services related expenditure,12/04/2018,26.11,Director of Regeneration
Business Expenses/Services,Stationery Stores,Banner Group Ltd,Supplies and Services related expenditure,12/04/2018,79.76,Director of Regeneration
Facilities/Repair Supplies,Lumber/Build. Supply Stores,B & Q 1260,Premises related expenditure,12/04/2018,7.87,Director of Children's Services and Education
Business To Business Facility/,Industrial Supplies - Def,Hyphose Ltd,Premises related expenditure,12/04/2018,341.25,Director of Portsmouth International Port
Other Supplies,Discount Stores,B&m Retail,Premises related expenditure,12/04/2018,11.65,Director of Children's Services and Education
Eating And Drinking Places,Eating Places/Restaurants,Pret A Manger,Supplies and Services related expenditure,12/04/2018,3.99,Director of Children's Services and Education
Eating And Drinking Places,Eating Places/Restaurants,Pret A Manger,Supplies and Services related expenditure,12/04/2018,2.28,Director of Children's Services and Education
Retail,Grocery Stores/Supermarkets,Farmfoods- Portsmo,Supplies and Services related expenditure,12/04/2018,21.24,"Director of Housing, Neighbourhood and Building Services"
Business Expenses/Services,Stationery Stores,Banner Group Ltd,Supplies and Services related expenditure,12/04/2018,10.08,Director of Community & Communication
Other Supplies,Department Stores,The Range,Supplies and Services related expenditure,12/04/2018,17.47,"Director of Housing, Neighbourhood and Building Services"
Facilities/Repair Supplies,Lumber/Build. Supply Stores,B & Q 1260,Supplies and Services related expenditure,12/04/2018,22.24,"Director of Housing, Neighbourhood and Building Services"
Other Supplies,Department Stores,The Range,Supplies and Services related expenditure,12/04/2018,26.86,Director of Children's Services and Education
Automobile Services & Supplies,Service Stations,Highfield Service Station,Supplies and Services related expenditure,12/04/2018,21.16,Director of Children's Services and Education
Retail,Grocery Stores/Supermarkets,Aldi 775 145,Supplies and Services related expenditure,12/04/2018,6.81,Director of Children's Services and Education
Business To Business Eqpt/Furn,Book Stores,Amazon Svcs Eu-Uk Amazon.,Supplies and Services related expenditure,12/04/2018,57.99,"Director of Housing, Neighbourhood and Building Services"
Other Supplies,Discount Stores,B&m Retail,Supplies and Services related expenditure,12/04/2018,19.13,Director of Adult Services
Eating And Drinking Places,Eating Places/Restaurants,Deep Blue,Agency and Third Party Payments related expenditure,12/04/2018,9.58,Director of Children's Services and Education
Business Expenses/Services,Stationery Stores,Banner Group Ltd,Supplies and Services related expenditure,12/04/2018,25.38,Director of Culture & City Development
Business Expenses/Services,Stationery Stores,Banner Group Ltd,Supplies and Services related expenditure,12/04/2018,2.31,Director of Culture & City Development
Business To Business Facility/,Hardware Equipment/Supplies,Dorset Architectural I,Supplies and Services related expenditure,13/04/2018,13.5,Director of Adult Services
Transportation,"Parking Lots, Meters, Garages",Carillion Government Ser,Transport related expenditure,13/04/2018,1.5,Director of Children's Services and Education
Facilities/Repair Supplies,Hardware Stores,Robert Dyas Holdng Ltd,Capital related expenditure,13/04/2018,15.96,OTHER
Business To Business Facility/,Industrial Supplies - Def,Www.Arco.Co.Uk,Supplies and Services related expenditure,13/04/2018,45.07,Director of Culture & City Development
Business To Business Facility/,Industrial Supplies - Def,Www.Arco.Co.Uk,Supplies and Services related expenditure,13/04/2018,158.89,Director of Culture & City Development
Business To Business Facility/,Hardware Equipment/Supplies,Croma Locksmiths & Sec,Premises related expenditure,13/04/2018,13.33,Director of Children's Services and Education
Business To Business Eqpt/Furn,Computers/Peripherals/Software,Hotjar,Supplies and Services related expenditure,13/04/2018,25.88,Director of Community & Communication
Retail,Grocery Stores/Supermarkets,Tesco Stores 6002,Supplies and Services related expenditure,13/04/2018,12.92,Director of Children's Services and Education
Retail,Grocery Stores/Supermarkets,Tesco Stores 6002,Supplies and Services related expenditure,13/04/2018,132.93,Director of Children's Services and Education
Equipment And Furniture,Household Appliance Stores,Ao Retail Limited,Supplies and Services related expenditure,13/04/2018,190.83,Director of Children's Services and Education
Hotels And Motels,Hotel Ibis,Hotel Ibis,Agency and Third Party Payments related expenditure,13/04/2018,234.75,"Director of Housing, Neighbourhood and Building Services"
Hotels And Motels,Hotel Ibis,Hotel Ibis,Agency and Third Party Payments related expenditure,13/04/2018,503.88,"Director of Housing, Neighbourhood and Building Services"
Other Supplies,Department Stores,Southern Co-Op 0247,Premises related expenditure,13/04/2018,0.92,Director of Adult Services
Airlines,Airlines And Air Carriers,Flybe Czbyn7,Transport related expenditure,13/04/2018,172.21,Director of Children's Services and Education
Automobile Services & Supplies,Service Stations,Shell Fratton 178,Supplies and Services related expenditure,13/04/2018,18.13,Director of Regeneration
Retail,Grocery Stores/Supermarkets,Tesco Stores 5153,Supplies and Services related expenditure,13/04/2018,2,Director of Children's Services and Education
Retail,Grocery Stores/Supermarkets,Tesco Stores 5153,Supplies and Services related expenditure,13/04/2018,1.33,Director of Children's Services and Education
Retail,Grocery Stores/Supermarkets,Tesco Stores 4579,Supplies and Services related expenditure,13/04/2018,105.24,Director of Children's Services and Education
Business To Business Facility/,Industrial Supplies - Def,Arco Ltd,Supplies and Services related expenditure,13/04/2018,262.61,"Director of Housing, Neighbourhood and Building Services"
Eating And Drinking Places,Eating Places/Restaurants,Roadchef M Serv Upay L,Supplies and Services related expenditure,13/04/2018,5.18,Director of Children's Services and Education
Transportation,"Parking Lots, Meters, Garages",Portsmouth City Counci,Transport related expenditure,13/04/2018,3.1,Director of Children's Services and Education
Facilities/Repair Supplies,Drapery & Upholstery Stores,Poundstretcher 629,Supplies and Services related expenditure,13/04/2018,3.32,"Director of Housing, Neighbourhood and Building Services"
Miscellaneous,Other Direct Marketers,Amazon UK Retail,Supplies and Services related expenditure,13/04/2018,24.52,Director of Regeneration
Retail,Grocery Stores/Supermarkets,W M Morrison Plc,Supplies and Services related expenditure,13/04/2018,10.32,"Director of Housing, Neighbourhood and Building Services"
Retail,Grocery Stores/Supermarkets,Asda Stores,Supplies and Services related expenditure,13/04/2018,6.8,Director of Adult Services
Retail,Grocery Stores/Supermarkets,Asda Stores,Supplies and Services related expenditure,13/04/2018,3.29,Director of Adult Services
Retail,Grocery Stores/Supermarkets,Asda Stores,Supplies and Services related expenditure,13/04/2018,2.77,Director of Adult Services
Retail,Grocery Stores/Supermarkets,Asda Stores,Supplies and Services related expenditure,13/04/2018,9.58,Director of Adult Services
Eating And Drinking Places,Eating Places/Restaurants,Takeaway.Je,Supplies and Services related expenditure,13/04/2018,11.7,Director of Children's Services and Education
Eating And Drinking Places,Eating Places/Restaurants,Takeaway.Je,Supplies and Services related expenditure,13/04/2018,45.1,Director of Children's Services and Education
Facilities/Repair Supplies,Lumber/Build. Supply Stores,B&q Direct,Supplies and Services related expenditure,13/04/2018,48,Director of Children's Services and Education
Business To Business Facility/,Electrical Parts/Equipment,Audio Logic Limited,Supplies and Services related expenditure,13/04/2018,661.2,Director of Portsmouth International Port
Government,Govt Serv - Default,Portsmouth City Co,Transport related expenditure,13/04/2018,10.25,Chief Exec
Government,Govt Serv - Default,Hampshire County Counc,Supplies and Services related expenditure,13/04/2018,112.05,Director of Adult Services
Business Services,Business Services - Default,Fast Key Services Limi,Supplies and Services related expenditure,13/04/2018,6.97,"Director of Housing, Neighbourhood and Building Services"
Retail,Shoe Repair/Shine/Hat Clean,Timpson Ltd,Premises related expenditure,13/04/2018,8.33,Director of Culture & City Development
Medical,Lab/Med/Hospital Equipment,Wightman & Parrish,Premises related expenditure,13/04/2018,26.7,"Director of Housing, Neighbourhood and Building Services"
Transportation,Passenger Railways,Ticketofficesale,Transport related expenditure,13/04/2018,25.67,Director of Children's Services and Education
Retail,Grocery Stores/Supermarkets,Www.Iceland.Co.Uk,Supplies and Services related expenditure,13/04/2018,43.41,Director of Adult Services
Entertainment,Amusement Parks/Circus,Thorpe Park Cc,Supplies and Services related expenditure,13/04/2018,-61.25,"Director of Housing, Neighbourhood and Building Services"
Business To Business Eqpt/Furn,Computer Software Stores,Textmagic.Com,Supplies and Services related expenditure,13/04/2018,20,Director of Portsmouth International Port
Transportation,Passenger Railways,Selfserve Ticket,Transport related expenditure,13/04/2018,74.1,"Director of HR, Legal,  Audit & Performance"
Miscellaneous,Civic/Social/Fraternal Assc,Love2shop.Co.Uk,Supplies and Services related expenditure,13/04/2018,150,Director of Children's Services and Education
Facilities Maintenance,Clean/Maint/Janitoral Serv,Initial Washroom,Premises related expenditure,13/04/2018,74.28,Director of Regeneration
Retail,Grocery Stores/Supermarkets,Tesco Store 3055,Supplies and Services related expenditure,13/04/2018,4,Director of Children's Services and Education
Other Supplies,Discount Stores,B&m Retail,Supplies and Services related expenditure,13/04/2018,10.57,Director of Children's Services and Education
Business Expenses/Services,Postage Stamps,Post Office Counter,Agency and Third Party Payments related expenditure,13/04/2018,9.75,Director of Children's Services and Education
Business To Business Eqpt/Furn,Book Stores,Amazon Svcs Eu-Uk Amazon.,Premises related expenditure,13/04/2018,20.2,Director of Children's Services and Education
Medical,Lab/Med/Hospital Equipment,Wightman & Parrish,Supplies and Services related expenditure,13/04/2018,8.19,Director of Adult Services
Medical,Lab/Med/Hospital Equipment,Wightman & Parrish,Supplies and Services related expenditure,13/04/2018,187.59,Director of Adult Services
Equipment And Furniture,Furniture/Equip Stores,City Museum,Supplies and Services related expenditure,13/04/2018,11.25,Director of Culture & City Development
Transportation,Passenger Railways,Ticketofficesale,Transport related expenditure,13/04/2018,57.3,Director of Children's Services and Education
Business To Business Eqpt/Furn,Book Stores,Waterstones,Supplies and Services related expenditure,13/04/2018,15.04,Director of Children's Services and Education
Transportation,Local Commuter Transport,Hovertravel Ltd,Transport related expenditure,13/04/2018,38.24,Director of Children's Services and Education
Business To Business Facility/,Hardware Equipment/Supplies,Croma Locksmiths & Sec,Supplies and Services related expenditure,13/04/2018,33.57,"Director of Housing, Neighbourhood and Building Services"
Transportation,Bus Lines/Charter/Tour,National Express Limited,Transport related expenditure,13/04/2018,39.7,"Director of Housing, Neighbourhood and Building Services"
Miscellaneous,Charitable/Soc Service Orgs,Salvation Army,Capital related expenditure,13/04/2018,130,OTHER
Miscellaneous,Charitable/Soc Service Orgs,Salvation Army,Capital related expenditure,13/04/2018,215,OTHER
Medical,Lab/Med/Hospital Equipment,Wightman & Parrish Ltd,Supplies and Services related expenditure,13/04/2018,200.16,Director of Adult Services
Business To Business Facility/,Industrial Supplies - Def,Arco Ltd,Supplies and Services related expenditure,13/04/2018,20.32,Director of Culture & City Development
Business To Business Eqpt/Furn,Stationery/Office Supplies,Cartridge Save,Supplies and Services related expenditure,13/04/2018,382.48,"Director of Housing, Neighbourhood and Building Services"
Transportation,Passenger Railways,Ticketofficesale,Transport related expenditure,13/04/2018,47.5,Chief Exec
Entertainment,Motion Picture Theatres,Vue Bsl Ltd,Supplies and Services related expenditure,13/04/2018,-4.15,Director of Children's Services and Education
Entertainment,Motion Picture Theatres,Vue Bsl Ltd,Supplies and Services related expenditure,13/04/2018,-31.13,Director of Children's Services and Education
Retail,Grocery Stores/Supermarkets,Asda Stores,Supplies and Services related expenditure,13/04/2018,1.67,Director of Children's Services and Education
Retail,Grocery Stores/Supermarkets,Asda Stores,Agency and Third Party Payments related expenditure,13/04/2018,0.92,Director of Children's Services and Education
Miscellaneous,Sport/Recreational Camps,Monkey Bizness Play Lt,Supplies and Services related expenditure,13/04/2018,6.8,Director of Children's Services and Education
Miscellaneous,Sport/Recreational Camps,Monkey Bizness Play Lt,Agency and Third Party Payments related expenditure,13/04/2018,15.5,Director of Children's Services and Education
Eating And Drinking Places,Bars/Taverns/Lounges/Discos,Sailmaker,Agency and Third Party Payments related expenditure,13/04/2018,18.33,Director of Children's Services and Education
Transportation,Passenger Railways,Selfserve Ticket,Transport related expenditure,13/04/2018,11.7,Director of Adult Services
Transportation,Passenger Railways,Sw Railway,Transport related expenditure,13/04/2018,61.6,Director of Finance & IT
Transportation,Passenger Railways,Lul Ticket Machine,Supplies and Services related expenditure,13/04/2018,4.9,"Director of HR, Legal,  Audit & Performance"
Transportation,Passenger Railways,Ticketofficesale,Transport related expenditure,13/04/2018,132.95,Director of Regeneration
Business To Business Facility/,Industrial Supplies - Def,Directa (UK)ltd,Agency and Third Party Payments related expenditure,13/04/2018,218.4,Director of Culture & City Development
Equipment And Furniture,Furniture/Equip Stores,Ikea Limited,Premises related expenditure,13/04/2018,35,Director of Children's Services and Education
Facilities/Repair Supplies,Home Supply Warehouse Stores,Manomanouk,Supplies and Services related expenditure,13/04/2018,58.32,"Director of Housing, Neighbourhood and Building Services"
Medical,Lab/Med/Hospital Equipment,Wightman & Parrish Ltd,Premises related expenditure,13/04/2018,27.98,"Director of Housing, Neighbourhood and Building Services"
Medical,Lab/Med/Hospital Equipment,Wightman & Parrish Ltd,Premises related expenditure,13/04/2018,35.59,"Director of Housing, Neighbourhood and Building Services"
Business To Business Facility/,Industrial Supplies - Def,Arco Ltd,Supplies and Services related expenditure,13/04/2018,81.75,"Director of Housing, Neighbourhood and Building Services"
Retail,Grocery Stores/Supermarkets,W M Morrisons,Supplies and Services related expenditure,13/04/2018,9.17,Director of Children's Services and Education
Retail,Grocery Stores/Supermarkets,W M Morrisons,Supplies and Services related expenditure,13/04/2018,1.1,Director of Children's Services and Education
Entertainment,Member Clubs/Sport/Rec/Golf,Www.Pompeyitc.Org.Uk,Agency and Third Party Payments related expenditure,13/04/2018,14,Director of Children's Services and Education
Business To Business Eqpt/Furn,Book Stores,Amazon UK Marketplace,Capital related expenditure,13/04/2018,9.16,OTHER
Business To Business Eqpt/Furn,Book Stores,Amazon Svcs Eu-Uk Amazon.,Premises related expenditure,13/04/2018,2.41,Director of Children's Services and Education
Business To Business Eqpt/Furn,Book Stores,Amazon Svcs Eu-Uk Amazon.,Supplies and Services related expenditure,13/04/2018,8.74,Director of Children's Services and Education
Business To Business Eqpt/Furn,Book Stores,Amazon Svcs Eu-Uk Amazon.,Supplies and Services related expenditure,13/04/2018,20,Director of Children's Services and Education
Business To Business Eqpt/Furn,Book Stores,Amazon UK Marketplace,Supplies and Services related expenditure,13/04/2018,33.28,Director of Children's Services and Education
Business To Business Other Sup,Uniforms & Commercial Clothing,Alexandra Website,Supplies and Services related expenditure,13/04/2018,97.28,Director of Adult Services
Business To Business Other Sup,Uniforms & Commercial Clothing,Alexandra Website,Supplies and Services related expenditure,13/04/2018,23.35,Director of Adult Services
Other Supplies,Department Stores,The Range,Premises related expenditure,13/04/2018,8.33,Director of Children's Services and Education
Medical,Lab/Med/Hospital Equipment,Wightman & Parrish,Premises related expenditure,13/04/2018,7,Director of Adult Services
Miscellaneous,Continuity/Subscription Mercht,Tesco Delivery Saver2,Supplies and Services related expenditure,14/04/2018,6.99,Director of Children's Services and Education
Retail,Barber/Beauty Shops,The Parlour,Supplies and Services related expenditure,14/04/2018,11.5,Director of Children's Services and Education
Retail,Barber/Beauty Shops,The Parlour,Supplies and Services related expenditure,14/04/2018,11.5,Director of Children's Services and Education
Utilities,Phone Serv/Equip Utility,Virgin Media Pymts,Supplies and Services related expenditure,14/04/2018,78.13,Director of Children's Services and Education
Retail,Grocery Stores/Supermarkets,Tesco Store 3055,Supplies and Services related expenditure,14/04/2018,0.83,Director of Children's Services and Education
Retail,Grocery Stores/Supermarkets,Tesco Store 3055,Premises related expenditure,14/04/2018,3.92,Director of Children's Services and Education
Retail,Grocery Stores/Supermarkets,Asda Stores,Supplies and Services related expenditure,14/04/2018,2.89,"Director of Housing, Neighbourhood and Building Services"
Equipment And Furniture,Household Appliance Stores,Wilko Retail Limit,Supplies and Services related expenditure,14/04/2018,3.13,Director of Children's Services and Education
Business To Business Eqpt/Furn,Book Stores,Waterstones,Supplies and Services related expenditure,14/04/2018,15.04,Director of Children's Services and Education
Retail,Grocery Stores/Supermarkets,Tesco Stores 4579,Supplies and Services related expenditure,14/04/2018,22.97,Director of Children's Services and Education
Business To Business Eqpt/Furn,Book Stores,Amazon UK Marketplace,Supplies and Services related expenditure,14/04/2018,28.73,Director of Finance & IT
Retail,Grocery Stores/Supermarkets,Tesco Stores 4579,Supplies and Services related expenditure,15/04/2018,5.83,Director of Children's Services and Education
Retail,Grocery Stores/Supermarkets,Tesco Stores 4579,Supplies and Services related expenditure,15/04/2018,4,Director of Children's Services and Education
Retail,Grocery Stores/Supermarkets,W M Morrisons,Supplies and Services related expenditure,15/04/2018,5,Director of Children's Services and Education
Retail,Grocery Stores/Supermarkets,W M Morrisons,Supplies and Services related expenditure,15/04/2018,25.32,Director of Children's Services and Education
Retail,Grocery Stores/Supermarkets,Tesco Store 3055,Supplies and Services related expenditure,15/04/2018,29,Director of Adult Services
Retail,Grocery Stores/Supermarkets,Tesco Stores 4579,Supplies and Services related expenditure,15/04/2018,4.58,Director of Adult Services
Retail,Grocery Stores/Supermarkets,Asda Groceries Online,Supplies and Services related expenditure,15/04/2018,-1,Director of Children's Services and Education
Retail,Grocery Stores/Supermarkets,Asda Groceries Online,Supplies and Services related expenditure,15/04/2018,63.06,Director of Children's Services and Education
Facilities/Repair Supplies,Lumber/Build. Supply Stores,B & Q 1260,Supplies and Services related expenditure,15/04/2018,18.75,Director of Children's Services and Education
Retail,Grocery Stores/Supermarkets,Tesco Stores 4579,Supplies and Services related expenditure,15/04/2018,30,Director of Children's Services and Education
Facilities/Repair Supplies,Lumber/Build. Supply Stores,B & Q 1260,Supplies and Services related expenditure,15/04/2018,45.44,Director of Children's Services and Education
Hotels And Motels,Holiday Inn,Holiday Inns,Supplies and Services related expenditure,15/04/2018,90,Director of Children's Services and Education
Other Supplies,Misc Speciality Retail,Amazon Eu Amazon.Co.Uk,Supplies and Services related expenditure,15/04/2018,11.26,Director of Portsmouth International Port
Retail,Grocery Stores/Supermarkets,Tesco Stores 4579,Supplies and Services related expenditure,15/04/2018,9.25,Director of Children's Services and Education
Automobile Services & Supplies,Service Stations,Bastion 177,Supplies and Services related expenditure,15/04/2018,25,"Director of Housing, Neighbourhood and Building Services"
Auto/Vehicle Expenses,Automated Fuel Dispensers,Asda Petrol 4583,Supplies and Services related expenditure,15/04/2018,46.66,"Director of Housing, Neighbourhood and Building Services"
Automobile Services & Supplies,Service Stations,Asda Petrol 4583,Supplies and Services related expenditure,15/04/2018,93.22,"Director of Housing, Neighbourhood and Building Services"
Business To Business Eqpt/Furn,Book Stores,Amazon UK Marketplace,Supplies and Services related expenditure,15/04/2018,15.94,OTHER
Government,Govt Serv - Default,Hampshire County Counc,Premises related expenditure,15/04/2018,331.88,Director of Children's Services and Education
Business Expenses/Services,Stationery Stores,Banner Group Ltd,Supplies and Services related expenditure,04/04/2018,14.06,"Director of Housing, Neighbourhood and Building Services"
Business Expenses/Services,Stationery Stores,Banner Group Ltd,Supplies and Services related expenditure,12/04/2018,137.42,"Director of Housing, Neighbourhood and Building Services"
Business Expenses/Services,Stationery Stores,Banner Group Ltd,Supplies and Services related expenditure,12/04/2018,253.13,Director of Regeneration
Business Expenses/Services,Stationery Stores,Banner Group Ltd,Supplies and Services related expenditure,12/04/2018,18.25,Director of Community & Communication
Business Expenses/Services,Stationery Stores,Banner Group Ltd,Supplies and Services related expenditure,12/04/2018,5.54,Director of Finance & IT
Business Expenses/Services,Stationery Stores,Banner Group Ltd,Supplies and Services related expenditure,12/04/2018,16.16,Director of Culture & City Development
Business Expenses/Services,Stationery Stores,Banner Group Ltd,Supplies and Services related expenditure,12/04/2018,9.89,Director of Culture & City Development
Business Expenses/Services,Stationery Stores,Banner Group Ltd,Supplies and Services related expenditure,12/04/2018,14.5,Director of Culture & City Development
Business Expenses/Services,Stationery Stores,Banner Group Ltd,Supplies and Services related expenditure,12/04/2018,37.6,Director of Finance & IT
Business Expenses/Services,Stationery Stores,Banner Group Ltd,Supplies and Services related expenditure,13/04/2018,53.62,Director of Adult Services
Business Expenses/Services,Stationery Stores,Banner Group Ltd,Supplies and Services related expenditure,13/04/2018,106.21,Director of Culture & City Development
Government,Govt Serv - Default,Pcc Internet Payment,Agency and Third Party Payments related expenditure,13/04/2018,25,Director of Children's Services and Education
Government,Govt Serv - Default,Pcc Moto Payment,Agency and Third Party Payments related expenditure,13/04/2018,60,Director of Children's Services and Education
Business Expenses/Services,Stationery Stores,Banner Group Ltd,Supplies and Services related expenditure,13/04/2018,21.43,"Director of HR, Legal,  Audit & Performance"
Business Expenses/Services,Stationery Stores,Banner Group Ltd,Supplies and Services related expenditure,13/04/2018,131.51,"Director of HR, Legal,  Audit & Performance"
Business Expenses/Services,Stationery Stores,Banner Group Ltd,Supplies and Services related expenditure,13/04/2018,4.28,Director of Finance & IT
Business Expenses/Services,Stationery Stores,Banner Group Ltd,Supplies and Services related expenditure,13/04/2018,7.52,Director of Finance & IT
Business Expenses/Services,Stationery Stores,Banner Group Ltd,Supplies and Services related expenditure,13/04/2018,12.02,"Director of Housing, Neighbourhood and Building Services"
Business Expenses/Services,Stationery Stores,Banner Group Ltd,Supplies and Services related expenditure,13/04/2018,14.06,"Director of Housing, Neighbourhood and Building Services"
Professional Services,Mgmt/Consult/Public Rel Ser,Tvlicensing.Co.Uk,Supplies and Services related expenditure,13/04/2018,150.5,Director of Children's Services and Education
Utilities,Cable/Pay Tv Services,Sky Subscription,Supplies and Services related expenditure,14/04/2018,54.25,Director of Children's Services and Education
Business To Business Eqpt/Furn,Book Stores,Amazon Svcs Eu-Uk Amazon.,Supplies and Services related expenditure,16/04/2018,8.95,Director of Portsmouth International Port
Business To Business Eqpt/Furn,Book Stores,Amazon Svcs Eu-Uk Amazon.,Supplies and Services related expenditure,16/04/2018,8.95,Director of Portsmouth International Port
Professional Services,Mgmt/Consult/Public Rel Ser,Hampshire Chamber Of C,Supplies and Services related expenditure,16/04/2018,36.67,Director of Portsmouth International Port
Business To Business Other Sup,Uniforms & Commercial Clothing,Arco Ltd,Supplies and Services related expenditure,16/04/2018,-53,Director of Portsmouth International Port
Business To Business Facility/,Electrical Parts/Equipment,Www.Djanddiscostuf,Supplies and Services related expenditure,16/04/2018,21.62,Director of Regeneration
Business To Business Facility/,Hardware Equipment/Supplies,Www.Ispitrade.Com,Supplies and Services related expenditure,16/04/2018,128.95,Director of Regeneration
Transportation,"Parking Lots, Meters, Garages",Six Card Contactless S,Supplies and Services related expenditure,16/04/2018,3,Director of Children's Services and Education
Government,Govt Serv - Default,Queen Elizabeth Countr,Supplies and Services related expenditure,16/04/2018,5.08,Director of Children's Services and Education
Retail,Grocery Stores/Supermarkets,Tesco Store 3055,Supplies and Services related expenditure,16/04/2018,30.58,Director of Children's Services and Education
Retail,Grocery Stores/Supermarkets,Tesco Store 3055,Supplies and Services related expenditure,16/04/2018,32.41,Director of Children's Services and Education
Retail,Grocery Stores/Supermarkets,Asda Stores,Supplies and Services related expenditure,16/04/2018,8.18,Director of Adult Services
Transportation,Local Commuter Transport,Hovertravel Ltd,Transport related expenditure,16/04/2018,23.9,Director of Children's Services and Education
Business Expenses/Services,Postage Stamps,Post Office Counter,Supplies and Services related expenditure,16/04/2018,58.5,Director of Children's Services and Education
Business Expenses/Services,Postage Stamps,Post Office Counter,Supplies and Services related expenditure,16/04/2018,9.75,Director of Children's Services and Education
Business Expenses/Services,Postage Stamps,Post Office Counter,Supplies and Services related expenditure,16/04/2018,58.5,Director of Children's Services and Education
Business Expenses/Services,Postage Stamps,Post Office Counter,Supplies and Services related expenditure,16/04/2018,9.75,Director of Children's Services and Education
Business Expenses/Services,Postage Stamps,Post Office Counter,Supplies and Services related expenditure,16/04/2018,58.5,Director of Children's Services and Education
Business To Business Facility/,Industrial Supplies - Def,Www.Arco.Co.Uk,Supplies and Services related expenditure,16/04/2018,27.18,"Director of Housing, Neighbourhood and Building Services"
Transportation,Passenger Railways,Sw Railway,Transport related expenditure,16/04/2018,51.85,Director of Adult Services
Retail,Grocery Stores/Supermarkets,Js Online Grocery,Supplies and Services related expenditure,16/04/2018,5.9,Director of Children's Services and Education
Retail,Grocery Stores/Supermarkets,Js Online Grocery,Supplies and Services related expenditure,16/04/2018,4.85,Director of Children's Services and Education
Retail,Grocery Stores/Supermarkets,Js Online Grocery,Supplies and Services related expenditure,16/04/2018,10.33,Director of Children's Services and Education
Retail,Grocery Stores/Supermarkets,Js Online Grocery,Supplies and Services related expenditure,16/04/2018,73.4,Director of Children's Services and Education
Miscellaneous,Fines,Combined Court Cen,Supplies and Services related expenditure,16/04/2018,455,Director of Children's Services and Education
Equipment And Furniture,Household Appliance Stores,Machine Mart Ltd,Supplies and Services related expenditure,16/04/2018,148.12,Director of Culture & City Development
Business To Business Facility/,Industrial Supplies - Def,Www.Arco.Co.Uk,Supplies and Services related expenditure,16/04/2018,54.27,"Director of Housing, Neighbourhood and Building Services"
Business To Business Facility/,Industrial Supplies - Def,Www.Arco.Co.Uk,Supplies and Services related expenditure,16/04/2018,82.4,"Director of Housing, Neighbourhood and Building Services"
Utilities,Computer Network/Info Svcs,Siteground Hosting,Supplies and Services related expenditure,16/04/2018,301.8,Director of Community & Communication
Government,Govt Serv - Default,Www.Moneyclaim.Gov,Supplies and Services related expenditure,16/04/2018,60,"Director of Housing, Neighbourhood and Building Services"
